{"text_format":"1","workbook":"xlsx","n_sheets":16,"sheets":["Menu","Superstrat Option List","Superstrat Padalka Calculation","Headless Option List","Headless Padalka Calculation","Strathing Option List","Earth Padalka Calculation","Telething Option List","Mars Padalka Calculation","Les Paulthing Option list","Mercury Padalka Calculation","Ennea Guitar Option list","Ennea Guitar Padalka Calculatio","Ennea Bass Option list","Exchange Rate Calculation","Ennea Bass Padalka Calculation"],"not_rendered":{"charts":0,"images":27,"macros":1,"external_links":1,"defined_names":15,"comments":0,"pivot_tables":0},"unopened":[],"bounds":{"document_bytes":16777216,"sheet_cells":100000,"rows_first":2000,"rows_last":500,"rows_between":2000,"halvings":0,"cell_chars":16384,"cell_head_chars":4096},"cells_cut":0,"cells_raw":0,"read":"whole","date_system":"1900"}

{"sheet":"Menu","index":0,"n_rows":0,"n_cols":0,"rows_kept":0,"cut":false,"hidden":false,"merged":[]}

{"sheet":"Superstrat Option List","index":1,"n_rows":294,"n_cols":7,"rows_kept":294,"cut":false,"hidden":true,"merged":[]}
["Group","Description","Options","Rate $","2nd Rate","Russian Rates"]
["General Specifications","Model","Select Option",null,null,null,"Rate with formula, only change Russian rate"]
["General Specifications","Model","Space",2000]
["General Specifications","Model","Moon",2000]
["General Specifications","Model","CS",2000]
["General Specifications","Model","MS",2000]
["General Specifications","Number of strings","Select Option"]
["General Specifications","Number of strings",6,0]
["General Specifications","Number of strings",7,65]
["General Specifications","Number of strings",8,115]
["General Specifications","Scale length","Select Option"]
["General Specifications","Scale length","25,5\"",0]
["General Specifications","Scale length","26\"",0]
["General Specifications","Scale length","26,5\"",0]
["General Specifications","Scale length","27\"",0]
["General Specifications","Scale length","28\"",0]
["General Specifications","Scale length","Multiscale",200]
["General Specifications","Neck joint construction","Select Option"]
["General Specifications","Neck joint construction","Bolt-on (Screws)",0]
["General Specifications","Neck joint construction","Bolt-on (Bolts & threaded inserts)",35]
["General Specifications","Neck joint construction","Set neck",65]
["General Specifications","Neck joint construction","Neck through",200]
["General Specifications","Additional option","Select Option"]
["General Specifications","Additional option","Smooth heel for bolt-on (for CS and MS)",50]
["General Specifications","Additional option","Full length carbon reinforcements",40]
["General Specifications","Additional option","Hidden fret tangs (without fretboard binding)",100]
["General Specifications","Additional option","none",0]
["Neck Specifications","Number of frets","Select Option"]
["Neck Specifications","Number of frets",24,0]
["Neck Specifications","Fretwire","Select Option"]
["Neck Specifications","Fretwire","Jescar stainless steel 2,28x1,4mm",0]
["Neck Specifications","Fretwire","Jescar stainless steel 2,5x1,3mm",0]
["Neck Specifications","Fretwire","Jescar stainless steel 2,79x1,45mm",0]
["Neck Specifications","Fretwire","Evo Gold 2,28x1,4mm",25]
["Neck Specifications","Fretwire","Evo Gold 2,79x1,45mm",25]
["Neck Specifications","Fretwire","Jescar nickel-silver 2,28x1,4mm",0]
["Neck Specifications","Fretwire","Jescar nickel-silver 2,5x1,3mm",0]
["Neck Specifications","Fretwire","Jescar nickel-silver 2,79x1,45mm",0]
["Neck Specifications","Fretwire","Custom fretwire",40]
["Neck Specifications","Neck pieces","Select Option"]
["Neck Specifications","Neck pieces",1,0]
["Neck Specifications","Neck pieces",3,{"$f":"F42*'Exchange Rate Calculation'!$Q$7","v":0}]
["Neck Specifications","Neck pieces",5,{"$f":"F43*'Exchange Rate Calculation'!$Q$7","v":0}]
["Neck Specifications","Neck pieces",7,50]
["Neck Specifications","Neck pieces","7 + 2 veneer  layers",60]
["Neck Specifications","Neck pieces","Additional veneer layer (each)",5]
["Neck Specifications","Neck wood ","1 Piece Neck Wood","Select Option"]
["Neck Specifications","Neck wood ","1 Piece Neck Wood","none",0]
["Neck Specifications","Neck wood ","1 Piece Neck Wood","Hard maple",{"$f":"F49*'Exchange Rate Calculation'!$Q$7","v":0}]
["Neck Specifications","Neck wood ","1 Piece Neck Wood","Flame maple",190]
["Neck Specifications","Neck wood ","1 Piece Neck Wood","Bird`s eye maple",190]
["Neck Specifications","Neck wood ","1 Piece Neck Wood","African mahogany",65]
["Neck Specifications","Neck wood ","1 Piece Neck Wood","Black / White Limba",80]
["Neck Specifications","Neck wood ","1 Piece Neck Wood","Sapele",80]
["Neck Specifications","Neck wood ","1 Piece Neck Wood","Padouk",80]
["Neck Specifications","Neck wood ","1 Piece Neck Wood","Indian Rosewood",285]
["Neck Specifications","Neck wood ","1 Piece Neck Wood","Pau Ferro",175]
["Neck Specifications","Neck wood ","1 Piece Neck Wood","Other ( contact for price )",0]
["Neck Specifications","Neck wood ","Multi-piece Neck Base Wood ","Select Option"]
["Neck Specifications","Neck wood ","Multi-piece Neck Base Wood ","none",0]
["Neck Specifications","Neck wood ","Multi-piece Neck Base Wood ","Hard maple",0]
["Neck Specifications","Neck wood ","Multi-piece Neck Base Wood ","Flame maple",190]
["Neck Specifications","Neck wood ","Multi-piece Neck Base Wood ","African mahogany",65]
["Neck Specifications","Neck wood ","Multi-piece Neck Base Wood ","Black / White Limba",80]
["Neck Specifications","Neck wood ","Multi-piece Neck Base Wood ","Walnut",80]
["Neck Specifications","Neck wood ","Multi-piece Neck Base Wood ","Sapele",80]
["Neck Specifications","Neck wood ","Multi-piece Neck Base Wood ","Padouk",80]
["Neck Specifications","Neck wood ","Multi-piece Neck Base Wood ","Indian Rosewood",285]
["Neck Specifications","Neck wood ","Multi-piece Neck Base Wood ","Pau Ferro",175]
["Neck Specifications","Neck wood ","Multi-piece Neck Base Wood ","Wenge",175]
["Neck Specifications","Neck wood ","Multi-piece Neck Base Wood ","Bubinga",150]
["Neck Specifications","Neck wood ","Multi-piece Neck Base Wood ","Purpleheart",150]
["Neck Specifications","Neck wood ","Multi-piece Neck Base Wood ","Other ( contact for price )",0]
["Neck Specifications","Neck wood ","Multi-piece Neck Thins Wood ","Select Option"]
["Neck Specifications","Neck wood ","Multi-piece Neck Thins Wood ","none",0]
["Neck Specifications","Neck wood ","Multi-piece Neck Thins Wood ","Hard maple",0]
["Neck Specifications","Neck wood ","Multi-piece Neck Thins Wood ","Flame Maple",57]
["Neck Specifications","Neck wood ","Multi-piece Neck Thins Wood ","African mahogany",20]
["Neck Specifications","Neck wood ","Multi-piece Neck Thins Wood ","Black / White Limba",25]
["Neck Specifications","Neck wood ","Multi-piece Neck Thins Wood ","Walnut",25]
["Neck Specifications","Neck wood ","Multi-piece Neck Thins Wood ","Sapele",25]
["Neck Specifications","Neck wood ","Multi-piece Neck Thins Wood ","Padouk",25]
["Neck Specifications","Neck wood ","Multi-piece Neck Thins Wood ","Indian Rosewood",85]
["Neck Specifications","Neck wood ","Multi-piece Neck Thins Wood ","Pau Ferro",55]
["Neck Specifications","Neck wood ","Multi-piece Neck Thins Wood ","Wenge",55]
["Neck Specifications","Neck wood ","Multi-piece Neck Thins Wood ","Bubinga",45]
["Neck Specifications","Neck wood ","Multi-piece Neck Thins Wood ","Purpleheart",45]
["Neck Specifications","Neck wood ","Multi-piece Neck Thins Wood ","Other ( contact for price )",0]
["Neck Specifications","Fretboard wood","Select Option"]
["Neck Specifications","Fretboard wood","Hard Maple",0]
["Neck Specifications","Fretboard wood","Flame maple",65]
["Neck Specifications","Fretboard wood","Bird`s eye maple",75]
["Neck Specifications","Fretboard wood","Pau Ferro",0]
["Neck Specifications","Fretboard wood","Indian Rosewood",40]
["Neck Specifications","Fretboard wood","Ebony",85]
["Neck Specifications","Fretboard wood","Macassar ebony",85]
["Neck Specifications","Fretboard wood","Pale moon ebony",115]
["Neck Specifications","Fretboard wood","Zebrano",50]
["Neck Specifications","Fretboard wood","Ziricote",85]
["Neck Specifications","Fretboard wood","Bocote",60]
["Neck Specifications","Fretboard wood","Wenge",60]
["Neck Specifications","Fretboard wood","Other exotic wood (contact for price)",0]
["Neck Specifications","Fretboard radius","Select Option"]
["Neck Specifications","Fretboard radius","12\"",0]
["Neck Specifications","Fretboard radius","14\"",0]
["Neck Specifications","Fretboard radius","16\"",0]
["Neck Specifications","Fretboard radius","20\"",0]
["Neck Specifications","Fretboard radius","Compound radius",85]
["Neck Specifications","Headstock shape","Select Option"]
["Neck Specifications","Headstock shape","A-1",0]
["Neck Specifications","Headstock shape","A-2 ",0]
["Neck Specifications","Headstock shape","A-2  2-level headstock",60]
["Neck Specifications","Headstock shape","A-3",0]
["Neck Specifications","Headstock shape","A-3 2-level headstock",60]
["Neck Specifications","Headstock shape","CS",0]
["Neck Specifications","Headstock shape","MS",0]
["Neck Specifications","Headstock finish ","Select Option"]
["Neck Specifications","Headstock finish ","Matching top with veneer",{"$f":"F118*'Exchange Rate Calculation'!$Q$7","v":0}]
["Neck Specifications","Headstock finish ","Clear",0]
["Neck Specifications","Headstock binding ","Select Option"]
["Neck Specifications","Headstock binding ","None",0]
["Neck Specifications","Headstock binding ","Scraped binding",0]
["Neck Specifications","Headstock binding ","Binding 1 ply",50]
["Neck Specifications","Headstock binding ","Binding 2 ply",100]
["Neck Specifications","Fretboard binding ","Select Option"]
["Neck Specifications","Fretboard binding ","None",0]
["Neck Specifications","Fretboard binding ","Side border-stripe (between neck and fingerboard)",25]
["Neck Specifications","Fretboard binding ","Binding 1 ply",50]
["Neck Specifications","Fretboard binding ","Binding 2 ply",100]
["Neck Specifications","Fretboard inlays","Select Option"]
["Neck Specifications","Fretboard inlays","None",0]
["Neck Specifications","Fretboard inlays","MOP dots 2-6mm",0]
["Neck Specifications","Fretboard inlays","LED markers",165]
["Neck Specifications","Fretboard inlays","Wooden blocks",50]
["Neck Specifications","Fretboard inlays","Aluminium rings ",35]
["Neck Specifications","Fretboard inlays","Custom design \"simple\"",50]
["Neck Specifications","Fretboard inlays","Custom design \"medium\"",115]
["Neck Specifications","Fretboard inlays","Custom design \"complicated\"",165]
["Neck Specifications","Side markers","Select Option"]
["Neck Specifications","Side markers","None",0]
["Neck Specifications","Side markers","Plastic dots 2mm",0]
["Neck Specifications","Side markers","MOP dots 2mm",0]
["Neck Specifications","Side markers","Luminlay 3mm",0]
["Neck Specifications","Side markers","Wood or plastic blocks",50]
["Neck Specifications","Side markers","MOP blocks",60]
["Body Specifications","Body wood","Bolt-on (Screws)","Select Option"]
["Body Specifications","Body wood","Bolt-on (Screws)","Alder",0]
["Body Specifications","Body wood","Bolt-on (Screws)","White ash",0]
["Body Specifications","Body wood","Bolt-on (Screws)","Swamp ash",250]
["Body Specifications","Body wood","Bolt-on (Screws)","African mahogany",100]
["Body Specifications","Body wood","Bolt-on (Screws)","Basswood",0]
["Body Specifications","Body wood","Bolt-on (Screws)","Limba",200]
["Body Specifications","Body wood","Bolt-on (Screws)","Sapele",85]
["Body Specifications","Body wood","Bolt-on (Bolts & threaded inserts)","Select Option"]
["Body Specifications","Body wood","Bolt-on (Bolts & threaded inserts)","Alder",0]
["Body Specifications","Body wood","Bolt-on (Bolts & threaded inserts)","White ash",0]
["Body Specifications","Body wood","Bolt-on (Bolts & threaded inserts)","Swamp ash",250]
["Body Specifications","Body wood","Bolt-on (Bolts & threaded inserts)","African mahogany",100]
["Body Specifications","Body wood","Bolt-on (Bolts & threaded inserts)","Basswood",0]
["Body Specifications","Body wood","Bolt-on (Bolts & threaded inserts)","Limba",200]
["Body Specifications","Body wood","Bolt-on (Bolts & threaded inserts)","Sapele",85]
["Body Specifications","Body wood","Set neck","Select Option"]
["Body Specifications","Body wood","Set neck","Alder",0]
["Body Specifications","Body wood","Set neck","White ash",0]
["Body Specifications","Body wood","Set neck","Swamp ash",250]
["Body Specifications","Body wood","Set neck","African mahogany",100]
["Body Specifications","Body wood","Set neck","Basswood",0]
["Body Specifications","Body wood","Set neck","Limba",200]
["Body Specifications","Body wood","Set neck","Sapele",85]
["Body Specifications","Body wood","Neck through","Select Option"]
["Body Specifications","Body wood","Neck through","Alder",0]
["Body Specifications","Body wood","Neck through","White ash",0]
["Body Specifications","Body wood","Neck through","Swamp ash",250]
["Body Specifications","Body wood","Neck through","African mahogany",100]
["Body Specifications","Body wood","Neck through","Basswood",0]
["Body Specifications","Body wood","Neck through","Limba",200]
["Body Specifications","Body wood","Neck through","Sapele",85]
["Body Specifications","Front body carvings","Select Option"]
["Body Specifications","Front body carvings","Arm bevel (Space, CS, MS)",0]
["Body Specifications","Front body carvings","Carved top (CS, Space)",100]
["Body Specifications","Front body carvings","Chamfer (Moon)",{"$f":"F181*'Exchange Rate Calculation'!$Q$7","v":0}]
["Body Specifications","Front body carvings","None",0]
["Body Specifications","Body chambers","Select Option"]
["Body Specifications","Body chambers","None",0]
["Body Specifications","Body chambers","Weight reducing chambers (only with top)",60]
["Body Specifications","Top wood","Select Option"]
["Body Specifications","Top wood","None",0]
["Body Specifications","Top wood","White ash 5mm",0]
["Body Specifications","Top wood","White ash 16mm",0]
["Body Specifications","Top wood","Buckeye Burl 5mm",215]
["Body Specifications","Top wood","Flame maple 5mm",165]
["Body Specifications","Top wood","Flame maple 16mm",330]
["Body Specifications","Top wood","Quilted maple 5mm",165]
["Body Specifications","Top wood","Quilted maple 16mm",330]
["Body Specifications","Top wood","Burl maple 5mm",200]
["Body Specifications","Top wood","Burl maple 16mm",330]
["Body Specifications","Top wood","Spalted maple 3-5mm",135]
["Body Specifications","Top wood","Poplar burl 3-5mm",135]
["Body Specifications","Top wood","Walnut",65]
["Body Specifications","Top wood","Purpleheart",65]
["Body Specifications","Top wood","Other exotic wood (contact for the price)",0]
["Body Specifications","Body binding","Select Option"]
["Body Specifications","Body binding","None",0]
["Body Specifications","Body binding","Scraped binding",{"$f":"F204*'Exchange Rate Calculation'!$Q$7","v":0}]
["Body Specifications","Body binding","Binding 1 ply",50]
["Body Specifications","Body binding","Binding 2-3 ply",100]
["Body Specifications","Finish","Select Option"]
["Body Specifications","Finish","Satin open pores",0]
["Body Specifications","Finish","Oil",75]
["Body Specifications","Finish","Gloss (bolt-on) ",135]
["Body Specifications","Finish","Gloss (set neck or neck-through)",200]
["Body Specifications","Finish","Gloss top (bolt-on)",50]
["Body Specifications","Finish","Gloss top (set neck or neck-through)",85]
["Body Specifications","Colour","Select Option"]
["Body Specifications","Colour","Clear",0]
["Body Specifications","Colour","Uniform colour",0]
["Body Specifications","Colour","Burst",30]
["Body Specifications","Colour","Painted pores (top and headstock)",35]
["Body Specifications","Colour","Painted pores (body and headstock)",70]
["Hardware","Bridge","Select Option"]
["Hardware","Bridge","None",0]
["Hardware","Bridge","Hipshot Hardtail  ",0]
["Hardware","Bridge","Schaller Tremolo",70]
["Hardware","Bridge","Schaller Lockmeister (Floyd Rose)",135]
["Hardware","Bridge Single Sadle system","Select Option"]
["Hardware","Bridge Single Sadle system","None",0]
["Hardware","Bridge Single Sadle system","Hipshot Solo single sadle",0]
["Hardware","Tuning machines","Select Option"]
["Hardware","Tuning machines","Hipshot Griplock ",0]
["Hardware","Tuning machines","Gotoh SG381 non-locking",0]
["Electronics","Neck Pickup","Select Option"]
["Electronics","Neck Pickup","None",0]
["Electronics","Neck Pickup","ARB",0]
["Electronics","Neck Pickup","Fokin pickups",0]
["Electronics","Neck Pickup","Dimarzio ",67]
["Electronics","Neck Pickup","Seymour Duncan",57]
["Electronics","Neck Pickup","BKP",100]
["Electronics","Middle Pickup","Select Option"]
["Electronics","Middle Pickup","None",0]
["Electronics","Middle Pickup","ARB Singlecoil",0]
["Electronics","Middle Pickup","Fokin pickups 6 str Singlecoil",0]
["Electronics","Middle Pickup","Fokin pickups 7 str Singlecoil",0]
["Electronics","Middle Pickup","Dimarzio Singlecoil",0]
["Electronics","Middle Pickup","Seymour duncan Singlecoil",0]
["Electronics","Middle Pickup","BKP 6st Singlecoil",0]
["Electronics","Middle Pickup","BKP 7st Singlecoil",0]
["Electronics","Middle Pickup","Other ( contact for price )",0]
["Electronics","Bridge Pickup","Select Option"]
["Electronics","Bridge Pickup","None",0]
["Electronics","Bridge Pickup","ARB",0]
["Electronics","Bridge Pickup","Fokin pickups",0]
["Electronics","Bridge Pickup","Dimarzio ",67]
["Electronics","Bridge Pickup","Seymour Duncan",57]
["Electronics","Bridge Pickup","BKP",100]
["Electronics","Pickup Switch","Select Option"]
["Electronics","Pickup Switch","3-way Toggle Switch",0]
["Electronics","Pickup Switch","3-way Blade Switch",0]
["Electronics","Pickup Switch","5-way Blade Switch",0]
["Electronics","Pickup Switch","5-way Super Switch",25]
["Electronics","Piezo pickups","Select Option"]
["Electronics","Piezo pickups","None",0]
["Electronics","Piezo pickups","Ghost piezo saddles ",115]
["Electronics","Pre-amp","Select Option"]
["Electronics","Pre-amp","none",0]
["Electronics","Pre-amp","Ghost  Acousti-phonic",140]
["Electronics","Pre-amp","Other ( contact for price )",0]
["Special Upcharge","Arm bevel","Select Option"]
["Special Upcharge","Arm bevel","White ash 5-9mm",{"$f":"F268*'Exchange Rate Calculation'!$Q$7","v":0}]
["Special Upcharge","Arm bevel","Flame maple 5mm",{"$f":"F269*'Exchange Rate Calculation'!$Q$7","v":0}]
["Special Upcharge","Arm bevel","Quilted maple 5mm",{"$f":"F270*'Exchange Rate Calculation'!$Q$7","v":0}]
["Special Upcharge","Arm bevel","Spalted maple 3mm",{"$f":"F271*'Exchange Rate Calculation'!$Q$7","v":0}]
["Special Upcharge","Arm bevel","Poplar burl 3mm",{"$f":"F272*'Exchange Rate Calculation'!$Q$7","v":0}]
["Special Upcharge","Arm bevel","Other exotic wood (contact for the price)",{"$f":"F273*'Exchange Rate Calculation'!$Q$7","v":0}]
["Special Upcharge","Carved top (semi-custom)","Select Option"]
["Special Upcharge","Carved top (semi-custom)","Gloss (bolt-on)",{"$f":"F275*'Exchange Rate Calculation'!$Q$7","v":0}]
["Special Upcharge","Carved top (semi-custom)","Gloss (set neck or neck-through)",{"$f":"F276*'Exchange Rate Calculation'!$Q$7","v":0}]
["Special Upcharge","Carved top (semi-custom)","Gloss top (bolt-on)",{"$f":"F277*'Exchange Rate Calculation'!$Q$7","v":0}]
["Special Upcharge","Carved top (semi-custom)","Gloss top (set neck or neck-through)",{"$f":"F278*'Exchange Rate Calculation'!$Q$7","v":0}]
["Special Upcharge","Neck through","Multi-piece Neck Base Wood ","Select Option"]
["Special Upcharge","Neck through","Multi-piece Neck Base Wood ","none",0]
["Special Upcharge","Neck through","Multi-piece Neck Base Wood ","Hard maple",{"$f":"F281*'Exchange Rate Calculation'!$Q$7","v":0}]
["Special Upcharge","Neck through","Multi-piece Neck Base Wood ","Curly maple",0]
["Special Upcharge","Neck through","Multi-piece Neck Base Wood ","African mahogany",0]
["Special Upcharge","Neck through","Multi-piece Neck Base Wood ","Rosewood",0]
["Special Upcharge","Neck through","Multi-piece Neck Base Wood ","Padouk",0]
["Special Upcharge","Neck through","Multi-piece Neck Base Wood ","Other ( contact for price )",0]
["Special Upcharge","Neck through","Multi-piece Neck Thins Wood ","Select Option"]
["Special Upcharge","Neck through","Multi-piece Neck Thins Wood ","none",0]
["Special Upcharge","Neck through","Multi-piece Neck Thins Wood ","Hard maple",0]
["Special Upcharge","Neck through","Multi-piece Neck Thins Wood ","Wenge",0]
["Special Upcharge","Neck through","Multi-piece Neck Thins Wood ","Padouk",0]
["Special Upcharge","Neck through","Multi-piece Neck Thins Wood ","African mahogany",0]
["Special Upcharge","Neck through","Multi-piece Neck Thins Wood ","Rosewood",0]
["Special Upcharge","Neck through","Multi-piece Neck Thins Wood ","Other ( contact for price )",0]

{"sheet":"Superstrat Padalka Calculation","index":2,"n_rows":90,"n_cols":7,"rows_kept":90,"cut":false,"hidden":false,"merged":[[85,3,89,4],[10,2,10,4],[13,2,13,4],[37,2,37,4],[42,2,42,4],[55,2,55,4],[54,1,54,2],[51,1,51,2],[48,1,48,2],[28,1,28,2],[18,1,18,4],[29,2,29,4],[33,2,33,4],[19,1,19,4],[21,1,21,4],[53,2,53,4],[61,2,61,4],[59,2,59,4],[78,2,78,4],[77,2,77,4],[68,2,68,4],[72,2,72,4],[73,2,73,4],[79,2,79,4],[4,1,4,4],[74,1,74,2],[74,3,74,4],[5,3,5,4],[6,1,6,4],[14,1,14,4],[30,1,30,4],[38,1,38,4],[43,1,43,4],[56,1,56,4],[62,1,62,4],[75,2,75,4],[76,2,76,4],[64,2,64,4],[66,2,66,4],[80,1,80,4],[81,2,81,4],[82,2,82,4],[83,2,83,4],[84,2,84,4]]}
[]
[]
[]
[]
[null,"Specifications"]
["Part","Description","Choosen option","Cost"]
["General Specifications","General Specifications"]
["General Specifications","Model","Select Option",{"$f":"IFERROR(INDEX('Superstrat Option List'!D2:D1928,MATCH(A8&B8&C8,'Superstrat Option List'!A2:A1928&'Superstrat Option List'!B2:B1928&'Superstrat Option List'!C2:C1928,0)),\"Please choose option\")","v":0}]
["General Specifications","Number of Strings","Select Option",{"$f":"IFERROR(INDEX('Superstrat Option List'!D3:D1929,MATCH(A9&B9&C9,'Superstrat Option List'!A3:A1929&'Superstrat Option List'!B3:B1929&'Superstrat Option List'!C3:C1929,0)),\"Please choose option\")","v":0}]
["General Specifications","Scale Length","Select Option",{"$f":"IFERROR(INDEX('Superstrat Option List'!D4:D1930,MATCH(A10&B10&C10,'Superstrat Option List'!A4:A1930&'Superstrat Option List'!B4:B1930&'Superstrat Option List'!C4:C1930,0)),\"Please choose option\")","v":0}]
["General Specifications"]
["General Specifications","Neck Joint Construction","Select Option",{"$f":"IFERROR(INDEX('Superstrat Option List'!D6:D1932,MATCH(A12&B12&C12,'Superstrat Option List'!A6:A1932&'Superstrat Option List'!B6:B1932&'Superstrat Option List'!C6:C1932,0)),\"Please choose option\")","v":0}]
["General Specifications","Additional option","Select Option",{"$f":"IFERROR(INDEX('Superstrat Option List'!D7:D1933,MATCH(A13&B13&C13,'Superstrat Option List'!A7:A1933&'Superstrat Option List'!B7:B1933&'Superstrat Option List'!C7:C1933,0)),\"Please choose option\")","v":0}]
[]
[null,"Neck Specifications"]
["Neck Specifications","Number of frets","Select Option",{"$f":"IFERROR(INDEX('Superstrat Option List'!D10:D1936,MATCH(A16&B16&C16,'Superstrat Option List'!A10:A1936&'Superstrat Option List'!B10:B1936&'Superstrat Option List'!C10:C1936,0)),\"Please choose option\")","v":0}]
["Neck Specifications","Fretwire","Select Option",{"$f":"IFERROR(INDEX('Superstrat Option List'!D11:D1937,MATCH(A17&B17&C17,'Superstrat Option List'!A11:A1937&'Superstrat Option List'!B11:B1937&'Superstrat Option List'!C11:C1937,0)),\"Please choose option\")","v":0}]
["Neck Specifications","Neck pieces","Select Option",{"$f":"IFERROR(INDEX('Superstrat Option List'!D12:D1938,MATCH(A18&B18&C18,'Superstrat Option List'!A12:A1938&'Superstrat Option List'!B12:B1938&'Superstrat Option List'!C12:C1938,0)),\"Please choose option\")","v":0}]
[null,"Neck wood "]
[null,"Select option below for 1 piece neck ( option not available for neck through)"]
["Neck Specifications","1 Piece Neck Wood",{"$f":"INDEX('Superstrat Option List'!D2:D278,MATCH(A21&$B$19&B21,'Superstrat Option List'!A2:A278&'Superstrat Option List'!B2:B278&'Superstrat Option List'!C2:C278,0))","v":"Select Option"},{"$f":"IFERROR(INDEX('Superstrat Option List'!E14:E1941,MATCH(A21&$B$19&B21&C21,'Superstrat Option List'!A14:A1941&'Superstrat Option List'!B14:B1941&'Superstrat Option List'!C14:C1941&'Superstrat Option List'!D14:D1941,0)),\"Please choose option\")","v":0}]
[null,"Select options below for Multi-piece neck"]
["Neck Specifications","Multi-piece Neck Base Wood ","Select Option",{"$f":"IFERROR(INDEX('Superstrat Option List'!$E$47:$E$88,MATCH('Superstrat Padalka Calculation'!A23&$B$19&B23&C23,'Superstrat Option List'!$A$47:$A$88&'Superstrat Option List'!$B$47:$B$88&'Superstrat Option List'!$C$47:$C$88&'Superstrat Option List'!$D$47:$D$88,0)),\"$0,00\")","v":0},null,{"$f":"IFERROR(INDEX('Superstrat Option List'!$E$2:$E$294,MATCH('Superstrat Padalka Calculation'!$A$29&'Superstrat Padalka Calculation'!$C$12&'Superstrat Padalka Calculation'!B23&'Superstrat Padalka Calculation'!C23,'Superstrat Option List'!$A2:$A$294&'Superstrat Option List'!$B$2:$B$294&'Superstrat Option List'!$C$2:$C$294&'Superstrat Option List'!$D$2:$D$294,0)),\"$0,00\")","v":"$0,00"}]
["Neck Specifications","Multi-piece Neck Thins Wood ","Select Option",{"$f":"IFERROR(INDEX('Superstrat Option List'!$E$47:$E$88,MATCH('Superstrat Padalka Calculation'!A24&'Superstrat Padalka Calculation'!$B$19&'Superstrat Padalka Calculation'!B24&'Superstrat Padalka Calculation'!C24,'Superstrat Option List'!$A$47:$A$88&'Superstrat Option List'!$B$47:$B$88&'Superstrat Option List'!$C$47:$C$88&'Superstrat Option List'!$D$47:$D$88,0)),\"$0,00\")","v":0},null,{"$f":"IFERROR(INDEX('Superstrat Option List'!$E$2:$E$294,MATCH('Superstrat Padalka Calculation'!$A$29&'Superstrat Padalka Calculation'!$C$12&'Superstrat Padalka Calculation'!B24&'Superstrat Padalka Calculation'!C24,'Superstrat Option List'!$A3:$A$294&'Superstrat Option List'!$B$2:$B$294&'Superstrat Option List'!$C$2:$C$294&'Superstrat Option List'!$D$2:$D$294,0)),\"$0,00\")","v":"$0,00"}]
["Neck Specifications","Multi-piece Neck Thins Wood ",{"$f":"INDEX('Superstrat Option List'!D6:D282,MATCH(A25&$B$19&B25,'Superstrat Option List'!A6:A282&'Superstrat Option List'!B6:B282&'Superstrat Option List'!C6:C282,0))","v":"Select Option"},{"$f":"IFERROR(INDEX('Superstrat Option List'!$E$47:$E$88,MATCH('Superstrat Padalka Calculation'!A25&'Superstrat Padalka Calculation'!$B$19&'Superstrat Padalka Calculation'!B25&'Superstrat Padalka Calculation'!C25,'Superstrat Option List'!$A$47:$A$88&'Superstrat Option List'!$B$47:$B$88&'Superstrat Option List'!$C$47:$C$88&'Superstrat Option List'!$D$47:$D$88,0)),\"$0,00\")","v":0},null,{"$f":"IFERROR(INDEX('Superstrat Option List'!$E$2:$E$294,MATCH('Superstrat Padalka Calculation'!$A$29&'Superstrat Padalka Calculation'!$C$12&'Superstrat Padalka Calculation'!B25&'Superstrat Padalka Calculation'!C25,'Superstrat Option List'!$A4:$A$294&'Superstrat Option List'!$B$2:$B$294&'Superstrat Option List'!$C$2:$C$294&'Superstrat Option List'!$D$2:$D$294,0)),\"$0,00\")","v":"$0,00"}]
["Neck Specifications","Multi-piece Neck Thins Wood ",{"$f":"INDEX('Superstrat Option List'!D7:D283,MATCH(A26&$B$19&B26,'Superstrat Option List'!A7:A283&'Superstrat Option List'!B7:B283&'Superstrat Option List'!C7:C283,0))","v":"Select Option"},{"$f":"IFERROR(INDEX('Superstrat Option List'!$E$47:$E$88,MATCH('Superstrat Padalka Calculation'!A26&'Superstrat Padalka Calculation'!$B$19&'Superstrat Padalka Calculation'!B26&'Superstrat Padalka Calculation'!C26,'Superstrat Option List'!$A$47:$A$88&'Superstrat Option List'!$B$47:$B$88&'Superstrat Option List'!$C$47:$C$88&'Superstrat Option List'!$D$47:$D$88,0)),\"$0,00\")","v":0},null,{"$f":"IFERROR(INDEX('Superstrat Option List'!$E$2:$E$294,MATCH('Superstrat Padalka Calculation'!$A$29&'Superstrat Padalka Calculation'!$C$12&'Superstrat Padalka Calculation'!B26&'Superstrat Padalka Calculation'!C26,'Superstrat Option List'!$A5:$A$294&'Superstrat Option List'!$B$2:$B$294&'Superstrat Option List'!$C$2:$C$294&'Superstrat Option List'!$D$2:$D$294,0)),\"$0,00\")","v":"$0,00"}]
["Neck Specifications","Multi-piece Neck Thins Wood ",{"$f":"INDEX('Superstrat Option List'!D8:D284,MATCH(A27&$B$19&B27,'Superstrat Option List'!A8:A284&'Superstrat Option List'!B8:B284&'Superstrat Option List'!C8:C284,0))","v":"Select Option"},{"$f":"IFERROR(INDEX('Superstrat Option List'!$E$47:$E$88,MATCH('Superstrat Padalka Calculation'!A27&'Superstrat Padalka Calculation'!$B$19&'Superstrat Padalka Calculation'!B27&'Superstrat Padalka Calculation'!C27,'Superstrat Option List'!$A$47:$A$88&'Superstrat Option List'!$B$47:$B$88&'Superstrat Option List'!$C$47:$C$88&'Superstrat Option List'!$D$47:$D$88,0)),\"$0,00\")","v":0},null,{"$f":"IFERROR(INDEX('Superstrat Option List'!$E$2:$E$294,MATCH('Superstrat Padalka Calculation'!$A$29&'Superstrat Padalka Calculation'!$C$12&'Superstrat Padalka Calculation'!B27&'Superstrat Padalka Calculation'!C27,'Superstrat Option List'!$A6:$A$294&'Superstrat Option List'!$B$2:$B$294&'Superstrat Option List'!$C$2:$C$294&'Superstrat Option List'!$D$2:$D$294,0)),\"$0,00\")","v":"$0,00"}]
["Neck Specifications","Multi-piece Neck Thins Wood ",{"$f":"INDEX('Superstrat Option List'!D9:D285,MATCH(A28&$B$19&B28,'Superstrat Option List'!A9:A285&'Superstrat Option List'!B9:B285&'Superstrat Option List'!C9:C285,0))","v":"Select Option"},{"$f":"IFERROR(INDEX('Superstrat Option List'!$E$47:$E$88,MATCH('Superstrat Padalka Calculation'!A28&'Superstrat Padalka Calculation'!$B$19&'Superstrat Padalka Calculation'!B28&'Superstrat Padalka Calculation'!C28,'Superstrat Option List'!$A$47:$A$88&'Superstrat Option List'!$B$47:$B$88&'Superstrat Option List'!$C$47:$C$88&'Superstrat Option List'!$D$47:$D$88,0)),\"$0,00\")","v":0},null,{"$f":"IFERROR(INDEX('Superstrat Option List'!$E$2:$E$294,MATCH('Superstrat Padalka Calculation'!$A$29&'Superstrat Padalka Calculation'!$C$12&'Superstrat Padalka Calculation'!B28&'Superstrat Padalka Calculation'!C28,'Superstrat Option List'!$A7:$A$294&'Superstrat Option List'!$B$2:$B$294&'Superstrat Option List'!$C$2:$C$294&'Superstrat Option List'!$D$2:$D$294,0)),\"$0,00\")","v":"$0,00"}]
["Special Upcharge",null,null,{"$f":"SUM(F23:F28)","v":0}]
[]
[null,"Fretboard Specifications"]
["Neck Specifications","Fretboard wood","Select Option",{"$f":"IFERROR(INDEX('Superstrat Option List'!D28:D1952,MATCH(A32&B32&C32,'Superstrat Option List'!A28:A1952&'Superstrat Option List'!B28:B1952&'Superstrat Option List'!C28:C1952,0)),\"Please choose option\")","v":0}]
["Neck Specifications","Fretboard radius","Select Option",{"$f":"IFERROR(INDEX('Superstrat Option List'!D29:D1953,MATCH(A33&B33&C33,'Superstrat Option List'!A29:A1953&'Superstrat Option List'!B29:B1953&'Superstrat Option List'!C29:C1953,0)),\"Please choose option\")","v":0}]
["Neck Specifications"]
["Neck Specifications","Fretboard binding ","Select Option",{"$f":"IFERROR(INDEX('Superstrat Option List'!D29:D1955,MATCH(A35&B35&C35,'Superstrat Option List'!A29:A1955&'Superstrat Option List'!B29:B1955&'Superstrat Option List'!C29:C1955,0)),\"Please choose option\")","v":0}]
["Neck Specifications","Fretboard inlays","Select Option",{"$f":"IFERROR(INDEX('Superstrat Option List'!D30:D1956,MATCH(A36&B36&C36,'Superstrat Option List'!A30:A1956&'Superstrat Option List'!B30:B1956&'Superstrat Option List'!C30:C1956,0)),\"Please choose option\")","v":0}]
["Neck Specifications","Side markers","Select Option",{"$f":"IFERROR(INDEX('Superstrat Option List'!D30:D1957,MATCH(A37&B37&C37,'Superstrat Option List'!A30:A1957&'Superstrat Option List'!B30:B1957&'Superstrat Option List'!C30:C1957,0)),\"Please choose option\")","v":0}]
[]
[null,"Headstock Specifications"]
["Neck Specifications","Headstock shape","Select Option",{"$f":"IFERROR(INDEX('Superstrat Option List'!D31:D1960,MATCH(A40&B40&C40,'Superstrat Option List'!A31:A1960&'Superstrat Option List'!B31:B1960&'Superstrat Option List'!C31:C1960,0)),\"Please choose option\")","v":0}]
["Neck Specifications","Headstock finish ","Select Option",{"$f":"IFERROR(INDEX('Superstrat Option List'!D32:D1961,MATCH(A41&B41&C41,'Superstrat Option List'!A32:A1961&'Superstrat Option List'!B32:B1961&'Superstrat Option List'!C32:C1961,0)),\"Please choose option\")","v":0}]
["Neck Specifications","Headstock binding ","Select Option",{"$f":"IFERROR(INDEX('Superstrat Option List'!D34:D1962,MATCH(A42&B42&C42,'Superstrat Option List'!A34:A1962&'Superstrat Option List'!B34:B1962&'Superstrat Option List'!C34:C1962,0)),\"Please choose option\")","v":0}]
[]
[null,"Body Specifications"]
["Body Specifications","Body wood","Select Option",{"$f":"IFERROR(INDEX('Superstrat Option List'!E2:E294,MATCH(A45&B45&F45&C45,'Superstrat Option List'!A2:A294&'Superstrat Option List'!B2:B294&'Superstrat Option List'!C2:C294&'Superstrat Option List'!D2:D294,0)),\"Please select option\")","v":"Please select option"},null,{"$f":"C12","v":"Select Option"}]
["Body Specifications","Front body carvings","Select Option",{"$f":"IFERROR(INDEX('Superstrat Option List'!D39:D1965,MATCH(A46&B46&C46,'Superstrat Option List'!A39:A1965&'Superstrat Option List'!B39:B1965&'Superstrat Option List'!C39:C1965,0)),\"Please choose option\")","v":0}]
["Body Specifications","Body chambers",{"$f":"IFERROR(INDEX('Superstrat Option List'!C43:C278,MATCH(#REF!&A47&B47,'Superstrat Option List'!#REF!&'Superstrat Option List'!A43:A278&'Superstrat Option List'!B43:B278,0)),\"Select Option\")","v":"Select Option"},{"$f":"IFERROR(INDEX('Superstrat Option List'!D41:D1967,MATCH(A47&B47&C47,'Superstrat Option List'!A41:A1967&'Superstrat Option List'!B41:B1967&'Superstrat Option List'!C41:C1967,0)),\"Please choose option\")","v":0}]
["Body Specifications","Top wood","Select Option",{"$f":"IFERROR(INDEX('Superstrat Option List'!D42:D1968,MATCH(A48&B48&C48,'Superstrat Option List'!A42:A1968&'Superstrat Option List'!B42:B1968&'Superstrat Option List'!C42:C1968,0)),\"Please choose option\")","v":0}]
["Special Upcharge",null,null,{"$f":"IFERROR(INDEX('Superstrat Option List'!D267:D273,MATCH('Superstrat Padalka Calculation'!A49&'Superstrat Padalka Calculation'!C46&'Superstrat Padalka Calculation'!C48,'Superstrat Option List'!A268:A273&'Superstrat Option List'!B268:B273&'Superstrat Option List'!C268:C273,0)),\"$0,00\")","v":"$0,00"}]
["Body Specifications","Body binding","Select Option",{"$f":"IFERROR(INDEX('Superstrat Option List'!D44:D1970,MATCH(A50&B50&C50,'Superstrat Option List'!A44:A1970&'Superstrat Option List'!B44:B1970&'Superstrat Option List'!C44:C1970,0)),\"Please choose option\")","v":0}]
["Body Specifications","Finish","Select Option",{"$f":"IFERROR(INDEX('Superstrat Option List'!D45:D1971,MATCH(A51&B51&C51,'Superstrat Option List'!A45:A1971&'Superstrat Option List'!B45:B1971&'Superstrat Option List'!C45:C1971,0)),\"Please choose option\")","v":0}]
["Special Upcharge",null,null,{"$f":"IFERROR(INDEX('Superstrat Option List'!D275:D278,MATCH('Superstrat Padalka Calculation'!A52&'Superstrat Padalka Calculation'!C46&'Superstrat Padalka Calculation'!C51,'Superstrat Option List'!A275:A278&'Superstrat Option List'!B275:B278&'Superstrat Option List'!C275:C278,0)),\"$0,00\")","v":"$0,00"}]
["Body Specifications","Colour","Select Option",{"$f":"IFERROR(INDEX('Superstrat Option List'!D47:D1973,MATCH(A53&B53&C53,'Superstrat Option List'!A47:A1973&'Superstrat Option List'!B47:B1973&'Superstrat Option List'!C47:C1973,0)),\"Please choose option\")","v":0}]
["Body Specifications"]
[null,null,null,{"$f":"IF(C54>=F55,G55,0)","v":0},null,"White",50]
[]
[null,"Hardware"]
["Hardware","Bridge","Select Option",{"$f":"IFERROR(INDEX('Superstrat Option List'!D52:D1977,MATCH(A58&B58&C58,'Superstrat Option List'!A52:A1977&'Superstrat Option List'!B52:B1977&'Superstrat Option List'!C52:C1977,0)),\"Please choose option\")","v":0}]
["Hardware","Bridge Single Sadle system",{"$f":"IFERROR(INDEX('Superstrat Option List'!C52:C278,MATCH(#REF!&A59&B59,'Superstrat Option List'!#REF!&'Superstrat Option List'!A52:A278&'Superstrat Option List'!B52:B278,0)),\"Select Option\")","v":"Select Option"},{"$f":"IFERROR(F59*C9,\"$0,00\")","v":"$0,00"},null,{"$f":"IFERROR(INDEX('Superstrat Option List'!D52:D2340,MATCH(A59&B59&C59,'Superstrat Option List'!A52:A278&'Superstrat Option List'!B52:B2340&'Superstrat Option List'!C52:C2340,0)),\"Please choose option\")","v":0}]
["Hardware"]
["Hardware","Tuning machines",{"$f":"IFERROR(INDEX('Superstrat Option List'!C57:C278,MATCH(#REF!&A61&B61,'Superstrat Option List'!#REF!&'Superstrat Option List'!A57:A278&'Superstrat Option List'!B57:B278,0)),\"Select Option\")","v":"Select Option"},{"$f":"IFERROR(F61*C9,\"$0,00\")","v":"$0,00"},null,{"$f":"IFERROR(INDEX('Superstrat Option List'!D57:D2360,MATCH(A61&B61&C61,'Superstrat Option List'!A57:A2360&'Superstrat Option List'!B57:B2360&'Superstrat Option List'!C57:C2360,0)),\"Please chose option\")","v":0}]
[]
[null,"Electronics"]
["Electronics","Neck Pickup","Select Option",{"$f":"IFERROR(INDEX('Superstrat Option List'!D61:D1984,MATCH(A64&B64&C64,'Superstrat Option List'!A61:A1984&'Superstrat Option List'!B61:B1984&'Superstrat Option List'!C61:C1984,0)),\"Please choose option\")","v":0}]
["Electronics","Describe Pickup Model"]
["Electronics","Middle Pickup",{"$f":"IFERROR(INDEX('Superstrat Option List'!C63:C278,MATCH(#REF!&A66&B66,'Superstrat Option List'!#REF!&'Superstrat Option List'!A63:A278&'Superstrat Option List'!B63:B278,0)),\"Select Option\")","v":"Select Option"},{"$f":"IFERROR(INDEX('Superstrat Option List'!D63:D1986,MATCH(A66&B66&C66,'Superstrat Option List'!A63:A1986&'Superstrat Option List'!B63:B1986&'Superstrat Option List'!C63:C1986,0)),\"Please choose option\")","v":0}]
["Electronics"]
["Electronics","Bridge Pickup",{"$f":"IFERROR(INDEX('Superstrat Option List'!C67:C278,MATCH(#REF!&A68&B68,'Superstrat Option List'!#REF!&'Superstrat Option List'!A67:A278&'Superstrat Option List'!B67:B278,0)),\"Select Option\")","v":"Select Option"},{"$f":"IFERROR(INDEX('Superstrat Option List'!D67:D1988,MATCH(A68&B68&C68,'Superstrat Option List'!A67:A1988&'Superstrat Option List'!B67:B1988&'Superstrat Option List'!C67:C1988,0)),\"Please choose option\")","v":0}]
["Electronics","Describe Pickup Model"]
["Electronics","Pickup Switch",{"$f":"IFERROR(INDEX('Superstrat Option List'!C75:C278,MATCH(#REF!&A70&B70,'Superstrat Option List'!#REF!&'Superstrat Option List'!A75:A278&'Superstrat Option List'!B75:B278,0)),\"Select Option\")","v":"Select Option"},{"$f":"IFERROR(INDEX('Superstrat Option List'!D74:D1990,MATCH(A70&B70&C70,'Superstrat Option List'!A74:A1990&'Superstrat Option List'!B74:B1990&'Superstrat Option List'!C74:C1990,0)),\"Please choose option\")","v":0}]
["Electronics","Piezo Pickups",{"$f":"IFERROR(INDEX('Superstrat Option List'!C78:C278,MATCH(#REF!&A71&B71,'Superstrat Option List'!#REF!&'Superstrat Option List'!A78:A278&'Superstrat Option List'!B78:B278,0)),\"Select Option\")","v":"Select Option"},{"$f":"IFERROR(INDEX('Superstrat Option List'!D75:D1991,MATCH(A71&B71&C71,'Superstrat Option List'!A75:A1991&'Superstrat Option List'!B75:B1991&'Superstrat Option List'!C75:C1991,0)),\"Please choose option\")","v":0}]
["Electronics","Pre-amp",{"$f":"IFERROR(INDEX('Superstrat Option List'!C78:C278,MATCH(#REF!&A72&B72,'Superstrat Option List'!#REF!&'Superstrat Option List'!A78:A278&'Superstrat Option List'!B78:B278,0)),\"Select Option\")","v":"Select Option"},{"$f":"IFERROR(INDEX('Superstrat Option List'!D78:D1993,MATCH(A72&B72&C72,'Superstrat Option List'!A78:A1993&'Superstrat Option List'!B78:B1993&'Superstrat Option List'!C78:C1993,0)),\"Please choose option\")","v":0}]
["Electronics","Describe Other Pre-amp"]
[]
[null,"Total  ",null,{"$f":"IFERROR(SUM(D8:D74),\"Please select missing option\")","v":0}]
[null,"Name:"]
[null,"Country :"]
[null,"Adress :"]
[null,"E-mail :"]
[null,"Phone Number:"]
[null,"Body & Headstock Shapes available in this models"]
[null,"CS Body Model"]
[null,"Space Body Model"]
[null,"Moon Body Model"]
[null,"MS Body Model"]
[null,"A-1 Headstock Model"]
[null,"A-2 Headstock Model"]
[null,"A-3 Headstock Model"]
[null,"CS Headstock Model"]
[null,"MS Headstock Model"]

{"sheet":"Headless Option List","index":3,"n_rows":186,"n_cols":7,"rows_kept":186,"cut":false,"hidden":true,"merged":[[144,4,147,4],[148,4,151,4]]}
["Group","Description","Options","Rate $","2nd Rate","Russian Rates"]
["General Specifications","Model","Select Option",null,null,null,"Rate with formula, only change Russian rate"]
["General Specifications","Model","Neptune",2100]
["General Specifications","Model","Saturn",2250]
["General Specifications","Number of strings","Select Option"]
["General Specifications","Number of strings",6,0]
["General Specifications","Number of strings",7,65]
["General Specifications","Number of strings",8,115]
["General Specifications","Scale length","Select Option"]
["General Specifications","Scale length","25,5\"",0]
["General Specifications","Scale length","26\"",0]
["General Specifications","Scale length","26,5\"",0]
["General Specifications","Scale length","27\"",0]
["General Specifications","Scale length","28\"",0]
["General Specifications","Scale length","Multiscale",200]
["General Specifications","Neck joint construction","Select Option"]
["General Specifications","Neck joint construction","Bolt-on",0]
["General Specifications","Neck joint construction","Set neck",65]
["Neck Specifications","Number of frets","Select Option"]
["Neck Specifications","Number of frets",24,0]
["Neck Specifications","Fretwire","Select Option"]
["Neck Specifications","Fretwire","Jescar stainless steel 2,3x1,4mm",0]
["Neck Specifications","Fretwire","Jescar stainless steel 2,5x1,3mm",0]
["Neck Specifications","Fretwire","Evo Gold 2,3x1,4mm",25]
["Neck Specifications","Fretwire","Jescar nickel-silver 2,3x1,4mm",0]
["Neck Specifications","Fretwire","Jescar nickel-silver 2,5x1,3mm",0]
["Neck Specifications","Neck pieces","Select Option"]
["Neck Specifications","Neck pieces",1,0]
["Neck Specifications","Neck pieces",3,0]
["Neck Specifications","Neck pieces",5,0]
["Neck Specifications","Neck pieces",7,50]
["Neck Specifications","Neck pieces","7 + 2 veneer  layers",60]
["Neck Specifications","Neck pieces","7 + 4 veneer  layers",70]
["Neck Specifications","Neck wood ","Select Option"]
["Neck Specifications","Neck wood ","1 Piece Neck Wood","none",0]
["Neck Specifications","Neck wood ","1 Piece Neck Wood","Hard maple",0]
["Neck Specifications","Neck wood ","1 Piece Neck Wood","Flame maple",190]
["Neck Specifications","Neck wood ","1 Piece Neck Wood","African mahogany",65]
["Neck Specifications","Neck wood ","1 Piece Neck Wood","Bird`s eye maple",190]
["Neck Specifications","Neck wood ","1 Piece Neck Wood","Pau Ferro",175]
["Neck Specifications","Neck wood ","1 Piece Neck Wood","Padouk ",80]
["Neck Specifications","Neck wood ","1 Piece Neck Wood","Other ( contact for price )",0]
["Neck Specifications","Neck wood ","Select Option"]
["Neck Specifications","Neck wood ","Multi-piece Neck Base Wood ","none",0]
["Neck Specifications","Neck wood ","Multi-piece Neck Base Wood ","Hard maple",40]
["Neck Specifications","Neck wood ","Multi-piece Neck Base Wood ","Flame maple",190]
["Neck Specifications","Neck wood ","Multi-piece Neck Base Wood ","African mahogany",65]
["Neck Specifications","Neck wood ","Multi-piece Neck Base Wood ","Pau Ferro",175]
["Neck Specifications","Neck wood ","Multi-piece Neck Base Wood ","Padouk",80]
["Neck Specifications","Neck wood ","Multi-piece Neck Base Wood ","Sapele",80]
["Neck Specifications","Neck wood ","Multi-piece Neck Base Wood ","Limba",80]
["Neck Specifications","Neck wood ","Multi-piece Neck Base Wood ","Walnut",80]
["Neck Specifications","Neck wood ","Multi-piece Neck Base Wood ","Wenge",175]
["Neck Specifications","Neck wood ","Multi-piece Neck Base Wood ","Purpleheart",150]
["Neck Specifications","Neck wood ","Multi-piece Neck Base Wood ","Other ( contact for price )",0]
["Neck Specifications","Neck wood ","Select Option"]
["Neck Specifications","Neck wood ","Multi-piece Neck Thins Wood ","none",0]
["Neck Specifications","Neck wood ","Multi-piece Neck Thins Wood ","Hard maple",0]
["Neck Specifications","Neck wood ","Multi-piece Neck Thins Wood ","Padouk",25]
["Neck Specifications","Neck wood ","Multi-piece Neck Thins Wood ","African mahogany",20]
["Neck Specifications","Neck wood ","Multi-piece Neck Thins Wood ","Bubinga",45]
["Neck Specifications","Neck wood ","Multi-piece Neck Thins Wood ","Sapele",25]
["Neck Specifications","Neck wood ","Multi-piece Neck Thins Wood ","Limba",25]
["Neck Specifications","Neck wood ","Multi-piece Neck Thins Wood ","Walnut",25]
["Neck Specifications","Neck wood ","Multi-piece Neck Thins Wood ","Wenge",55]
["Neck Specifications","Neck wood ","Multi-piece Neck Thins Wood ","Purpleheart",45]
["Neck Specifications","Neck wood ","Multi-piece Neck Thins Wood ","Other ( contact for price )",0]
["Neck Specifications","Fretboard wood","Select Option"]
["Neck Specifications","Fretboard wood","Pau ferro",0]
["Neck Specifications","Fretboard wood","Pale moon ebony",115]
["Neck Specifications","Fretboard wood","Ebony",85]
["Neck Specifications","Fretboard wood","Macassar",85]
["Neck Specifications","Fretboard wood","Hard maple",0]
["Neck Specifications","Fretboard wood","Bird`s eye maple",75]
["Neck Specifications","Fretboard wood","Zebrano",50]
["Neck Specifications","Fretboard wood","Ziricote",85]
["Neck Specifications","Fretboard wood","Other exotic wood (contact for the price)",0]
["Neck Specifications","Fretboard radius","Select Option"]
["Neck Specifications","Fretboard radius","10\"",0]
["Neck Specifications","Fretboard radius","12\"",0]
["Neck Specifications","Fretboard radius","16\"",0]
["Neck Specifications","Fretboard radius","20\"",0]
["Neck Specifications","Fretboard radius","Compound radius",85]
["Neck Specifications","Fretboard binding ","Select Option"]
["Neck Specifications","Fretboard binding ","None",0]
["Neck Specifications","Fretboard binding ","Binding 1 ply",50]
["Neck Specifications","Fretboard binding ","Binding 2 ply",100]
["Neck Specifications","Fretboard inlays","Select Option"]
["Neck Specifications","Fretboard inlays","None",0]
["Neck Specifications","Fretboard inlays","MOP dots 4mm",0]
["Neck Specifications","Fretboard inlays","MOP dots 6mm",0]
["Neck Specifications","Fretboard inlays","Wooden blocks",50]
["Neck Specifications","Fretboard inlays","Aluminium rings ",35]
["Neck Specifications","Fretboard inlays","Custom design \"simple\"",50]
["Neck Specifications","Fretboard inlays","Custom design \"medium\"",115]
["Neck Specifications","Fretboard inlays","Custom design \"complicated\"",165]
["Neck Specifications","Side markers","Select Option"]
["Neck Specifications","Side markers","None",0]
["Neck Specifications","Side markers","Plastic dots 2mm",0]
["Neck Specifications","Side markers","MOP dots 2mm",0]
["Neck Specifications","Side markers","Luminlay 3mm",0]
["Neck Specifications","Side markers","Wood or plastic blocks",50]
["Neck Specifications","Side markers","MOP blocks",60]
["Body Specifications","Body wood","Select Option"]
["Body Specifications","Body wood","Alder",{"$f":"F105*'Exchange Rate Calculation'!$Q$7","v":0}]
["Body Specifications","Body wood","White ash",{"$f":"F106*'Exchange Rate Calculation'!$Q$7","v":0}]
["Body Specifications","Body wood","Swamp ash",250]
["Body Specifications","Body wood","African mahogany",100]
["Body Specifications","Body wood","Basswood",0]
["Body Specifications","Body wood","Limba",200]
["Body Specifications","Body wood","Sapele",85]
["Body Specifications","Front body carvings","Select Option"]
["Body Specifications","Front body carvings","Arm bevel",0]
["Body Specifications","Body chambers","Select Option"]
["Body Specifications","Body chambers","None",0]
["Body Specifications","Body chambers","Weight reducing chambers (only with top)",60]
["Body Specifications","Top wood","Select Option"]
["Body Specifications","Top wood","None",0]
["Body Specifications","Top wood","White ash 5-9mm",0]
["Body Specifications","Top wood","Flame maple 5mm",165]
["Body Specifications","Top wood","Quilted maple 5mm",165]
["Body Specifications","Top wood","Spalted maple 3mm",135]
["Body Specifications","Top wood","Poplar burl 3mm",135]
["Body Specifications","Top wood","Walnut",65]
["Body Specifications","Top wood","Purpleheart",65]
["Body Specifications","Top wood","Other exotic wood (contact for the price)",0]
["Body Specifications","Body binding","Select Option"]
["Body Specifications","Body binding","None",0]
["Body Specifications","Body binding","Scraped binding",{"$f":"F129*'Exchange Rate Calculation'!$Q$7","v":0}]
["Body Specifications","Body binding","Binding 1 ply",50]
["Body Specifications","Body binding","Binding 2 ply",100]
["Body Specifications","Finish","Select Option"]
["Body Specifications","Finish","Satin open pores",{"$f":"F133*'Exchange Rate Calculation'!$Q$7","v":0}]
["Body Specifications","Finish","Oil",75]
["Body Specifications","Finish","Gloss (bolt-on)",135]
["Body Specifications","Finish","Gloss (set neck)",200]
["Body Specifications","Finish","Gloss top (bolt-on)",50]
["Body Specifications","Finish","Gloss top (set neck)",85]
["Body Specifications","Colour","Select Option"]
["Body Specifications","Colour","Clear",0]
["Body Specifications","Colour","Uniform colour",{"$f":"F141*'Exchange Rate Calculation'!$Q$7","v":0}]
["Body Specifications","Colour","Burst",30]
["Body Specifications","Colour","Painted pores (top)",35]
["Body Specifications","Colour","Painted pores (body)",70]
["Hardware","Bridge","Select Option",null," < THESE FOR CONSTANT SCALE "]
["Hardware","Bridge","None",0]
["Hardware","Bridge","Hipshot headless ",0]
["Hardware","Bridge","Other ( contact for price )"]
["Hardware","Bridge Single Sadle system","Select Option",null," < THESE FOR CONSTANT SCALE AND MULTISCALE"]
["Hardware","Bridge Single Sadle system","None",0]
["Hardware","Bridge Single Sadle system","Mera Submarine",30]
["Hardware","Bridge Single Sadle system","Other ( contact for price )",0]
["Hardware","Headpiece","Select Option"]
["Hardware","Headpiece","Hipshot Headpiece",0]
["Hardware","Headpiece","Mera Droplet",0]
["Hardware","Headpiece","Other ( contact for price )",0]
["Electronics","Neck Pickup","Select Option"]
["Electronics","Neck Pickup","None",0]
["Electronics","Neck Pickup","ARB",0]
["Electronics","Neck Pickup","Fokin pickups",0]
["Electronics","Neck Pickup","Dimarzio ",67]
["Electronics","Neck Pickup","Seymour Duncan",57]
["Electronics","Neck Pickup","BKP",100]
["Electronics","Neck Pickup","Other ( contact for price )",0]
["Electronics","Middle Pickup","Select Option"]
["Electronics","Middle Pickup","None",0]
["Electronics","Middle Pickup","Other ( contact for price )",0]
["Electronics","Bridge Pickup","Select Option"]
["Electronics","Bridge Pickup","None",0]
["Electronics","Bridge Pickup","ARB",0]
["Electronics","Bridge Pickup","Fokin pickups",0]
["Electronics","Bridge Pickup","Dimarzio ",67]
["Electronics","Bridge Pickup","Seymour Duncan",57]
["Electronics","Bridge Pickup","BKP",100]
["Electronics","Bridge Pickup","Other ( contact for price )",0]
["Electronics","Pickup Switch","Select Option"]
["Electronics","Pickup Switch","3-way Toggle Switch",0]
["Electronics","Pickup Switch","3-way Blade Switch",0]
["Electronics","Pickup Switch","5-way Blade Switch",0]
["Electronics","Pickup Switch","5-way Mega Switch",25]
["Electronics","Knobs","Select Option"]
["Electronics","Knobs","1 Volume",0]
["Electronics","Knobs","1 Volume 1 Tone",0]
["Electronics","Knobs","2 Volumes",0]
["Electronics","Knobs","2 Volumes 1 Tone",0]
["Electronics","Knobs","2 Volumes 2 Tones",0]

{"sheet":"Headless Padalka Calculation","index":4,"n_rows":61,"n_cols":6,"rows_kept":61,"cut":false,"hidden":false,"merged":[[4,1,4,4],[5,3,5,4],[58,1,58,4],[59,2,59,4],[60,2,60,4],[56,2,56,4],[57,2,57,4],[52,1,52,2],[52,3,52,4],[53,2,53,4],[54,2,54,4],[55,2,55,4],[6,1,6,4],[11,1,11,16383],[15,1,15,4],[23,1,23,16383],[29,1,29,16383],[37,1,37,16383],[43,1,43,4],[16,1,16,4],[18,1,18,4],[38,1,38,4],[40,1,40,16383]]}
[]
[]
[]
[]
[null,"Specifications"]
["Part","Description","Choosen option","Cost"]
["General Specifications","General Specifications"]
["General Specifications","Model",{"$f":"IFERROR(INDEX('Superstrat Option List'!C2:C278,MATCH(#REF!&A8&B8,'Superstrat Option List'!#REF!&'Superstrat Option List'!A2:A278&'Superstrat Option List'!B2:B278,0)),\"Select Option\")","v":"Select Option"},{"$f":"IFERROR(INDEX('Headless Option List'!D2:D2508,MATCH(A8&B8&C8,'Headless Option List'!A2:A2508&'Headless Option List'!B2:B2508&'Headless Option List'!C2:C2508,0)),\"Please choose option\")","v":0}]
["General Specifications","Number of Strings",{"$f":"IFERROR(INDEX('Superstrat Option List'!C3:C278,MATCH(#REF!&A9&B9,'Superstrat Option List'!#REF!&'Superstrat Option List'!A3:A278&'Superstrat Option List'!B3:B278,0)),\"Select Option\")","v":"Select Option"},{"$f":"IFERROR(INDEX('Headless Option List'!D3:D2509,MATCH(A9&B9&C9,'Headless Option List'!A3:A2509&'Headless Option List'!B3:B2509&'Headless Option List'!C3:C2509,0)),\"Please choose option\")","v":0}]
["General Specifications","Scale Length",{"$f":"IFERROR(INDEX('Superstrat Option List'!C4:C278,MATCH(#REF!&A10&B10,'Superstrat Option List'!#REF!&'Superstrat Option List'!A4:A278&'Superstrat Option List'!B4:B278,0)),\"Select Option\")","v":"Select Option"},{"$f":"IFERROR(INDEX('Headless Option List'!D4:D2510,MATCH(A10&B10&C10,'Headless Option List'!A4:A2510&'Headless Option List'!B4:B2510&'Headless Option List'!C4:C2510,0)),\"Please choose option\")","v":0}]
["General Specifications","Neck Joint Construction",{"$f":"IFERROR(INDEX('Superstrat Option List'!C6:C278,MATCH(#REF!&A11&B11,'Superstrat Option List'!#REF!&'Superstrat Option List'!A6:A278&'Superstrat Option List'!B6:B278,0)),\"Select Option\")","v":"Select Option"},{"$f":"IFERROR(INDEX('Headless Option List'!D6:D2512,MATCH(A11&B11&C11,'Headless Option List'!A6:A2512&'Headless Option List'!B6:B2512&'Headless Option List'!C6:C2512,0)),\"Please choose option\")","v":0}]
[null,"Neck Specifications"]
["Neck Specifications","Number of frets",{"$f":"IFERROR(INDEX('Superstrat Option List'!C7:C278,MATCH(#REF!&A13&B13,'Superstrat Option List'!#REF!&'Superstrat Option List'!A7:A278&'Superstrat Option List'!B7:B278,0)),\"Select Option\")","v":"Select Option"},{"$f":"IFERROR(INDEX('Headless Option List'!D9:D2515,MATCH(A13&B13&C13,'Headless Option List'!A9:A2515&'Headless Option List'!B9:B2515&'Headless Option List'!C9:C2515,0)),\"Please choose option\")","v":0}]
["Neck Specifications","Fretwire",{"$f":"IFERROR(INDEX('Superstrat Option List'!C7:C278,MATCH(#REF!&A14&B14,'Superstrat Option List'!#REF!&'Superstrat Option List'!A7:A278&'Superstrat Option List'!B7:B278,0)),\"Select Option\")","v":"Select Option"},{"$f":"IFERROR(INDEX('Headless Option List'!D10:D2516,MATCH(A14&B14&C14,'Headless Option List'!A10:A2516&'Headless Option List'!B10:B2516&'Headless Option List'!C10:C2516,0)),\"Please choose option\")","v":0}]
["Neck Specifications","Neck pieces",{"$f":"IFERROR(INDEX('Superstrat Option List'!C7:C278,MATCH(#REF!&A15&B15,'Superstrat Option List'!#REF!&'Superstrat Option List'!A7:A278&'Superstrat Option List'!B7:B278,0)),\"Select Option\")","v":"Select Option"},{"$f":"IFERROR(INDEX('Headless Option List'!D10:D2517,MATCH(A15&B15&C15,'Headless Option List'!A10:A2517&'Headless Option List'!B10:B2517&'Headless Option List'!C10:C2517,0)),\"Please choose option\")","v":0}]
[null,"Neck wood "]
[null,"Select option below for 1 piece neck "]
["Neck Specifications","1 Piece Neck Wood",{"$f":"IFERROR(INDEX('Superstrat Option List'!C10:C281,MATCH(#REF!&A18&B18,'Superstrat Option List'!#REF!&'Superstrat Option List'!A10:A281&'Superstrat Option List'!B10:B281,0)),\"Select Option\")","v":"Select Option"},{"$f":"IFERROR(INDEX('Superstrat Option List'!E14:E1941,MATCH(A18&$B$16&B18&C18,'Superstrat Option List'!A14:A1941&'Superstrat Option List'!B14:B1941&'Superstrat Option List'!C14:C1941&'Superstrat Option List'!D14:D1941,0)),\"Please choose option\")","v":0}]
[null,"Select options below for Multi-piece neck"]
["Neck Specifications","Multi-piece Neck Base Wood ",{"$f":"IFERROR(INDEX('Superstrat Option List'!C12:C283,MATCH(#REF!&A20&B20,'Superstrat Option List'!#REF!&'Superstrat Option List'!A12:A283&'Superstrat Option List'!B12:B283,0)),\"Select Option\")","v":"Select Option"},{"$f":"IFERROR(INDEX('Superstrat Option List'!E16:E1943,MATCH(A20&$B$16&B20&C20,'Superstrat Option List'!A16:A1943&'Superstrat Option List'!B16:B1943&'Superstrat Option List'!C16:C1943&'Superstrat Option List'!D16:D1943,0)),\"Please choose option\")","v":0}]
["Neck Specifications","Multi-piece Neck Thins Wood ",{"$f":"IFERROR(INDEX('Superstrat Option List'!C12:C284,MATCH(#REF!&A21&B21,'Superstrat Option List'!#REF!&'Superstrat Option List'!A12:A284&'Superstrat Option List'!B12:B284,0)),\"Select Option\")","v":"Select Option"},{"$f":"IFERROR(INDEX('Superstrat Option List'!E17:E1944,MATCH(A21&$B$16&B21&C21,'Superstrat Option List'!A17:A1944&'Superstrat Option List'!B17:B1944&'Superstrat Option List'!C17:C1944&'Superstrat Option List'!D17:D1944,0)),\"Please choose option\")","v":0}]
["Neck Specifications","Multi-piece Neck Thins Wood ",{"$f":"IFERROR(INDEX('Superstrat Option List'!C13:C285,MATCH(#REF!&A22&B22,'Superstrat Option List'!#REF!&'Superstrat Option List'!A13:A285&'Superstrat Option List'!B13:B285,0)),\"Select Option\")","v":"Select Option"},{"$f":"IFERROR(INDEX('Superstrat Option List'!E18:E1945,MATCH(A22&$B$16&B22&C22,'Superstrat Option List'!A18:A1945&'Superstrat Option List'!B18:B1945&'Superstrat Option List'!C18:C1945&'Superstrat Option List'!D18:D1945,0)),\"Please choose option\")","v":0}]
["Neck Specifications","Multi-piece Neck Thins Wood ",{"$f":"IFERROR(INDEX('Superstrat Option List'!C14:C286,MATCH(#REF!&A23&B23,'Superstrat Option List'!#REF!&'Superstrat Option List'!A14:A286&'Superstrat Option List'!B14:B286,0)),\"Select Option\")","v":"Select Option"},{"$f":"IFERROR(INDEX('Superstrat Option List'!E19:E1946,MATCH(A23&$B$16&B23&C23,'Superstrat Option List'!A19:A1946&'Superstrat Option List'!B19:B1946&'Superstrat Option List'!C19:C1946&'Superstrat Option List'!D19:D1946,0)),\"Please choose option\")","v":0}]
[null,"Fretboard Specifications"]
["Neck Specifications","Fretboard wood",{"$f":"IFERROR(INDEX('Superstrat Option List'!C29:C278,MATCH(#REF!&A25&B25,'Superstrat Option List'!#REF!&'Superstrat Option List'!A29:A278&'Superstrat Option List'!B29:B278,0)),\"Select Option\")","v":"Select Option"},{"$f":"IFERROR(INDEX('Headless Option List'!D21:D2530,MATCH(A25&B25&C25,'Headless Option List'!A21:A2530&'Headless Option List'!B21:B2530&'Headless Option List'!C21:C2530,0)),\"Please choose option\")","v":0}]
["Neck Specifications","Fretboard radius",{"$f":"IFERROR(INDEX('Superstrat Option List'!C29:C278,MATCH(#REF!&A26&B26,'Superstrat Option List'!#REF!&'Superstrat Option List'!A29:A278&'Superstrat Option List'!B29:B278,0)),\"Select Option\")","v":"Select Option"},{"$f":"IFERROR(INDEX('Headless Option List'!D22:D2531,MATCH(A26&B26&C26,'Headless Option List'!A22:A2531&'Headless Option List'!B22:B2531&'Headless Option List'!C22:C2531,0)),\"Please choose option\")","v":0}]
["Neck Specifications","Fretboard binding ",{"$f":"IFERROR(INDEX('Superstrat Option List'!C30:C278,MATCH(#REF!&A27&B27,'Superstrat Option List'!#REF!&'Superstrat Option List'!A30:A278&'Superstrat Option List'!B30:B278,0)),\"Select Option\")","v":"Select Option"},{"$f":"IFERROR(INDEX('Headless Option List'!D23:D2533,MATCH(A27&B27&C27,'Headless Option List'!A23:A2533&'Headless Option List'!B23:B2533&'Headless Option List'!C23:C2533,0)),\"Please choose option\")","v":0}]
["Neck Specifications","Fretboard inlays",{"$f":"IFERROR(INDEX('Superstrat Option List'!C30:C278,MATCH(#REF!&A28&B28,'Superstrat Option List'!#REF!&'Superstrat Option List'!A30:A278&'Superstrat Option List'!B30:B278,0)),\"Select Option\")","v":"Select Option"},{"$f":"IFERROR(INDEX('Headless Option List'!D24:D2534,MATCH(A28&B28&C28,'Headless Option List'!A24:A2534&'Headless Option List'!B24:B2534&'Headless Option List'!C24:C2534,0)),\"Please choose option\")","v":0}]
["Neck Specifications","Side markers",{"$f":"IFERROR(INDEX('Superstrat Option List'!C31:C278,MATCH(#REF!&A29&B29,'Superstrat Option List'!#REF!&'Superstrat Option List'!A31:A278&'Superstrat Option List'!B31:B278,0)),\"Select Option\")","v":"Select Option"},{"$f":"IFERROR(INDEX('Headless Option List'!D25:D2535,MATCH(A29&B29&C29,'Headless Option List'!A25:A2535&'Headless Option List'!B25:B2535&'Headless Option List'!C25:C2535,0)),\"Please choose option\")","v":0}]
[null,"Body Specifications"]
["Body Specifications","Body wood",{"$f":"IFERROR(INDEX('Superstrat Option List'!C39:C278,MATCH(#REF!&A31&B31,'Superstrat Option List'!#REF!&'Superstrat Option List'!A39:A278&'Superstrat Option List'!B39:B278,0)),\"Select Option\")","v":"Select Option"},{"$f":"IFERROR(INDEX('Headless Option List'!D28:D2539,MATCH(A31&B31&C31,'Headless Option List'!A28:A2539&'Headless Option List'!B28:B2539&'Headless Option List'!C28:C2539,0)),\"Please choose option\")","v":0}]
["Body Specifications","Front body carvings",{"$f":"IFERROR(INDEX('Superstrat Option List'!C41:C278,MATCH(#REF!&A32&B32,'Superstrat Option List'!#REF!&'Superstrat Option List'!A41:A278&'Superstrat Option List'!B41:B278,0)),\"Select Option\")","v":"Select Option"},{"$f":"IFERROR(INDEX('Headless Option List'!D29:D2540,MATCH(A32&B32&C32,'Headless Option List'!A29:A2540&'Headless Option List'!B29:B2540&'Headless Option List'!C29:C2540,0)),\"Please choose option\")","v":0}]
["Body Specifications","Body chambers",{"$f":"IFERROR(INDEX('Superstrat Option List'!C43:C278,MATCH(#REF!&A33&B33,'Superstrat Option List'!#REF!&'Superstrat Option List'!A43:A278&'Superstrat Option List'!B43:B278,0)),\"Select Option\")","v":"Select Option"},{"$f":"IFERROR(INDEX('Headless Option List'!D31:D2542,MATCH(A33&B33&C33,'Headless Option List'!A31:A2542&'Headless Option List'!B31:B2542&'Headless Option List'!C31:C2542,0)),\"Please choose option\")","v":0}]
["Body Specifications","Top wood",{"$f":"IFERROR(INDEX('Superstrat Option List'!C44:C278,MATCH(#REF!&A34&B34,'Superstrat Option List'!#REF!&'Superstrat Option List'!A44:A278&'Superstrat Option List'!B44:B278,0)),\"Select Option\")","v":"Select Option"},{"$f":"IFERROR(INDEX('Headless Option List'!D32:D2543,MATCH(A34&B34&C34,'Headless Option List'!A32:A2543&'Headless Option List'!B32:B2543&'Headless Option List'!C32:C2543,0)),\"Please choose option\")","v":0}]
["Body Specifications","Body binding",{"$f":"IFERROR(INDEX('Superstrat Option List'!C45:C278,MATCH(#REF!&A35&B35,'Superstrat Option List'!#REF!&'Superstrat Option List'!A45:A278&'Superstrat Option List'!B45:B278,0)),\"Select Option\")","v":"Select Option"},{"$f":"IFERROR(INDEX('Headless Option List'!D34:D2545,MATCH(A35&B35&C35,'Headless Option List'!A34:A2545&'Headless Option List'!B34:B2545&'Headless Option List'!C34:C2545,0)),\"Please choose option\")","v":0}]
["Body Specifications","Finish",{"$f":"IFERROR(INDEX('Superstrat Option List'!C46:C278,MATCH(#REF!&A36&B36,'Superstrat Option List'!#REF!&'Superstrat Option List'!A46:A278&'Superstrat Option List'!B46:B278,0)),\"Select Option\")","v":"Select Option"},{"$f":"IFERROR(INDEX('Headless Option List'!D35:D2546,MATCH(A36&B36&C36,'Headless Option List'!A35:A2546&'Headless Option List'!B35:B2546&'Headless Option List'!C35:C2546,0)),\"Please choose option\")","v":0}]
["Body Specifications","Colour",{"$f":"IFERROR(INDEX('Superstrat Option List'!C48:C278,MATCH(#REF!&A37&B37,'Superstrat Option List'!#REF!&'Superstrat Option List'!A48:A278&'Superstrat Option List'!B48:B278,0)),\"Select Option\")","v":"Select Option"},{"$f":"IFERROR(INDEX('Headless Option List'!D37:D2548,MATCH(A37&B37&C37,'Headless Option List'!A37:A2548&'Headless Option List'!B37:B2548&'Headless Option List'!C37:C2548,0)),\"Please choose option\")","v":0}]
[null,"Hardware"]
[null,"Select Option below for Standard scale"]
["Hardware","Bridge","Select Option",{"$f":"IFERROR(INDEX('Headless Option List'!D43:D2554,MATCH(A40&B40&C40,'Headless Option List'!A43:A2554&'Headless Option List'!B43:B2554&'Headless Option List'!C43:C2554,0)),\"Please choose option\")","v":0}]
[null,"Select Option below for Multi-scale or Standard scale"]
["Hardware","Bridge Single Sadle system","Select Option",{"$f":"IFERROR(F42*C9,\"$0,00\")","v":"$0,00"},null,{"$f":"IFERROR(INDEX('Headless Option List'!D45:D2556,MATCH(A42&B42&C42,'Headless Option List'!A45:A2556&'Headless Option List'!B45:B2556&'Headless Option List'!C45:C2556,0)),\"Please choose option\")","v":0}]
["Hardware","Headpiece",{"$f":"IFERROR(INDEX('Superstrat Option List'!C53:C278,MATCH(#REF!&A43&B43,'Superstrat Option List'!#REF!&'Superstrat Option List'!A53:A278&'Superstrat Option List'!B53:B278,0)),\"Select Option\")","v":"Select Option"},{"$f":"INDEX('Headless Option List'!D2:D186,MATCH('Headless Padalka Calculation'!A43&'Headless Padalka Calculation'!B43&'Headless Padalka Calculation'!C43,'Headless Option List'!A2:A186&'Headless Option List'!B2:B186&'Headless Option List'!C2:C186,0))","v":0}]
[null,"Electronics"]
["Electronics","Neck Pickup",{"$f":"IFERROR(INDEX('Superstrat Option List'!C61:C278,MATCH(#REF!&A45&B45,'Superstrat Option List'!#REF!&'Superstrat Option List'!A61:A278&'Superstrat Option List'!B61:B278,0)),\"Select Option\")","v":"Select Option"},{"$f":"IFERROR(INDEX('Headless Option List'!D56:D2562,MATCH(A45&B45&C45,'Headless Option List'!A56:A2562&'Headless Option List'!B56:B2562&'Headless Option List'!C56:C2562,0)),\"Please choose option\")","v":0}]
["Electronics","Describe Pickup Model"]
["Electronics","Middle Pickup",{"$f":"IFERROR(INDEX('Superstrat Option List'!C63:C278,MATCH(#REF!&A47&B47,'Superstrat Option List'!#REF!&'Superstrat Option List'!A63:A278&'Superstrat Option List'!B63:B278,0)),\"Select Option\")","v":"Select Option"},{"$f":"IFERROR(INDEX('Headless Option List'!D58:D2564,MATCH(A47&B47&C47,'Headless Option List'!A58:A2564&'Headless Option List'!B58:B2564&'Headless Option List'!C58:C2564,0)),\"Please choose option\")","v":0}]
["Electronics","Describe Pickup Model"]
["Electronics","Bridge Pickup",{"$f":"IFERROR(INDEX('Superstrat Option List'!C67:C278,MATCH(#REF!&A49&B49,'Superstrat Option List'!#REF!&'Superstrat Option List'!A67:A278&'Superstrat Option List'!B67:B278,0)),\"Select Option\")","v":"Select Option"},{"$f":"IFERROR(INDEX('Headless Option List'!D59:D2566,MATCH(A49&B49&C49,'Headless Option List'!A59:A2566&'Headless Option List'!B59:B2566&'Headless Option List'!C59:C2566,0)),\"Please choose option\")","v":0}]
["Electronics","Describe Pickup Model"]
["Electronics","Pickup Switch",{"$f":"IFERROR(INDEX('Superstrat Option List'!C75:C278,MATCH(#REF!&A51&B51,'Superstrat Option List'!#REF!&'Superstrat Option List'!A75:A278&'Superstrat Option List'!B75:B278,0)),\"Select Option\")","v":"Select Option"},{"$f":"IFERROR(INDEX('Headless Option List'!D61:D2568,MATCH(A51&B51&C51,'Headless Option List'!A61:A2568&'Headless Option List'!B61:B2568&'Headless Option List'!C61:C2568,0)),\"Please choose option\")","v":0}]
["Electronics","Knobs",{"$f":"IFERROR(INDEX('Superstrat Option List'!C78:C278,MATCH(#REF!&A52&B52,'Superstrat Option List'!#REF!&'Superstrat Option List'!A78:A278&'Superstrat Option List'!B78:B278,0)),\"Select Option\")","v":"Select Option"},{"$f":"IFERROR(INDEX('Headless Option List'!D67:D2569,MATCH(A52&B52&C52,'Headless Option List'!A67:A2569&'Headless Option List'!B67:B2569&'Headless Option List'!C67:C2569,0)),\"Please choose option\")","v":0}]
[null,"Total  ",null,{"$f":"SUM(D8:D52)","v":0}]
[null,"Name:"]
[null,"Country :"]
[null,"Adress :"]
[null,"E-mail :"]
[null,"Phone Number:"]
[null,"Body & Headstock Shapes available in this models"]
[null,"Neptune Model"]
[null,"Saturn Model"]

{"sheet":"Strathing Option List","index":5,"n_rows":207,"n_cols":7,"rows_kept":207,"cut":false,"hidden":true,"merged":[]}
["Group","Description","Options","Rate $","2nd Rate","Russian Rates"]
["General Specifications","Model","Select Option",null,null,null,"Rate with formula, only change Russian rate"]
["General Specifications","Model","Earth",{"$f":"F3*'Exchange Rate Calculation'!$Q$7","v":833.33},null,50000]
["General Specifications","Number of strings","Select Option"]
["General Specifications","Number of strings",6,0]
["General Specifications","Scale length","Select Option"]
["General Specifications","Scale length","24,75\"",0]
["General Specifications","Scale length","25,5\"",0]
["General Specifications","Scale length","26\"",0]
["General Specifications","Scale length","26,5\"",0]
["General Specifications","Scale length","27\"",0]
["General Specifications","Scale length","28\"",0]
["General Specifications","Neck joint construction","Select Option"]
["General Specifications","Neck joint construction","Bolt-on",0]
["Neck Specifications","Number of frets","Select Option"]
["Neck Specifications","Number of frets",22,0]
["Neck Specifications","Number of frets",24,0]
["Neck Specifications","Fretwire","Select Option"]
["Neck Specifications","Fretwire","Jescar stainless steel 2,3x1,4mm",25]
["Neck Specifications","Fretwire","Jescar stainless steel 2,5x1,3mm",25]
["Neck Specifications","Fretwire","Evo Gold 2,3x1,4mm",30]
["Neck Specifications","Fretwire","Jescar nickel-silver 2,3x1,4mm",10]
["Neck Specifications","Fretwire","Jescar nickel-silver 2,5x1,3mm",10]
["Neck Specifications","Neck pieces","Select Option"]
["Neck Specifications","Neck pieces",1,0]
["Neck Specifications","Neck pieces",3,{"$f":"F26*'Exchange Rate Calculation'!$Q$7","v":24.9999},null,1500]
["Neck Specifications","Neck pieces",5,{"$f":"F27*'Exchange Rate Calculation'!$Q$7","v":33.333199999999998},null,2000]
["Neck Specifications","Neck pieces",7,{"$f":"F28*'Exchange Rate Calculation'!$Q$7","v":49.9998},null,3000]
["Neck Specifications","Neck pieces",9,{"$f":"F29*'Exchange Rate Calculation'!$Q$7","v":66.666399999999996},null,4000]
["Neck Specifications","Neck pieces",11,{"$f":"F30*'Exchange Rate Calculation'!$Q$7","v":83.332999999999998},null,5000]
["Neck Specifications","Neck wood ","Select Option"]
["Neck Specifications","Neck wood ","1 Piece Neck Wood","none",0]
["Neck Specifications","Neck wood ","1 Piece Neck Wood","Hard maple",{"$f":"F33*'Exchange Rate Calculation'!$Q$7","v":49.9998},3000]
["Neck Specifications","Neck wood ","1 Piece Neck Wood","Curly maple",120]
["Neck Specifications","Neck wood ","1 Piece Neck Wood","African mahogany",50]
["Neck Specifications","Neck wood ","1 Piece Neck Wood","Bird`s eye maple",140]
["Neck Specifications","Neck wood ","1 Piece Neck Wood","Rosewood",150]
["Neck Specifications","Neck wood ","1 Piece Neck Wood","Padouk ",50]
["Neck Specifications","Neck wood ","1 Piece Neck Wood","Other ( contact for price )",0]
["Neck Specifications","Neck wood ","Select Option"]
["Neck Specifications","Neck wood ","Multi-piece Neck Base Wood ","none",0]
["Neck Specifications","Neck wood ","Multi-piece Neck Base Wood ","Hard maple",40]
["Neck Specifications","Neck wood ","Multi-piece Neck Base Wood ","Curly maple",100]
["Neck Specifications","Neck wood ","Multi-piece Neck Base Wood ","African mahogany",50]
["Neck Specifications","Neck wood ","Multi-piece Neck Base Wood ","Rosewood",150]
["Neck Specifications","Neck wood ","Multi-piece Neck Base Wood ","Padouk",50]
["Neck Specifications","Neck wood ","Multi-piece Neck Base Wood ","Sapele",50]
["Neck Specifications","Neck wood ","Multi-piece Neck Base Wood ","Limba",50]
["Neck Specifications","Neck wood ","Multi-piece Neck Base Wood ","Walnut",70]
["Neck Specifications","Neck wood ","Multi-piece Neck Base Wood ","Wenge",70]
["Neck Specifications","Neck wood ","Multi-piece Neck Base Wood ","Purpleheart",70]
["Neck Specifications","Neck wood ","Multi-piece Neck Base Wood ","Other ( contact for price )",0]
["Neck Specifications","Neck wood ","Select Option"]
["Neck Specifications","Neck wood ","Multi-piece Neck Thins Wood ","none",0]
["Neck Specifications","Neck wood ","Multi-piece Neck Thins Wood ","Hard maple",20]
["Neck Specifications","Neck wood ","Multi-piece Neck Thins Wood ","Padouk",25]
["Neck Specifications","Neck wood ","Multi-piece Neck Thins Wood ","African mahogany",25]
["Neck Specifications","Neck wood ","Multi-piece Neck Thins Wood ","Bubinga",25]
["Neck Specifications","Neck wood ","Multi-piece Neck Thins Wood ","Sapele",25]
["Neck Specifications","Neck wood ","Multi-piece Neck Thins Wood ","Limba",35]
["Neck Specifications","Neck wood ","Multi-piece Neck Thins Wood ","Walnut",35]
["Neck Specifications","Neck wood ","Multi-piece Neck Thins Wood ","Wenge",35]
["Neck Specifications","Neck wood ","Multi-piece Neck Thins Wood ","Purpleheart",35]
["Neck Specifications","Neck wood ","Multi-piece Neck Thins Wood ","Other ( contact for price )",0]
["Neck Specifications","Fretboard wood","Select Option"]
["Neck Specifications","Fretboard wood","Rosewood",40]
["Neck Specifications","Fretboard wood","Cocobolo",80]
["Neck Specifications","Fretboard wood","Ebony",65]
["Neck Specifications","Fretboard wood","Macassar",65]
["Neck Specifications","Fretboard wood","Hard maple",10]
["Neck Specifications","Fretboard wood","Bird`s eye maple",100]
["Neck Specifications","Fretboard wood","Curly maple",80]
["Neck Specifications","Fretboard wood","Purpleheart",40]
["Neck Specifications","Fretboard wood","Other exotic wood (contact for the price)",0]
["Neck Specifications","Fretboard radius","Select Option"]
["Neck Specifications","Fretboard radius","10\"",0]
["Neck Specifications","Fretboard radius","12\"",0]
["Neck Specifications","Fretboard radius","16\"",0]
["Neck Specifications","Fretboard radius","20\"",0]
["Neck Specifications","Fretboard radius","Compound radius",{"$f":"F80*'Exchange Rate Calculation'!$Q$7","v":116.6662},null,7000]
["Neck Specifications","Headstock shape","Select Option"]
["Neck Specifications","Headstock shape","F-1",0]
["Neck Specifications","Fretboard binding ","Select Option"]
["Neck Specifications","Fretboard binding ","None",0]
["Neck Specifications","Fretboard binding ","Binding 1 ply",{"$f":"F85*'Exchange Rate Calculation'!$Q$7","v":46.66648},null,2800]
["Neck Specifications","Fretboard binding ","Binding 3 ply",{"$f":"F86*'Exchange Rate Calculation'!$Q$7","v":78.333020000000005},null,4700]
["Neck Specifications","Fretboard inlays","Select Option"]
["Neck Specifications","Fretboard inlays","None",0]
["Neck Specifications","Fretboard inlays","MOP dots 4 mm",13]
["Neck Specifications","Fretboard inlays","MOP dots 6mm",18]
["Neck Specifications","Fretboard inlays","MOP triangles 5mm",{"$f":"F91*'Exchange Rate Calculation'!$Q$7","v":38.333179999999999},null,2300]
["Neck Specifications","Fretboard inlays","Aluminium rings ",{"$f":"F92*'Exchange Rate Calculation'!$Q$7","v":41.666499999999999},null,2500]
["Neck Specifications","Fretboard inlays","Custom design \"simple\"",{"$f":"F93*'Exchange Rate Calculation'!$Q$7","v":58.333100000000002},null,3500]
["Neck Specifications","Fretboard inlays","Custom design \"medium\"",{"$f":"F94*'Exchange Rate Calculation'!$Q$7","v":108.3329},null,6500]
["Neck Specifications","Fretboard inlays","Custom design \"complicated\"",{"$f":"F95*'Exchange Rate Calculation'!$Q$7","v":153.33271999999999},null,9200]
["Neck Specifications","Side markers","Select Option"]
["Neck Specifications","Side markers","None",0]
["Neck Specifications","Side markers","Plastic dots 2mm",0]
["Neck Specifications","Side markers","MOP dots 2mm",5]
["Neck Specifications","Side markers","Luminlay 3mm",25]
["Neck Specifications","Side markers","Plastic blocks",{"$f":"F101*'Exchange Rate Calculation'!$Q$7","v":49.9998},null,3000]
["Neck Specifications","Side markers","MOP blocks",{"$f":"F102*'Exchange Rate Calculation'!$Q$7","v":54.999780000000001},null,3300]
["Body Specifications","Body wood","Select Option"]
["Body Specifications","Body wood","Alder",{"$f":"F104*'Exchange Rate Calculation'!$Q$7","v":49.9998},null,3000]
["Body Specifications","Body wood","White ash",{"$f":"F105*'Exchange Rate Calculation'!$Q$7","v":49.9998},null,3000]
["Body Specifications","Body wood","Swamp ash",260]
["Body Specifications","Body wood","African mahogany",100]
["Body Specifications","Body wood","Basswood",45]
["Body Specifications","Body wood","Limba",250]
["Body Specifications","Body wood","Sapele",100]
["Body Specifications","Front body carvings","Select Option"]
["Body Specifications","Front body carvings","Arm bevel",15]
["Body Specifications","Body chambers","Select Option"]
["Body Specifications","Body chambers","None",0]
["Body Specifications","Body chambers","Weight reducing chambers (only with top)",60]
["Body Specifications","Top wood","Select Option"]
["Body Specifications","Top wood","None",0]
["Body Specifications","Top wood","White ash 5-9mm",{"$f":"F118*'Exchange Rate Calculation'!$Q$7","v":66.666399999999996},null,4000]
["Body Specifications","Top wood","Flame maple 5mm",155]
["Body Specifications","Top wood","Quilted maple 5mm",185]
["Body Specifications","Top wood","Spalted maple 3mm",80]
["Body Specifications","Top wood","Poplar burl 3mm",80]
["Body Specifications","Top wood","Walnut",80]
["Body Specifications","Top wood","Purpleheart",100]
["Body Specifications","Top wood","Other exotic wood (contact for the price)",0]
["Body Specifications","Body binding","Select Option"]
["Body Specifications","Body binding","None",0]
["Body Specifications","Body binding","Scraped binding",{"$f":"F128*'Exchange Rate Calculation'!$Q$7","v":8.3332999999999995},null,500]
["Body Specifications","Body binding","Binding 1 ply",{"$f":"F129*'Exchange Rate Calculation'!$Q$7","v":49.9998},null,3000]
["Body Specifications","Body binding","Binding 3 ply",{"$f":"F130*'Exchange Rate Calculation'!$Q$7","v":91.666300000000007},null,5500]
["Body Specifications","Finish","Select Option"]
["Body Specifications","Finish","Satin open pores",{"$f":"F132*'Exchange Rate Calculation'!$Q$7","v":8.3332999999999995},null,500]
["Body Specifications","Finish","Oil",{"$f":"F133*'Exchange Rate Calculation'!$Q$7","v":83.332999999999998},null,5000]
["Body Specifications","Finish","Gloss (bolt-on)",{"$f":"F134*'Exchange Rate Calculation'!$Q$7","v":124.9995},null,7500]
["Body Specifications","Finish","Gloss top (bolt-on)",{"$f":"F135*'Exchange Rate Calculation'!$Q$7","v":49.9998},null,3000]
["Body Specifications","Colour","Select Option"]
["Body Specifications","Colour","Clear",0]
["Body Specifications","Colour","Uniform colour",{"$f":"F138*'Exchange Rate Calculation'!$Q$7","v":16.666599999999999},null,1000]
["Body Specifications","Colour","Burst",{"$f":"F139*'Exchange Rate Calculation'!$Q$7","v":33.333199999999998},null,2000]
["Body Specifications","Colour","Painted pores (top and headstock)",{"$f":"F140*'Exchange Rate Calculation'!$Q$7","v":33.333199999999998},null,2000]
["Body Specifications","Colour","Painted pores (body and headstock)",{"$f":"F141*'Exchange Rate Calculation'!$Q$7","v":66.666399999999996},null,4000]
["Hardware","Bridge","Select Option"]
["Hardware","Bridge","6str. Hipshot hardtail Black ",85]
["Hardware","Bridge","6str.Hipshot hardtail Chrome",85]
["Hardware","Bridge","6str.Hipshot hardtail Gold",110.5]
["Hardware","Bridge","6str. Hipshot US Contour Tremolo Black",103]
["Hardware","Bridge","6str. Hipshot US Contour Tremolo Chrome",103]
["Hardware","Bridge","6str. Hipshot US Contour Tremolo Gold",133]
["Hardware","Bridge","6str.Floyd Rose Chrome",165]
["Hardware","Bridge","6str.Floyd Rose Black",180]
["Hardware","Bridge","6str.Floyd Rose Gold",195]
["Hardware","Bridge","Other ( contact for price )",0]
["Hardware","Tuning machines","Select Option"]
["Hardware","Tuning machines","Hipshot Griplock chrome ",11]
["Hardware","Tuning machines","Hipshot Griplock black ",12]
["Hardware","Tuning machines","Hipshot Griplock gold ",13]
["Hardware","Tuning machines","Gotoh SG381 non-locking Black",9]
["Hardware","Tuning machines","Gotoh SG381 non-locking Chrome",9]
["Hardware","Tuning machines","Gotoh SG381 non-locking Gold",11.699999999999998]
["Electronics","Neck Pickup","Select Option"]
["Electronics","Neck Pickup","None",0]
["Electronics","Neck Pickup","ARB Humb",70]
["Electronics","Neck Pickup","Fokin pickups Humb",65]
["Electronics","Neck Pickup","Dimarzio Humb",110]
["Electronics","Neck Pickup","Seymour duncan Humb",90]
["Electronics","Neck Pickup","BKP Humb",125]
["Electronics","Neck Pickup","Fishman Fluence Modern",175]
["Electronics","Neck Pickup","ARB Singlecoil",60]
["Electronics","Neck Pickup","Fokin pickups Singlecoil",50]
["Electronics","Neck Pickup","Dimarzio Singlecoil",100]
["Electronics","Neck Pickup","Seymour duncan Singlecoil",85]
["Electronics","Neck Pickup","BKP Singlecoil",95]
["Electronics","Neck Pickup","Other ( contact for price )",0]
["Electronics","Middle Pickup","Select Option"]
["Electronics","Middle Pickup","None",0]
["Electronics","Middle Pickup","ARB Singlecoil",60]
["Electronics","Middle Pickup","Fokin pickups Singlecoil",50]
["Electronics","Middle Pickup","Dimarzio Singlecoil",100]
["Electronics","Middle Pickup","Seymour duncan Singlecoil",85]
["Electronics","Middle Pickup","BKP Singlecoil",95]
["Electronics","Middle Pickup","Other ( contact for price )",0]
["Electronics","Bridge Pickup","Select Option"]
["Electronics","Bridge Pickup","None",0]
["Electronics","Bridge Pickup","ARB Humb",70]
["Electronics","Bridge Pickup","Fokin pickups Humb",65]
["Electronics","Bridge Pickup","Dimarzio Humb",110]
["Electronics","Bridge Pickup","Seymour duncan Humb",90]
["Electronics","Bridge Pickup","BKP Humb",125]
["Electronics","Bridge Pickup","Fishman Fluence Modern",175]
["Electronics","Bridge Pickup","ARB Singlecoil",60]
["Electronics","Bridge Pickup","Fokin pickups Singlecoil",50]
["Electronics","Bridge Pickup","Dimarzio Singlecoil",100]
["Electronics","Bridge Pickup","Seymour duncan Singlecoil",85]
["Electronics","Bridge Pickup","BKP Singlecoil",95]
["Electronics","Bridge Pickup","Other ( contact for price )",0]
["Electronics","Pickup Switch","Select Option"]
["Electronics","Pickup Switch","3-way Toggle Switch",0]
["Electronics","Pickup Switch","3-way Blade Switch",0]
["Electronics","Pickup Switch","5-way Blade Switch",0]
["Electronics","Pickup Switch","5-way Mega Switch",30]
["Electronics","Piezo pickups","Select Option"]
["Electronics","Piezo pickups","None",0]
["Electronics","Piezo pickups","Ghost piezo saddles ",95]
["Electronics","Pre-amp","Select Option"]
["Electronics","Pre-amp","none",0]
["Electronics","Pre-amp","Ghost  Acousti-phonic",75]
["Electronics","Pre-amp","Other ( contact for price )",0]

{"sheet":"Earth Padalka Calculation","index":6,"n_rows":73,"n_cols":7,"rows_kept":73,"cut":false,"hidden":true,"merged":[[29,2,29,4],[33,2,33,4],[54,2,54,4],[56,2,56,4],[58,2,58,4],[63,2,63,4],[46,1,46,2],[51,2,51,4],[72,3,72,4],[62,2,62,4],[67,2,67,4],[68,2,68,4],[69,2,69,4],[64,1,64,2],[64,3,64,4],[65,2,65,4],[66,2,66,4],[70,1,70,4],[71,2,71,4],[4,1,4,4],[5,3,5,4],[6,1,6,4],[15,1,15,4],[52,1,52,4],[47,2,47,4],[48,1,48,4],[11,1,11,4],[16,1,16,4],[25,2,25,4],[26,1,26,4],[36,2,36,4],[37,1,37,4],[18,1,18,4],[34,1,34,4],[45,2,45,4]]}
[]
[]
[]
[]
[null,"Specifications"]
["Part","Description","Choosen option","Cost"]
["General Specifications","General Specifications"]
["General Specifications","Model",{"$f":"IFERROR(INDEX('Superstrat Option List'!C2:C278,MATCH(#REF!&A8&B8,'Superstrat Option List'!#REF!&'Superstrat Option List'!A2:A278&'Superstrat Option List'!B2:B278,0)),\"Select Option\")","v":"Select Option"},{"$f":"INDEX('Strathing Option List'!D2:D207,MATCH('Earth Padalka Calculation'!A8&'Earth Padalka Calculation'!B8&'Earth Padalka Calculation'!C8,'Strathing Option List'!A2:A207&'Strathing Option List'!B2:B207&'Strathing Option List'!C2:C207,0))","v":0}]
["General Specifications","Number of Strings",{"$f":"IFERROR(INDEX('Superstrat Option List'!C3:C278,MATCH(#REF!&A9&B9,'Superstrat Option List'!#REF!&'Superstrat Option List'!A3:A278&'Superstrat Option List'!B3:B278,0)),\"Select Option\")","v":"Select Option"},{"$f":"INDEX('Strathing Option List'!D3:D208,MATCH('Earth Padalka Calculation'!A9&'Earth Padalka Calculation'!B9&'Earth Padalka Calculation'!C9,'Strathing Option List'!A3:A208&'Strathing Option List'!B3:B208&'Strathing Option List'!C3:C208,0))","v":0}]
["General Specifications","Scale Length",{"$f":"IFERROR(INDEX('Superstrat Option List'!C4:C278,MATCH(#REF!&A10&B10,'Superstrat Option List'!#REF!&'Superstrat Option List'!A4:A278&'Superstrat Option List'!B4:B278,0)),\"Select Option\")","v":"Select Option"},{"$f":"INDEX('Strathing Option List'!D4:D209,MATCH('Earth Padalka Calculation'!A10&'Earth Padalka Calculation'!B10&'Earth Padalka Calculation'!C10,'Strathing Option List'!A4:A209&'Strathing Option List'!B4:B209&'Strathing Option List'!C4:C209,0))","v":0}]
["General Specifications","Neck Joint Construction",{"$f":"IFERROR(INDEX('Superstrat Option List'!C6:C278,MATCH(#REF!&A11&B11,'Superstrat Option List'!#REF!&'Superstrat Option List'!A6:A278&'Superstrat Option List'!B6:B278,0)),\"Select Option\")","v":"Select Option"},{"$f":"INDEX('Strathing Option List'!D6:D211,MATCH('Earth Padalka Calculation'!A11&'Earth Padalka Calculation'!B11&'Earth Padalka Calculation'!C11,'Strathing Option List'!A6:A211&'Strathing Option List'!B6:B211&'Strathing Option List'!C6:C211,0))","v":0}]
[null,"Neck Specifications"]
["Neck Specifications","Number of frets",{"$f":"IFERROR(INDEX('Superstrat Option List'!C7:C278,MATCH(#REF!&A13&B13,'Superstrat Option List'!#REF!&'Superstrat Option List'!A7:A278&'Superstrat Option List'!B7:B278,0)),\"Select Option\")","v":"Select Option"},{"$f":"INDEX('Strathing Option List'!D10:D215,MATCH('Earth Padalka Calculation'!A13&'Earth Padalka Calculation'!B13&'Earth Padalka Calculation'!C13,'Strathing Option List'!A10:A215&'Strathing Option List'!B10:B215&'Strathing Option List'!C10:C215,0))","v":0}]
["Neck Specifications","Fretwire",{"$f":"IFERROR(INDEX('Superstrat Option List'!C7:C278,MATCH(#REF!&A14&B14,'Superstrat Option List'!#REF!&'Superstrat Option List'!A7:A278&'Superstrat Option List'!B7:B278,0)),\"Select Option\")","v":"Select Option"},{"$f":"INDEX('Strathing Option List'!D11:D216,MATCH('Earth Padalka Calculation'!A14&'Earth Padalka Calculation'!B14&'Earth Padalka Calculation'!C14,'Strathing Option List'!A11:A216&'Strathing Option List'!B11:B216&'Strathing Option List'!C11:C216,0))","v":0}]
["Neck Specifications","Neck pieces",{"$f":"IFERROR(INDEX('Superstrat Option List'!C7:C278,MATCH(#REF!&A15&B15,'Superstrat Option List'!#REF!&'Superstrat Option List'!A7:A278&'Superstrat Option List'!B7:B278,0)),\"Select Option\")","v":"Select Option"},{"$f":"INDEX('Strathing Option List'!D12:D217,MATCH('Earth Padalka Calculation'!A15&'Earth Padalka Calculation'!B15&'Earth Padalka Calculation'!C15,'Strathing Option List'!A12:A217&'Strathing Option List'!B12:B217&'Strathing Option List'!C12:C217,0))","v":0}]
["Neck Specifications","Neck wood "]
[null,"Select option below for 1 piece neck"]
["Neck Specifications","1 Piece Neck Wood",{"$f":"INDEX('Superstrat Option List'!D2:D278,MATCH(A18&$B$16&B18,'Superstrat Option List'!A2:A278&'Superstrat Option List'!B2:B278&'Superstrat Option List'!C2:C278,0))","v":"Select Option"},{"$f":"IFERROR(INDEX('Superstrat Option List'!E14:E1941,MATCH(A18&$B$16&B18&C18,'Superstrat Option List'!A14:A1941&'Superstrat Option List'!B14:B1941&'Superstrat Option List'!C14:C1941&'Superstrat Option List'!D14:D1941,0)),\"Please choose option\")","v":0}]
[null,"Select options below for multi-piece neck"]
["Neck Specifications","Multi-piece Neck Base Wood ",{"$f":"INDEX('Superstrat Option List'!D4:D280,MATCH(A20&$B$16&B20,'Superstrat Option List'!A4:A280&'Superstrat Option List'!B4:B280&'Superstrat Option List'!C4:C280,0))","v":"Select Option"},{"$f":"IFERROR(INDEX('Superstrat Option List'!E16:E1943,MATCH(A20&$B$16&B20&C20,'Superstrat Option List'!A16:A1943&'Superstrat Option List'!B16:B1943&'Superstrat Option List'!C16:C1943&'Superstrat Option List'!D16:D1943,0)),\"Please choose option\")","v":0}]
["Neck Specifications","Multi-piece Neck Thins Wood ",{"$f":"INDEX('Superstrat Option List'!D5:D281,MATCH(A21&$B$16&B21,'Superstrat Option List'!A5:A281&'Superstrat Option List'!B5:B281&'Superstrat Option List'!C5:C281,0))","v":"Select Option"},{"$f":"IFERROR(INDEX('Superstrat Option List'!E17:E1944,MATCH(A21&$B$16&B21&C21,'Superstrat Option List'!A17:A1944&'Superstrat Option List'!B17:B1944&'Superstrat Option List'!C17:C1944&'Superstrat Option List'!D17:D1944,0)),\"Please choose option\")","v":0}]
["Neck Specifications","Multi-piece Neck Thins Wood ",{"$f":"INDEX('Superstrat Option List'!D6:D282,MATCH(A22&$B$16&B22,'Superstrat Option List'!A6:A282&'Superstrat Option List'!B6:B282&'Superstrat Option List'!C6:C282,0))","v":"Select Option"},{"$f":"IFERROR(INDEX('Superstrat Option List'!E18:E1945,MATCH(A22&$B$16&B22&C22,'Superstrat Option List'!A18:A1945&'Superstrat Option List'!B18:B1945&'Superstrat Option List'!C18:C1945&'Superstrat Option List'!D18:D1945,0)),\"Please choose option\")","v":0}]
["Neck Specifications","Multi-piece Neck Thins Wood ",{"$f":"INDEX('Superstrat Option List'!D7:D283,MATCH(A23&$B$16&B23,'Superstrat Option List'!A7:A283&'Superstrat Option List'!B7:B283&'Superstrat Option List'!C7:C283,0))","v":"Select Option"},{"$f":"IFERROR(INDEX('Superstrat Option List'!E19:E1946,MATCH(A23&$B$16&B23&C23,'Superstrat Option List'!A19:A1946&'Superstrat Option List'!B19:B1946&'Superstrat Option List'!C19:C1946&'Superstrat Option List'!D19:D1946,0)),\"Please choose option\")","v":0}]
["Neck Specifications","Multi-piece Neck Thins Wood ",{"$f":"INDEX('Superstrat Option List'!D8:D284,MATCH(A24&$B$16&B24,'Superstrat Option List'!A8:A284&'Superstrat Option List'!B8:B284&'Superstrat Option List'!C8:C284,0))","v":"Select Option"},{"$f":"IFERROR(INDEX('Superstrat Option List'!E21:E1947,MATCH(A24&$B$16&B24&C24,'Superstrat Option List'!A21:A1947&'Superstrat Option List'!B21:B1947&'Superstrat Option List'!C21:C1947&'Superstrat Option List'!D21:D1947,0)),\"Please choose option\")","v":0}]
["Neck Specifications","Multi-piece Neck Thins Wood ",{"$f":"INDEX('Superstrat Option List'!D9:D285,MATCH(A25&$B$16&B25,'Superstrat Option List'!A9:A285&'Superstrat Option List'!B9:B285&'Superstrat Option List'!C9:C285,0))","v":"Select Option"},{"$f":"IFERROR(INDEX('Superstrat Option List'!E22:E1948,MATCH(A25&$B$16&B25&C25,'Superstrat Option List'!A22:A1948&'Superstrat Option List'!B22:B1948&'Superstrat Option List'!C22:C1948&'Superstrat Option List'!D22:D1948,0)),\"Please choose option\")","v":0}]
[]
[null,"Fretboard Specifications"]
["Neck Specifications","Fretboard wood",{"$f":"IFERROR(INDEX('Superstrat Option List'!C29:C278,MATCH(#REF!&A28&B28,'Superstrat Option List'!#REF!&'Superstrat Option List'!A29:A278&'Superstrat Option List'!B29:B278,0)),\"Select Option\")","v":"Select Option"},{"$f":"INDEX('Strathing Option List'!D18:D230,MATCH('Earth Padalka Calculation'!A28&'Earth Padalka Calculation'!B28&'Earth Padalka Calculation'!C28,'Strathing Option List'!A18:A230&'Strathing Option List'!B18:B230&'Strathing Option List'!C18:C230,0))","v":0}]
["Neck Specifications","Fretboard radius",{"$f":"IFERROR(INDEX('Superstrat Option List'!C29:C278,MATCH(#REF!&A29&B29,'Superstrat Option List'!#REF!&'Superstrat Option List'!A29:A278&'Superstrat Option List'!B29:B278,0)),\"Select Option\")","v":"Select Option"},{"$f":"INDEX('Strathing Option List'!D19:D231,MATCH('Earth Padalka Calculation'!A29&'Earth Padalka Calculation'!B29&'Earth Padalka Calculation'!C29,'Strathing Option List'!A19:A231&'Strathing Option List'!B19:B231&'Strathing Option List'!C19:C231,0))","v":0}]
["Neck Specifications"]
["Neck Specifications","Fretboard binding ",{"$f":"IFERROR(INDEX('Superstrat Option List'!C30:C278,MATCH(#REF!&A31&B31,'Superstrat Option List'!#REF!&'Superstrat Option List'!A30:A278&'Superstrat Option List'!B30:B278,0)),\"Select Option\")","v":"Select Option"},{"$f":"INDEX('Strathing Option List'!D20:D233,MATCH('Earth Padalka Calculation'!A31&'Earth Padalka Calculation'!B31&'Earth Padalka Calculation'!C31,'Strathing Option List'!A20:A233&'Strathing Option List'!B20:B233&'Strathing Option List'!C20:C233,0))","v":0}]
["Neck Specifications","Fretboard inlays",{"$f":"IFERROR(INDEX('Superstrat Option List'!C30:C278,MATCH(#REF!&A32&B32,'Superstrat Option List'!#REF!&'Superstrat Option List'!A30:A278&'Superstrat Option List'!B30:B278,0)),\"Select Option\")","v":"Select Option"},{"$f":"INDEX('Strathing Option List'!D21:D234,MATCH('Earth Padalka Calculation'!A32&'Earth Padalka Calculation'!B32&'Earth Padalka Calculation'!C32,'Strathing Option List'!A21:A234&'Strathing Option List'!B21:B234&'Strathing Option List'!C21:C234,0))","v":0}]
["Neck Specifications","Side markers",{"$f":"IFERROR(INDEX('Superstrat Option List'!C31:C278,MATCH(#REF!&A33&B33,'Superstrat Option List'!#REF!&'Superstrat Option List'!A31:A278&'Superstrat Option List'!B31:B278,0)),\"Select Option\")","v":"Select Option"},{"$f":"INDEX('Strathing Option List'!D22:D235,MATCH('Earth Padalka Calculation'!A33&'Earth Padalka Calculation'!B33&'Earth Padalka Calculation'!C33,'Strathing Option List'!A22:A235&'Strathing Option List'!B22:B235&'Strathing Option List'!C22:C235,0))","v":0}]
[]
[null,"Headstock Specifications"]
["Neck Specifications","Headstock shape",{"$f":"IFERROR(INDEX('Superstrat Option List'!C34:C278,MATCH(#REF!&A36&B36,'Superstrat Option List'!#REF!&'Superstrat Option List'!A34:A278&'Superstrat Option List'!B34:B278,0)),\"Select Option\")","v":"Select Option"},{"$f":"INDEX('Strathing Option List'!D25:D239,MATCH('Earth Padalka Calculation'!A36&'Earth Padalka Calculation'!B36&'Earth Padalka Calculation'!C36,'Strathing Option List'!A25:A239&'Strathing Option List'!B25:B239&'Strathing Option List'!C25:C239,0))","v":0}]
[]
[null,"Body Specifications"]
["Body Specifications","Body wood",{"$f":"IFERROR(INDEX('Superstrat Option List'!C40:C278,MATCH(#REF!&A39&B39,'Superstrat Option List'!#REF!&'Superstrat Option List'!A40:A278&'Superstrat Option List'!B40:B278,0)),\"Select Option\")","v":"Select Option"},{"$f":"INDEX('Strathing Option List'!D30:D244,MATCH('Earth Padalka Calculation'!A39&'Earth Padalka Calculation'!B39&'Earth Padalka Calculation'!C39,'Strathing Option List'!A30:A244&'Strathing Option List'!B30:B244&'Strathing Option List'!C30:C244,0))","v":0}]
["Body Specifications","Front body carvings",{"$f":"IFERROR(INDEX('Superstrat Option List'!C41:C278,MATCH(#REF!&A40&B40,'Superstrat Option List'!#REF!&'Superstrat Option List'!A41:A278&'Superstrat Option List'!B41:B278,0)),\"Select Option\")","v":"Select Option"},{"$f":"INDEX('Strathing Option List'!D31:D245,MATCH('Earth Padalka Calculation'!A40&'Earth Padalka Calculation'!B40&'Earth Padalka Calculation'!C40,'Strathing Option List'!A31:A245&'Strathing Option List'!B31:B245&'Strathing Option List'!C31:C245,0))","v":0}]
["Body Specifications","Body chambers",{"$f":"IFERROR(INDEX('Superstrat Option List'!C43:C278,MATCH(#REF!&A41&B41,'Superstrat Option List'!#REF!&'Superstrat Option List'!A43:A278&'Superstrat Option List'!B43:B278,0)),\"Select Option\")","v":"Select Option"},{"$f":"INDEX('Strathing Option List'!D33:D247,MATCH('Earth Padalka Calculation'!A41&'Earth Padalka Calculation'!B41&'Earth Padalka Calculation'!C41,'Strathing Option List'!A33:A247&'Strathing Option List'!B33:B247&'Strathing Option List'!C33:C247,0))","v":0}]
["Body Specifications","Top wood",{"$f":"IFERROR(INDEX('Superstrat Option List'!C44:C278,MATCH(#REF!&A42&B42,'Superstrat Option List'!#REF!&'Superstrat Option List'!A44:A278&'Superstrat Option List'!B44:B278,0)),\"Select Option\")","v":"Select Option"},{"$f":"IFERROR(INDEX('Strathing Option List'!D34:D248,MATCH('Earth Padalka Calculation'!A42&'Earth Padalka Calculation'!B42&'Earth Padalka Calculation'!C42,'Strathing Option List'!A34:A248&'Strathing Option List'!B34:B248&'Strathing Option List'!C34:C248,0)),\"$0,00\")","v":0}]
["Body Specifications","Body binding",{"$f":"IFERROR(INDEX('Superstrat Option List'!C45:C278,MATCH(#REF!&A43&B43,'Superstrat Option List'!#REF!&'Superstrat Option List'!A45:A278&'Superstrat Option List'!B45:B278,0)),\"Select Option\")","v":"Select Option"},{"$f":"IFERROR(INDEX('Strathing Option List'!D36:D250,MATCH('Earth Padalka Calculation'!A43&'Earth Padalka Calculation'!B43&'Earth Padalka Calculation'!C43,'Strathing Option List'!A36:A250&'Strathing Option List'!B36:B250&'Strathing Option List'!C36:C250,0)),\"$0,00\")","v":0}]
["Body Specifications","Finish",{"$f":"IFERROR(INDEX('Superstrat Option List'!C46:C278,MATCH(#REF!&A44&B44,'Superstrat Option List'!#REF!&'Superstrat Option List'!A46:A278&'Superstrat Option List'!B46:B278,0)),\"Select Option\")","v":"Select Option"},{"$f":"IFERROR(INDEX('Strathing Option List'!D37:D251,MATCH('Earth Padalka Calculation'!A44&'Earth Padalka Calculation'!B44&'Earth Padalka Calculation'!C44,'Strathing Option List'!A37:A251&'Strathing Option List'!B37:B251&'Strathing Option List'!C37:C251,0)),\"$0,00\")","v":0}]
["Body Specifications","Colour",{"$f":"IFERROR(INDEX('Superstrat Option List'!C48:C278,MATCH(#REF!&A45&B45,'Superstrat Option List'!#REF!&'Superstrat Option List'!A48:A278&'Superstrat Option List'!B48:B278,0)),\"Select Option\")","v":"Select Option"},{"$f":"IFERROR(INDEX('Strathing Option List'!D39:D253,MATCH('Earth Padalka Calculation'!A45&'Earth Padalka Calculation'!B45&'Earth Padalka Calculation'!C45,'Strathing Option List'!A39:A253&'Strathing Option List'!B39:B253&'Strathing Option List'!C39:C253,0)),\"$0,00\")","v":0}]
["Body Specifications"]
[null,null,null,null,null,"White",50]
[]
[null,"Hardware"]
["Hardware","Bridge",{"$f":"IFERROR(INDEX('Superstrat Option List'!C53:C278,MATCH(#REF!&A50&B50,'Superstrat Option List'!#REF!&'Superstrat Option List'!A53:A278&'Superstrat Option List'!B53:B278,0)),\"Select Option\")","v":"Select Option"},{"$f":"IFERROR(INDEX('Strathing Option List'!D44:D258,MATCH('Earth Padalka Calculation'!A50&'Earth Padalka Calculation'!B50&'Earth Padalka Calculation'!C50,'Strathing Option List'!A44:A258&'Strathing Option List'!B44:B258&'Strathing Option List'!C44:C258,0)),\"$0,00\")","v":0}]
["Hardware","Tuning machines",{"$f":"IFERROR(INDEX('Superstrat Option List'!C57:C278,MATCH(#REF!&A51&B51,'Superstrat Option List'!#REF!&'Superstrat Option List'!A57:A278&'Superstrat Option List'!B57:B278,0)),\"Select Option\")","v":"Select Option"},{"$f":"IFERROR(F51*C9,\"$0,00\")","v":"$0,00"},null,{"$f":"IFERROR(INDEX('Superstrat Option List'!D53:D1978,MATCH(A51&B51&C51,'Superstrat Option List'!A53:A1978&'Superstrat Option List'!B53:B1978&'Superstrat Option List'!C53:C1978,0)),\"Please choose option\")","v":0}]
[]
[null,"Electronics"]
["Electronics","Neck Pickup",{"$f":"IFERROR(INDEX('Superstrat Option List'!C61:C278,MATCH(#REF!&A54&B54,'Superstrat Option List'!#REF!&'Superstrat Option List'!A61:A278&'Superstrat Option List'!B61:B278,0)),\"Select Option\")","v":"Select Option"},{"$f":"INDEX('Strathing Option List'!D55:D264,MATCH('Earth Padalka Calculation'!A54&'Earth Padalka Calculation'!B54&'Earth Padalka Calculation'!C54,'Strathing Option List'!A55:A264&'Strathing Option List'!B55:B264&'Strathing Option List'!C55:C264,0))","v":0}]
["Electronics","Describe Pickup Model"]
["Electronics","Middle Pickup",{"$f":"IFERROR(INDEX('Superstrat Option List'!C63:C278,MATCH(#REF!&A56&B56,'Superstrat Option List'!#REF!&'Superstrat Option List'!A63:A278&'Superstrat Option List'!B63:B278,0)),\"Select Option\")","v":"Select Option"},{"$f":"INDEX('Strathing Option List'!D56:D266,MATCH('Earth Padalka Calculation'!A56&'Earth Padalka Calculation'!B56&'Earth Padalka Calculation'!C56,'Strathing Option List'!A56:A266&'Strathing Option List'!B56:B266&'Strathing Option List'!C56:C266,0))","v":0}]
["Electronics","Describe Pickup Model"]
["Electronics","Bridge Pickup",{"$f":"IFERROR(INDEX('Superstrat Option List'!C67:C278,MATCH(#REF!&A58&B58,'Superstrat Option List'!#REF!&'Superstrat Option List'!A67:A278&'Superstrat Option List'!B67:B278,0)),\"Select Option\")","v":"Select Option"},{"$f":"INDEX('Strathing Option List'!D58:D268,MATCH('Earth Padalka Calculation'!A58&'Earth Padalka Calculation'!B58&'Earth Padalka Calculation'!C58,'Strathing Option List'!A58:A268&'Strathing Option List'!B58:B268&'Strathing Option List'!C58:C268,0))","v":0}]
["Electronics","Describe Pickup Model"]
["Electronics","Pickup Switch",{"$f":"IFERROR(INDEX('Superstrat Option List'!C75:C278,MATCH(#REF!&A60&B60,'Superstrat Option List'!#REF!&'Superstrat Option List'!A75:A278&'Superstrat Option List'!B75:B278,0)),\"Select Option\")","v":"Select Option"},{"$f":"INDEX('Strathing Option List'!D65:D270,MATCH('Earth Padalka Calculation'!A60&'Earth Padalka Calculation'!B60&'Earth Padalka Calculation'!C60,'Strathing Option List'!A65:A270&'Strathing Option List'!B65:B270&'Strathing Option List'!C65:C270,0))","v":0}]
["Electronics","Piezo Pickups",{"$f":"IFERROR(INDEX('Superstrat Option List'!C78:C278,MATCH(#REF!&A61&B61,'Superstrat Option List'!#REF!&'Superstrat Option List'!A78:A278&'Superstrat Option List'!B78:B278,0)),\"Select Option\")","v":"Select Option"},{"$f":"INDEX('Strathing Option List'!D66:D271,MATCH('Earth Padalka Calculation'!A61&'Earth Padalka Calculation'!B61&'Earth Padalka Calculation'!C61,'Strathing Option List'!A66:A271&'Strathing Option List'!B66:B271&'Strathing Option List'!C66:C271,0))","v":0}]
["Electronics","Pre-amp",{"$f":"IFERROR(INDEX('Superstrat Option List'!C78:C278,MATCH(#REF!&A62&B62,'Superstrat Option List'!#REF!&'Superstrat Option List'!A78:A278&'Superstrat Option List'!B78:B278,0)),\"Select Option\")","v":"Select Option"},{"$f":"INDEX('Strathing Option List'!D68:D273,MATCH('Earth Padalka Calculation'!A62&'Earth Padalka Calculation'!B62&'Earth Padalka Calculation'!C62,'Strathing Option List'!A68:A273&'Strathing Option List'!B68:B273&'Strathing Option List'!C68:C273,0))","v":0}]
["Electronics","Describe Other Pre-amp"]
[]
[null,"Total  ",null,{"$f":"IFERROR(SUM(D8:D64),\"Please select missing option\")","v":0}]
[null,"Name:"]
[null,"Country :"]
[null,"Adress :"]
[null,"E-mail :"]
[null,"Phone Number:"]
[null,"Body & Headstock Shapes available in this models"]
[null,"Earth Body Model"]
[null,"F-1 Headstock Model"]

{"sheet":"Telething Option List","index":7,"n_rows":225,"n_cols":7,"rows_kept":225,"cut":false,"hidden":true,"merged":[]}
["Group","Description","Options","Rate $","2nd Rate","Russian Rates"]
["General Specifications","Model","Select Option",null,null,null,"Rate with formula, only change Russian rate"]
["General Specifications","Model","Mars-1",{"$f":"F3*'Exchange Rate Calculation'!$Q$7","v":833.33},null,50000]
["General Specifications","Model","Mars-2",{"$f":"F4*'Exchange Rate Calculation'!$Q$7","v":833.33},null,50000]
["General Specifications","Number of strings","Select Option"]
["General Specifications","Number of strings",6,0]
["General Specifications","Scale length","Select Option"]
["General Specifications","Scale length","25,5\"",0]
["General Specifications","Scale length","26\"",0]
["General Specifications","Scale length","26,5\"",0]
["General Specifications","Scale length","27\"",0]
["General Specifications","Scale length","28\"",0]
["General Specifications","Neck joint construction","Select Option"]
["General Specifications","Neck joint construction","Bolt-on",0]
["General Specifications","Neck joint construction","Set neck",{"$f":"F15*'Exchange Rate Calculation'!$Q$7","v":49.9998},null,3000]
["Neck Specifications","Number of frets","Select Option"]
["Neck Specifications","Number of frets",22,0]
["Neck Specifications","Number of frets",24,0]
["Neck Specifications","Fretwire","Select Option"]
["Neck Specifications","Fretwire","Jescar stainless steel 2,3x1,4mm",25]
["Neck Specifications","Fretwire","Jescar stainless steel 2,5x1,3mm",25]
["Neck Specifications","Fretwire","Evo Gold 2,3x1,4mm",30]
["Neck Specifications","Fretwire","Jescar nickel-silver 2,3x1,4mm",10]
["Neck Specifications","Fretwire","Jescar nickel-silver 2,5x1,3mm",10]
["Neck Specifications","Neck pieces","Select Option"]
["Neck Specifications","Neck pieces",1,0]
["Neck Specifications","Neck pieces",3,{"$f":"F27*'Exchange Rate Calculation'!$Q$7","v":24.9999},null,1500]
["Neck Specifications","Neck pieces",5,{"$f":"F28*'Exchange Rate Calculation'!$Q$7","v":33.333199999999998},null,2000]
["Neck Specifications","Neck pieces",7,{"$f":"F29*'Exchange Rate Calculation'!$Q$7","v":49.9998},null,3000]
["Neck Specifications","Neck pieces",9,{"$f":"F30*'Exchange Rate Calculation'!$Q$7","v":66.666399999999996},null,4000]
["Neck Specifications","Neck pieces",11,{"$f":"F31*'Exchange Rate Calculation'!$Q$7","v":83.332999999999998},null,5000]
["Neck Specifications","Neck wood ","Select Option"]
["Neck Specifications","Neck wood ","1 Piece Neck Wood","none",0]
["Neck Specifications","Neck wood ","1 Piece Neck Wood","Hard maple",{"$f":"F34*'Exchange Rate Calculation'!$Q$7","v":49.9998},3000]
["Neck Specifications","Neck wood ","1 Piece Neck Wood","Curly maple",120]
["Neck Specifications","Neck wood ","1 Piece Neck Wood","African mahogany",50]
["Neck Specifications","Neck wood ","1 Piece Neck Wood","Bird`s eye maple",140]
["Neck Specifications","Neck wood ","1 Piece Neck Wood","Rosewood",150]
["Neck Specifications","Neck wood ","1 Piece Neck Wood","Padouk ",50]
["Neck Specifications","Neck wood ","1 Piece Neck Wood","Other ( contact for price )",0]
["Neck Specifications","Neck wood ","Select Option"]
["Neck Specifications","Neck wood ","Multi-piece Neck Base Wood ","none",0]
["Neck Specifications","Neck wood ","Multi-piece Neck Base Wood ","Hard maple",40]
["Neck Specifications","Neck wood ","Multi-piece Neck Base Wood ","Curly maple",100]
["Neck Specifications","Neck wood ","Multi-piece Neck Base Wood ","African mahogany",50]
["Neck Specifications","Neck wood ","Multi-piece Neck Base Wood ","Rosewood",150]
["Neck Specifications","Neck wood ","Multi-piece Neck Base Wood ","Padouk",50]
["Neck Specifications","Neck wood ","Multi-piece Neck Base Wood ","Sapele",50]
["Neck Specifications","Neck wood ","Multi-piece Neck Base Wood ","Limba",50]
["Neck Specifications","Neck wood ","Multi-piece Neck Base Wood ","Walnut",70]
["Neck Specifications","Neck wood ","Multi-piece Neck Base Wood ","Wenge",70]
["Neck Specifications","Neck wood ","Multi-piece Neck Base Wood ","Purpleheart",70]
["Neck Specifications","Neck wood ","Multi-piece Neck Base Wood ","Other ( contact for price )",0]
["Neck Specifications","Neck wood ","Select Option"]
["Neck Specifications","Neck wood ","Multi-piece Neck Thins Wood ","none",0]
["Neck Specifications","Neck wood ","Multi-piece Neck Thins Wood ","Hard maple",20]
["Neck Specifications","Neck wood ","Multi-piece Neck Thins Wood ","Padouk",25]
["Neck Specifications","Neck wood ","Multi-piece Neck Thins Wood ","African mahogany",25]
["Neck Specifications","Neck wood ","Multi-piece Neck Thins Wood ","Bubinga",25]
["Neck Specifications","Neck wood ","Multi-piece Neck Thins Wood ","Sapele",25]
["Neck Specifications","Neck wood ","Multi-piece Neck Thins Wood ","Limba",35]
["Neck Specifications","Neck wood ","Multi-piece Neck Thins Wood ","Walnut",35]
["Neck Specifications","Neck wood ","Multi-piece Neck Thins Wood ","Wenge",35]
["Neck Specifications","Neck wood ","Multi-piece Neck Thins Wood ","Purpleheart",35]
["Neck Specifications","Neck wood ","Multi-piece Neck Thins Wood ","Other ( contact for price )",0]
["Neck Specifications","Fretboard wood","Select Option"]
["Neck Specifications","Fretboard wood","Rosewood",40]
["Neck Specifications","Fretboard wood","Cocobolo",80]
["Neck Specifications","Fretboard wood","Ebony",65]
["Neck Specifications","Fretboard wood","Macassar",65]
["Neck Specifications","Fretboard wood","Hard maple",10]
["Neck Specifications","Fretboard wood","Bird`s eye maple",100]
["Neck Specifications","Fretboard wood","Curly maple",80]
["Neck Specifications","Fretboard wood","Purpleheart",40]
["Neck Specifications","Fretboard wood","Other exotic wood (contact for the price)",0]
["Neck Specifications","Fretboard radius","Select Option"]
["Neck Specifications","Fretboard radius","10\"",0]
["Neck Specifications","Fretboard radius","12\"",0]
["Neck Specifications","Fretboard radius","16\"",0]
["Neck Specifications","Fretboard radius","20\"",0]
["Neck Specifications","Fretboard radius","Compound radius",{"$f":"F81*'Exchange Rate Calculation'!$Q$7","v":116.6662},null,7000]
["Neck Specifications","Headstock shape","Select Option"]
["Neck Specifications","Headstock shape","F-1",0]
["Neck Specifications","Headstock shape","F-2",0]
["Neck Specifications","Fretboard binding ","Select Option"]
["Neck Specifications","Fretboard binding ","None",0]
["Neck Specifications","Fretboard binding ","Binding 1 ply",{"$f":"F87*'Exchange Rate Calculation'!$Q$7","v":46.66648},null,2800]
["Neck Specifications","Fretboard binding ","Binding 3 ply",{"$f":"F88*'Exchange Rate Calculation'!$Q$7","v":78.333020000000005},null,4700]
["Neck Specifications","Fretboard inlays","Select Option"]
["Neck Specifications","Fretboard inlays","None",0]
["Neck Specifications","Fretboard inlays","MOP dots 4mm",13]
["Neck Specifications","Fretboard inlays","MOP dots 6mm",18]
["Neck Specifications","Fretboard inlays","MOP triangles 5mm",{"$f":"F93*'Exchange Rate Calculation'!$Q$7","v":38.333179999999999},null,2300]
["Neck Specifications","Fretboard inlays","Aluminium rings ",{"$f":"F94*'Exchange Rate Calculation'!$Q$7","v":41.666499999999999},null,2500]
["Neck Specifications","Fretboard inlays","Custom design \"simple\"",{"$f":"F95*'Exchange Rate Calculation'!$Q$7","v":58.333100000000002},null,3500]
["Neck Specifications","Fretboard inlays","Custom design \"medium\"",{"$f":"F96*'Exchange Rate Calculation'!$Q$7","v":108.3329},null,6500]
["Neck Specifications","Fretboard inlays","Custom design \"complicated\"",{"$f":"F97*'Exchange Rate Calculation'!$Q$7","v":153.33271999999999},null,9200]
["Neck Specifications","Side markers","Select Option"]
["Neck Specifications","Side markers","None",0]
["Neck Specifications","Side markers","Plastic dots 2mm",0]
["Neck Specifications","Side markers","MOP dots 2mm",5]
["Neck Specifications","Side markers","Luminlay 3mm",25]
["Neck Specifications","Side markers","Plastic blocks",{"$f":"F103*'Exchange Rate Calculation'!$Q$7","v":49.9998},null,3000]
["Neck Specifications","Side markers","MOP blocks",{"$f":"F104*'Exchange Rate Calculation'!$Q$7","v":54.999780000000001},null,3300]
["Body Specifications","Body wood","Select Option"]
["Body Specifications","Body wood","Alder",{"$f":"F106*'Exchange Rate Calculation'!$Q$7","v":49.9998},null,3000]
["Body Specifications","Body wood","White ash",{"$f":"F107*'Exchange Rate Calculation'!$Q$7","v":49.9998},null,3000]
["Body Specifications","Body wood","Swamp ash",260]
["Body Specifications","Body wood","African mahogany",100]
["Body Specifications","Body wood","Basswood",45]
["Body Specifications","Body wood","Limba",250]
["Body Specifications","Body wood","Sapele",100]
["Body Specifications","Front body carvings","Select Option"]
["Body Specifications","Front body carvings","Arm bevel",15]
["Body Specifications","Front body carvings","Flat top",{"$f":"F115*'Exchange Rate Calculation'!$Q$7","v":0},null,0]
["Body Specifications","Front body carvings","None",0]
["Body Specifications","Back body carvings","Select Option"]
["Body Specifications","Back body carvings","Body bevel",0]
["Body Specifications","Back body carvings","None",0]
["Body Specifications","Body chambers","Select Option"]
["Body Specifications","Body chambers","None",0]
["Body Specifications","Body chambers","Weight reducing chambers (only with top)",60]
["Body Specifications","Top wood","Select Option"]
["Body Specifications","Top wood","None",0]
["Body Specifications","Top wood","White ash 5-9mm",{"$f":"F125*'Exchange Rate Calculation'!$Q$7","v":66.666399999999996},null,4000]
["Body Specifications","Top wood","Flame maple 5mm",140]
["Body Specifications","Top wood","Quilted maple 5mm",170]
["Body Specifications","Top wood","Spalted maple 3mm",80]
["Body Specifications","Top wood","Poplar burl 3mm",80]
["Body Specifications","Top wood","Walnut",80]
["Body Specifications","Top wood","Purpleheart",100]
["Body Specifications","Top wood","Other exotic wood (contact for the price)",0]
["Body Specifications","Body binding","Select Option"]
["Body Specifications","Body binding","None",0]
["Body Specifications","Body binding","Scraped binding",{"$f":"F135*'Exchange Rate Calculation'!$Q$7","v":8.3332999999999995},null,500]
["Body Specifications","Body binding","Binding 1 ply",{"$f":"F136*'Exchange Rate Calculation'!$Q$7","v":49.9998},null,3000]
["Body Specifications","Body binding","Binding 3 ply",{"$f":"F137*'Exchange Rate Calculation'!$Q$7","v":91.666300000000007},null,5500]
["Body Specifications","Finish","Select Option"]
["Body Specifications","Finish","Satin open pores",{"$f":"F139*'Exchange Rate Calculation'!$Q$7","v":8.3332999999999995},null,500]
["Body Specifications","Finish","Oil",{"$f":"F140*'Exchange Rate Calculation'!$Q$7","v":83.332999999999998},null,5000]
["Body Specifications","Finish","Gloss (bolt-on)",{"$f":"F141*'Exchange Rate Calculation'!$Q$7","v":124.9995},null,7500]
["Body Specifications","Finish","Gloss (set neck)",{"$f":"F142*'Exchange Rate Calculation'!$Q$7","v":174.99930000000001},null,10500]
["Body Specifications","Finish","Gloss top (bolt-on)",{"$f":"F143*'Exchange Rate Calculation'!$Q$7","v":49.9998},null,3000]
["Body Specifications","Finish","Gloss top (set neck)",{"$f":"F144*'Exchange Rate Calculation'!$Q$7","v":66.666399999999996},null,4000]
["Body Specifications","Colour","Select Option"]
["Body Specifications","Colour","Clear",{"$f":"F146*'Exchange Rate Calculation'!$Q$7","v":0}]
["Body Specifications","Colour","Uniform colour",{"$f":"F147*'Exchange Rate Calculation'!$Q$7","v":16.666599999999999},null,1000]
["Body Specifications","Colour","Burst",{"$f":"F148*'Exchange Rate Calculation'!$Q$7","v":33.333199999999998},null,2000]
["Body Specifications","Colour","Painted pores (top and headstock)",{"$f":"F149*'Exchange Rate Calculation'!$Q$7","v":33.333199999999998},null,2000]
["Body Specifications","Colour","Painted pores (body and headstock)",{"$f":"F150*'Exchange Rate Calculation'!$Q$7","v":66.666399999999996},null,4000]
["Hardware","Bridge","Select Option"]
["Hardware","Bridge","None",0]
["Hardware","Bridge","Hipshot hardtail Black ",85]
["Hardware","Bridge","Hipshot hardtail Chrome",85]
["Hardware","Bridge","Hipshot hardtail Gold",110.5]
["Hardware","Bridge","Hipshot US Contour Tremolo Black",103]
["Hardware","Bridge","Hipshot US Contour Tremolo Chrome",103]
["Hardware","Bridge","Hipshot US Contour Tremolo Gold",133]
["Hardware","Bridge","Floyd Rose Chrome",165]
["Hardware","Bridge","Floyd Rose Black",180]
["Hardware","Bridge","Floyd Rose Gold",195]
["Hardware","Bridge","Other ( contact for price )",0]
["Hardware","Tuning machines","Select Option"]
["Hardware","Tuning machines","None",0]
["Hardware","Tuning machines","Hipshot Griplock chrome ",11]
["Hardware","Tuning machines","Hipshot Griplock black ",12]
["Hardware","Tuning machines","Hipshot Griplock gold ",13]
["Hardware","Tuning machines","Gotoh SG381 non-locking Black",9]
["Hardware","Tuning machines","Gotoh SG381 non-locking Chrome",9]
["Hardware","Tuning machines","Gotoh SG381 non-locking Gold",11.699999999999998]
["Electronics","Neck Pickup","Select Option"]
["Electronics","Neck Pickup","None",0]
["Electronics","Neck Pickup","ARB Humb",70]
["Electronics","Neck Pickup","Fokin pickups Humb",65]
["Electronics","Neck Pickup","Dimarzio  Humb",110]
["Electronics","Neck Pickup","Seymour duncan  Humb",90]
["Electronics","Neck Pickup","BKP  Humb",125]
["Electronics","Neck Pickup","Fishman Fluence Modern",175]
["Electronics","Neck Pickup","ARB Singlecoil",60]
["Electronics","Neck Pickup","Fokin pickups Singlecoil",50]
["Electronics","Neck Pickup","Dimarzio Singlecoil",100]
["Electronics","Neck Pickup","Seymour duncan Singlecoil",85]
["Electronics","Neck Pickup","BKP Singlecoil",95]
["Electronics","Neck Pickup","Other ( contact for price )",0]
["Electronics","Middle Pickup","Select Option"]
["Electronics","Middle Pickup","None",0]
["Electronics","Middle Pickup","ARB Singlecoil",60]
["Electronics","Middle Pickup","Fokin pickups Singlecoil",50]
["Electronics","Middle Pickup","Dimarzio Singlecoil",100]
["Electronics","Middle Pickup","Seymour duncan Singlecoil",85]
["Electronics","Middle Pickup","BKP Singlecoil",95]
["Electronics","Middle Pickup","Other ( contact for price )",0]
["Electronics","Bridge Pickup","Select Option"]
["Electronics","Bridge Pickup","None",0]
["Electronics","Bridge Pickup","ARB Humb",70]
["Electronics","Bridge Pickup","Fokin pickups  Humb",65]
["Electronics","Bridge Pickup","Dimarzio Humb",110]
["Electronics","Bridge Pickup","Seymour duncan Humb",90]
["Electronics","Bridge Pickup","BKP Humb",125]
["Electronics","Bridge Pickup","Fishman Fluence Modern",175]
["Electronics","Bridge Pickup","ARB Singlecoil",60]
["Electronics","Bridge Pickup","Fokin pickups Singlecoil",50]
["Electronics","Bridge Pickup","Dimarzio Singlecoil",100]
["Electronics","Bridge Pickup","Seymour duncan Singlecoil",85]
["Electronics","Bridge Pickup","BKP Singlecoil",95]
["Electronics","Bridge Pickup","Other ( contact for price )",0]
["Electronics","Pickup Switch","Select Option"]
["Electronics","Pickup Switch","3-way Toggle Switch",0]
["Electronics","Pickup Switch","3-way Blade Switch",0]
["Electronics","Pickup Switch","5-way Blade Switch",0]
["Electronics","Pickup Switch","5-way Mega Switch",30]
["Electronics","Piezo pickups","Select Option"]
["Electronics","Piezo pickups","None",0]
["Electronics","Piezo pickups","Ghost piezo saddles 6st",95]
["Electronics","Pre-amp","Select Option"]
["Electronics","Pre-amp","none",0]
["Electronics","Pre-amp","Ghost  Acousti-phonic",75]
["Electronics","Pre-amp","Other ( contact for price )",0]
["Special Upcharge","Arm Bevel","Select Option"]
["Special Upcharge","Arm Bevel","White ash 5-9mm",{"$f":"F220*'Exchange Rate Calculation'!$Q$7","v":16.666599999999999},null,1000]
["Special Upcharge","Arm Bevel","Flame maple 5mm",{"$f":"F221*'Exchange Rate Calculation'!$Q$7","v":16.666599999999999},null,1000]
["Special Upcharge","Arm Bevel","Quilted maple 5mm",{"$f":"F222*'Exchange Rate Calculation'!$Q$7","v":16.666599999999999},null,1000]
["Special Upcharge","Arm Bevel","Spalted maple 3mm",{"$f":"F223*'Exchange Rate Calculation'!$Q$7","v":16.666599999999999},null,1000]
["Special Upcharge","Arm Bevel","Poplar burl 3mm",{"$f":"F224*'Exchange Rate Calculation'!$Q$7","v":16.666599999999999},null,1000]
["Special Upcharge","Arm Bevel","Other exotic wood (contact for the price)",{"$f":"F225*'Exchange Rate Calculation'!$Q$7","v":16.666599999999999},null,1000]

{"sheet":"Mars Padalka Calculation","index":8,"n_rows":65,"n_cols":7,"rows_kept":65,"cut":false,"hidden":true,"merged":[[63,3,64,4],[4,1,4,4],[5,3,5,4],[6,1,6,4],[18,1,18,4],[23,1,23,4],[31,1,31,4],[49,2,49,4],[43,1,43,4],[11,1,11,4],[15,1,15,4],[16,1,16,4],[60,1,60,4],[53,2,53,4],[47,2,47,4],[40,1,40,4],[45,2,45,4],[29,1,29,4],[61,2,61,4],[62,2,62,4],[57,2,57,4],[58,2,58,4],[59,2,59,4],[54,1,54,2],[54,3,54,4],[55,2,55,4],[56,2,56,4]]}
[]
[]
[]
[]
[null,"Specifications"]
["Part","Description","Choosen option","Cost"]
["General Specifications","General Specifications"]
["General Specifications","Model",{"$f":"IFERROR(INDEX('Superstrat Option List'!C2:C277,MATCH(#REF!&A8&B8,'Superstrat Option List'!#REF!&'Superstrat Option List'!A2:A277&'Superstrat Option List'!B2:B277,0)),\"Select Option\")","v":"Select Option"},{"$f":"INDEX('Telething Option List'!D2:D225,MATCH('Mars Padalka Calculation'!A8&'Mars Padalka Calculation'!B8&'Mars Padalka Calculation'!C8,'Telething Option List'!A2:A225&'Telething Option List'!B2:B225&'Telething Option List'!C2:C225,0))","v":0}]
["General Specifications","Number of Strings",{"$f":"IFERROR(INDEX('Superstrat Option List'!C3:C278,MATCH(#REF!&A9&B9,'Superstrat Option List'!#REF!&'Superstrat Option List'!A3:A278&'Superstrat Option List'!B3:B278,0)),\"Select Option\")","v":"Select Option"},{"$f":"IFERROR(INDEX('Superstrat Option List'!D3:D1929,MATCH(A9&B9&C9,'Superstrat Option List'!A3:A1929&'Superstrat Option List'!B3:B1929&'Superstrat Option List'!C3:C1929,0)),\"Please choose option\")","v":0}]
["General Specifications","Scale Length",{"$f":"IFERROR(INDEX('Superstrat Option List'!C4:C279,MATCH(#REF!&A10&B10,'Superstrat Option List'!#REF!&'Superstrat Option List'!A4:A279&'Superstrat Option List'!B4:B279,0)),\"Select Option\")","v":"Select Option"},{"$f":"IFERROR(INDEX('Superstrat Option List'!D4:D1930,MATCH(A10&B10&C10,'Superstrat Option List'!A4:A1930&'Superstrat Option List'!B4:B1930&'Superstrat Option List'!C4:C1930,0)),\"Please choose option\")","v":0}]
["General Specifications","Neck Joint Construction",{"$f":"IFERROR(INDEX('Superstrat Option List'!C6:C278,MATCH(#REF!&A11&B11,'Superstrat Option List'!#REF!&'Superstrat Option List'!A6:A278&'Superstrat Option List'!B6:B278,0)),\"Select Option\")","v":"Select Option"},{"$f":"IFERROR(INDEX('Superstrat Option List'!D6:D1932,MATCH(A11&B11&C11,'Superstrat Option List'!A6:A1932&'Superstrat Option List'!B6:B1932&'Superstrat Option List'!C6:C1932,0)),\"Please choose option\")","v":0}]
[null,"Neck Specifications"]
["Neck Specifications","Number of frets",{"$f":"IFERROR(INDEX('Superstrat Option List'!C6:C277,MATCH(#REF!&A13&B13,'Superstrat Option List'!#REF!&'Superstrat Option List'!A6:A277&'Superstrat Option List'!B6:B277,0)),\"Select Option\")","v":"Select Option"},{"$f":"IFERROR(INDEX('Superstrat Option List'!D10:D1936,MATCH(A13&B13&C13,'Superstrat Option List'!A10:A1936&'Superstrat Option List'!B10:B1936&'Superstrat Option List'!C10:C1936,0)),\"Please choose option\")","v":0}]
["Neck Specifications","Fretwire",{"$f":"IFERROR(INDEX('Superstrat Option List'!C7:C278,MATCH(#REF!&A14&B14,'Superstrat Option List'!#REF!&'Superstrat Option List'!A7:A278&'Superstrat Option List'!B7:B278,0)),\"Select Option\")","v":"Select Option"},{"$f":"IFERROR(INDEX('Superstrat Option List'!D11:D1937,MATCH(A14&B14&C14,'Superstrat Option List'!A11:A1937&'Superstrat Option List'!B11:B1937&'Superstrat Option List'!C11:C1937,0)),\"Please choose option\")","v":0}]
["Neck Specifications","Neck pieces",{"$f":"IFERROR(INDEX('Superstrat Option List'!C8:C279,MATCH(#REF!&A15&B15,'Superstrat Option List'!#REF!&'Superstrat Option List'!A8:A279&'Superstrat Option List'!B8:B279,0)),\"Select Option\")","v":"Select Option"},{"$f":"IFERROR(INDEX('Superstrat Option List'!D12:D1938,MATCH(A15&B15&C15,'Superstrat Option List'!A12:A1938&'Superstrat Option List'!B12:B1938&'Superstrat Option List'!C12:C1938,0)),\"Please choose option\")","v":0}]
[null,"Neck wood "]
[null,"Select option below for 1 piece neck "]
["Neck Specifications","1 Piece Neck Wood",{"$f":"INDEX('Superstrat Option List'!D2:D278,MATCH(A18&$B$16&B18,'Superstrat Option List'!A2:A278&'Superstrat Option List'!B2:B278&'Superstrat Option List'!C2:C278,0))","v":"Select Option"},{"$f":"IFERROR(INDEX('Superstrat Option List'!E14:E1941,MATCH(A18&$B$16&B18&C18,'Superstrat Option List'!A14:A1941&'Superstrat Option List'!B14:B1941&'Superstrat Option List'!C14:C1941&'Superstrat Option List'!D14:D1941,0)),\"Please choose option\")","v":0}]
[null,"Select options below for Multi-piece neck"]
["Neck Specifications","Multi-piece Neck Base Wood ",{"$f":"INDEX('Superstrat Option List'!D4:D280,MATCH(A20&$B$16&B20,'Superstrat Option List'!A4:A280&'Superstrat Option List'!B4:B280&'Superstrat Option List'!C4:C280,0))","v":"Select Option"},{"$f":"IFERROR(INDEX('Superstrat Option List'!E16:E1943,MATCH(A20&$B$16&B20&C20,'Superstrat Option List'!A16:A1943&'Superstrat Option List'!B16:B1943&'Superstrat Option List'!C16:C1943&'Superstrat Option List'!D16:D1943,0)),\"Please choose option\")","v":0}]
["Neck Specifications","Multi-piece Neck Thins Wood ",{"$f":"INDEX('Superstrat Option List'!D5:D281,MATCH(A21&$B$16&B21,'Superstrat Option List'!A5:A281&'Superstrat Option List'!B5:B281&'Superstrat Option List'!C5:C281,0))","v":"Select Option"},{"$f":"IFERROR(INDEX('Superstrat Option List'!E17:E1944,MATCH(A21&$B$16&B21&C21,'Superstrat Option List'!A17:A1944&'Superstrat Option List'!B17:B1944&'Superstrat Option List'!C17:C1944&'Superstrat Option List'!D17:D1944,0)),\"Please choose option\")","v":0}]
["Neck Specifications","Multi-piece Neck Thins Wood ",{"$f":"INDEX('Superstrat Option List'!D6:D282,MATCH(A22&$B$16&B22,'Superstrat Option List'!A6:A282&'Superstrat Option List'!B6:B282&'Superstrat Option List'!C6:C282,0))","v":"Select Option"},{"$f":"IFERROR(INDEX('Superstrat Option List'!E18:E1945,MATCH(A22&$B$16&B22&C22,'Superstrat Option List'!A18:A1945&'Superstrat Option List'!B18:B1945&'Superstrat Option List'!C18:C1945&'Superstrat Option List'!D18:D1945,0)),\"Please choose option\")","v":0}]
["Neck Specifications","Multi-piece Neck Thins Wood ",{"$f":"INDEX('Superstrat Option List'!D7:D283,MATCH(A23&$B$16&B23,'Superstrat Option List'!A7:A283&'Superstrat Option List'!B7:B283&'Superstrat Option List'!C7:C283,0))","v":"Select Option"},{"$f":"IFERROR(INDEX('Superstrat Option List'!E19:E1946,MATCH(A23&$B$16&B23&C23,'Superstrat Option List'!A19:A1946&'Superstrat Option List'!B19:B1946&'Superstrat Option List'!C19:C1946&'Superstrat Option List'!D19:D1946,0)),\"Please choose option\")","v":0}]
[null,"Fretboard Specifications"]
["Neck Specifications","Fretboard wood",{"$f":"IFERROR(INDEX('Superstrat Option List'!C29:C278,MATCH(#REF!&A25&B25,'Superstrat Option List'!#REF!&'Superstrat Option List'!A29:A278&'Superstrat Option List'!B29:B278,0)),\"Select Option\")","v":"Select Option"},{"$f":"IFERROR(INDEX('Superstrat Option List'!D28:D1952,MATCH(A25&B25&C25,'Superstrat Option List'!A28:A1952&'Superstrat Option List'!B28:B1952&'Superstrat Option List'!C28:C1952,0)),\"Please choose option\")","v":0}]
["Neck Specifications","Fretboard radius",{"$f":"IFERROR(INDEX('Superstrat Option List'!C29:C278,MATCH(#REF!&A26&B26,'Superstrat Option List'!#REF!&'Superstrat Option List'!A29:A278&'Superstrat Option List'!B29:B278,0)),\"Select Option\")","v":"Select Option"},{"$f":"IFERROR(INDEX('Superstrat Option List'!D29:D1953,MATCH(A26&B26&C26,'Superstrat Option List'!A29:A1953&'Superstrat Option List'!B29:B1953&'Superstrat Option List'!C29:C1953,0)),\"Please choose option\")","v":0}]
["Neck Specifications","Fretboard binding ",{"$f":"IFERROR(INDEX('Superstrat Option List'!C30:C278,MATCH(#REF!&A27&B27,'Superstrat Option List'!#REF!&'Superstrat Option List'!A30:A278&'Superstrat Option List'!B30:B278,0)),\"Select Option\")","v":"Select Option"},{"$f":"IFERROR(INDEX('Superstrat Option List'!D29:D1955,MATCH(A27&B27&C27,'Superstrat Option List'!A29:A1955&'Superstrat Option List'!B29:B1955&'Superstrat Option List'!C29:C1955,0)),\"Please choose option\")","v":0}]
["Neck Specifications","Fretboard inlays",{"$f":"IFERROR(INDEX('Superstrat Option List'!C30:C278,MATCH(#REF!&A28&B28,'Superstrat Option List'!#REF!&'Superstrat Option List'!A30:A278&'Superstrat Option List'!B30:B278,0)),\"Select Option\")","v":"Select Option"},{"$f":"IFERROR(INDEX('Superstrat Option List'!D30:D1956,MATCH(A28&B28&C28,'Superstrat Option List'!A30:A1956&'Superstrat Option List'!B30:B1956&'Superstrat Option List'!C30:C1956,0)),\"Please choose option\")","v":0}]
["Neck Specifications","Side markers",{"$f":"IFERROR(INDEX('Superstrat Option List'!C31:C278,MATCH(#REF!&A29&B29,'Superstrat Option List'!#REF!&'Superstrat Option List'!A31:A278&'Superstrat Option List'!B31:B278,0)),\"Select Option\")","v":"Select Option"},{"$f":"IFERROR(INDEX('Superstrat Option List'!D30:D1957,MATCH(A29&B29&C29,'Superstrat Option List'!A30:A1957&'Superstrat Option List'!B30:B1957&'Superstrat Option List'!C30:C1957,0)),\"Please choose option\")","v":0}]
[null,"Headstock Specifications"]
["Neck Specifications","Headstock shape",{"$f":"IFERROR(INDEX('Superstrat Option List'!C34:C278,MATCH(#REF!&A31&B31,'Superstrat Option List'!#REF!&'Superstrat Option List'!A34:A278&'Superstrat Option List'!B34:B278,0)),\"Select Option\")","v":"Select Option"},{"$f":"INDEX('Telething Option List'!D2:D225,MATCH('Mars Padalka Calculation'!A31&'Mars Padalka Calculation'!B31&'Mars Padalka Calculation'!C31,'Telething Option List'!A2:A225&'Telething Option List'!B2:B225&'Telething Option List'!C2:C225,0))","v":0}]
[null,"Body Specifications"]
["Body Specifications","Body wood",{"$f":"IFERROR(INDEX('Superstrat Option List'!C39:C278,MATCH(#REF!&A33&B33,'Superstrat Option List'!#REF!&'Superstrat Option List'!A39:A278&'Superstrat Option List'!B39:B278,0)),\"Select Option\")","v":"Select Option"},{"$f":"INDEX('Telething Option List'!D6:D229,MATCH('Mars Padalka Calculation'!A33&'Mars Padalka Calculation'!B33&'Mars Padalka Calculation'!C33,'Telething Option List'!A6:A229&'Telething Option List'!B6:B229&'Telething Option List'!C6:C229,0))","v":0}]
["Body Specifications","Front body carvings",{"$f":"IFERROR(INDEX('Superstrat Option List'!C41:C277,MATCH(#REF!&A34&B34,'Superstrat Option List'!#REF!&'Superstrat Option List'!A41:A277&'Superstrat Option List'!B41:B277,0)),\"Select Option\")","v":"Select Option"},{"$f":"INDEX('Telething Option List'!D7:D230,MATCH('Mars Padalka Calculation'!A34&'Mars Padalka Calculation'!B34&'Mars Padalka Calculation'!C34,'Telething Option List'!A7:A230&'Telething Option List'!B7:B230&'Telething Option List'!C7:C230,0))","v":0}]
["Body Specifications","Back body carvings",{"$f":"IFERROR(INDEX('Superstrat Option List'!C42:C278,MATCH(#REF!&A35&B35,'Superstrat Option List'!#REF!&'Superstrat Option List'!A42:A278&'Superstrat Option List'!B42:B278,0)),\"Select Option\")","v":"Select Option"},{"$f":"INDEX('Telething Option List'!D8:D231,MATCH('Mars Padalka Calculation'!A35&'Mars Padalka Calculation'!B35&'Mars Padalka Calculation'!C35,'Telething Option List'!A8:A231&'Telething Option List'!B8:B231&'Telething Option List'!C8:C231,0))","v":0}]
["Body Specifications","Body chambers",{"$f":"IFERROR(INDEX('Superstrat Option List'!C43:C278,MATCH(#REF!&A36&B36,'Superstrat Option List'!#REF!&'Superstrat Option List'!A43:A278&'Superstrat Option List'!B43:B278,0)),\"Select Option\")","v":"Select Option"},{"$f":"INDEX('Telething Option List'!D9:D232,MATCH('Mars Padalka Calculation'!A36&'Mars Padalka Calculation'!B36&'Mars Padalka Calculation'!C36,'Telething Option List'!A9:A232&'Telething Option List'!B9:B232&'Telething Option List'!C9:C232,0))","v":0}]
["Body Specifications","Top wood",{"$f":"IFERROR(INDEX('Superstrat Option List'!C44:C278,MATCH(#REF!&A37&B37,'Superstrat Option List'!#REF!&'Superstrat Option List'!A44:A278&'Superstrat Option List'!B44:B278,0)),\"Select Option\")","v":"Select Option"},{"$f":"INDEX('Telething Option List'!D10:D233,MATCH('Mars Padalka Calculation'!A37&'Mars Padalka Calculation'!B37&'Mars Padalka Calculation'!C37,'Telething Option List'!A10:A233&'Telething Option List'!B10:B233&'Telething Option List'!C10:C233,0))","v":0}]
["Body Specifications","Body binding",{"$f":"IFERROR(INDEX('Superstrat Option List'!C45:C278,MATCH(#REF!&A38&B38,'Superstrat Option List'!#REF!&'Superstrat Option List'!A45:A278&'Superstrat Option List'!B45:B278,0)),\"Select Option\")","v":"Select Option"},{"$f":"INDEX('Telething Option List'!D12:D235,MATCH('Mars Padalka Calculation'!A38&'Mars Padalka Calculation'!B38&'Mars Padalka Calculation'!C38,'Telething Option List'!A12:A235&'Telething Option List'!B12:B235&'Telething Option List'!C12:C235,0))","v":0}]
["Body Specifications","Finish",{"$f":"IFERROR(INDEX('Superstrat Option List'!C46:C278,MATCH(#REF!&A39&B39,'Superstrat Option List'!#REF!&'Superstrat Option List'!A46:A278&'Superstrat Option List'!B46:B278,0)),\"Select Option\")","v":"Select Option"},{"$f":"INDEX('Telething Option List'!D13:D236,MATCH('Mars Padalka Calculation'!A39&'Mars Padalka Calculation'!B39&'Mars Padalka Calculation'!C39,'Telething Option List'!A13:A236&'Telething Option List'!B13:B236&'Telething Option List'!C13:C236,0))","v":0}]
["Body Specifications","Colour",{"$f":"IFERROR(INDEX('Superstrat Option List'!C48:C278,MATCH(#REF!&A40&B40,'Superstrat Option List'!#REF!&'Superstrat Option List'!A48:A278&'Superstrat Option List'!B48:B278,0)),\"Select Option\")","v":"Select Option"},{"$f":"INDEX('Telething Option List'!D14:D237,MATCH('Mars Padalka Calculation'!A40&'Mars Padalka Calculation'!B40&'Mars Padalka Calculation'!C40,'Telething Option List'!A14:A237&'Telething Option List'!B14:B237&'Telething Option List'!C14:C237,0))","v":0}]
[null,"Hardware"]
["Hardware","Bridge",{"$f":"IFERROR(INDEX('Superstrat Option List'!C53:C278,MATCH(#REF!&A42&B42,'Superstrat Option List'!#REF!&'Superstrat Option List'!A53:A278&'Superstrat Option List'!B53:B278,0)),\"Select Option\")","v":"Select Option"},{"$f":"INDEX('Telething Option List'!D16:D239,MATCH('Mars Padalka Calculation'!A42&'Mars Padalka Calculation'!B42&'Mars Padalka Calculation'!C42,'Telething Option List'!A16:A239&'Telething Option List'!B16:B239&'Telething Option List'!C16:C239,0))","v":0}]
["Hardware","Tuning machines",{"$f":"IFERROR(INDEX('Superstrat Option List'!C57:C278,MATCH(#REF!&A43&B43,'Superstrat Option List'!#REF!&'Superstrat Option List'!A57:A278&'Superstrat Option List'!B57:B278,0)),\"Select Option\")","v":"Select Option"},{"$f":"INDEX('Telething Option List'!D17:D240,MATCH('Mars Padalka Calculation'!A43&'Mars Padalka Calculation'!B43&'Mars Padalka Calculation'!C43,'Telething Option List'!A17:A240&'Telething Option List'!B17:B240&'Telething Option List'!C17:C240,0))","v":0},null,null,{"$f":"IFERROR(INDEX('Superstrat Option List'!D57:D2360,MATCH(A43&B43&C43,'Superstrat Option List'!A57:A2360&'Superstrat Option List'!B57:B2360&'Superstrat Option List'!C57:C2360,0)),\"Please chose option\")","v":0}]
[null,"Electronics"]
["Electronics","Neck Pickup",{"$f":"IFERROR(INDEX('Superstrat Option List'!C61:C278,MATCH(#REF!&A45&B45,'Superstrat Option List'!#REF!&'Superstrat Option List'!A61:A278&'Superstrat Option List'!B61:B278,0)),\"Select Option\")","v":"Select Option"},{"$f":"INDEX('Telething Option List'!D5:D228,MATCH('Mars Padalka Calculation'!A45&'Mars Padalka Calculation'!B45&'Mars Padalka Calculation'!C45,'Telething Option List'!A5:A228&'Telething Option List'!B5:B228&'Telething Option List'!C5:C228,0))","v":0}]
["Electronics","Describe Pickup Model"]
["Electronics","Middle Pickup",{"$f":"IFERROR(INDEX('Superstrat Option List'!C63:C278,MATCH(#REF!&A47&B47,'Superstrat Option List'!#REF!&'Superstrat Option List'!A63:A278&'Superstrat Option List'!B63:B278,0)),\"Select Option\")","v":"Select Option"},{"$f":"INDEX('Telething Option List'!D7:D230,MATCH('Mars Padalka Calculation'!A47&'Mars Padalka Calculation'!B47&'Mars Padalka Calculation'!C47,'Telething Option List'!A7:A230&'Telething Option List'!B7:B230&'Telething Option List'!C7:C230,0))","v":0}]
["Electronics","Describe Pickup Model"]
["Electronics","Bridge Pickup",{"$f":"IFERROR(INDEX('Superstrat Option List'!C67:C278,MATCH(#REF!&A49&B49,'Superstrat Option List'!#REF!&'Superstrat Option List'!A67:A278&'Superstrat Option List'!B67:B278,0)),\"Select Option\")","v":"Select Option"},{"$f":"INDEX('Telething Option List'!D8:D232,MATCH('Mars Padalka Calculation'!A49&'Mars Padalka Calculation'!B49&'Mars Padalka Calculation'!C49,'Telething Option List'!A8:A232&'Telething Option List'!B8:B232&'Telething Option List'!C8:C232,0))","v":0}]
["Electronics","Describe Pickup Model"]
["Electronics","Pickup Switch",{"$f":"IFERROR(INDEX('Superstrat Option List'!C75:C278,MATCH(#REF!&A51&B51,'Superstrat Option List'!#REF!&'Superstrat Option List'!A75:A278&'Superstrat Option List'!B75:B278,0)),\"Select Option\")","v":"Select Option"},{"$f":"INDEX('Telething Option List'!D10:D234,MATCH('Mars Padalka Calculation'!A51&'Mars Padalka Calculation'!B51&'Mars Padalka Calculation'!C51,'Telething Option List'!A10:A234&'Telething Option List'!B10:B234&'Telething Option List'!C10:C234,0))","v":0}]
["Electronics","Piezo Pickups",{"$f":"IFERROR(INDEX('Superstrat Option List'!C78:C278,MATCH(#REF!&A52&B52,'Superstrat Option List'!#REF!&'Superstrat Option List'!A78:A278&'Superstrat Option List'!B78:B278,0)),\"Select Option\")","v":"Select Option"},{"$f":"INDEX('Telething Option List'!D11:D235,MATCH('Mars Padalka Calculation'!A52&'Mars Padalka Calculation'!B52&'Mars Padalka Calculation'!C52,'Telething Option List'!A11:A235&'Telething Option List'!B11:B235&'Telething Option List'!C11:C235,0))","v":0}]
["Electronics","Pre-amp",{"$f":"IFERROR(INDEX('Superstrat Option List'!C78:C278,MATCH(#REF!&A53&B53,'Superstrat Option List'!#REF!&'Superstrat Option List'!A78:A278&'Superstrat Option List'!B78:B278,0)),\"Select Option\")","v":"Select Option"},{"$f":"INDEX('Telething Option List'!D13:D237,MATCH('Mars Padalka Calculation'!A53&'Mars Padalka Calculation'!B53&'Mars Padalka Calculation'!C53,'Telething Option List'!A13:A237&'Telething Option List'!B13:B237&'Telething Option List'!C13:C237,0))","v":0}]
["Electronics","Describe Other Pre-amp"]
[null,"Total  ",null,{"$f":"IFERROR(SUM(D3:D54),\"select missing option\")","v":0}]
[null,"Name:"]
[null,"Country :"]
[null,"Adress :"]
[null,"E-mail :"]
[null,"Phone Number:"]
[null,"Body & Headstock Shapes available in this models"]
[null,"Mars-1 Body Model"]
[null,"Mars-2 Body Model"]
[null,"F-1 Headstock Model"]
[null,"F-2 Headstock Model"]

{"sheet":"Les Paulthing Option list","index":9,"n_rows":251,"n_cols":7,"rows_kept":251,"cut":false,"hidden":true,"merged":[]}
["Group","Description","Options","Rate $","2nd Rate","Russian Rates"]
["General Specifications","Model","Select Option",null,null,null,"Rate with formula, only change Russian rate"]
["General Specifications","Model","Mercury-1",{"$f":"F3*'Exchange Rate Calculation'!$Q$7","v":916.66300000000001},null,55000]
["General Specifications","Model","Mercury-2",{"$f":"F4*'Exchange Rate Calculation'!$Q$7","v":916.66300000000001},null,55000]
["General Specifications","Number of strings","Select Option"]
["General Specifications","Number of strings",6,0]
["General Specifications","Number of strings",7,50]
["General Specifications","Scale length","Select Option"]
["General Specifications","Scale length","24,75\"",0]
["General Specifications","Scale length","25,5\"",0]
["General Specifications","Scale length","26\"",0]
["General Specifications","Scale length","26,5\"",0]
["General Specifications","Scale length","27\"",0]
["General Specifications","Scale length","28\"",0]
["General Specifications","Neck joint construction","Select Option"]
["General Specifications","Neck joint construction","Bolt-on",0]
["General Specifications","Neck joint construction","Set neck",{"$f":"F17*'Exchange Rate Calculation'!$Q$7","v":49.9998},null,3000]
["Neck Specifications","Number of frets","Select Option"]
["Neck Specifications","Number of frets",24,0]
["Neck Specifications","Fretwire","Select Option"]
["Neck Specifications","Fretwire","Jescar stainless steel 2,3x1,4mm",25]
["Neck Specifications","Fretwire","Jescar stainless steel 2,5x1,3mm",25]
["Neck Specifications","Fretwire","Evo Gold 2,3x1,4mm",30]
["Neck Specifications","Fretwire","Jescar nickel-silver 2,3x1,4mm",10]
["Neck Specifications","Fretwire","Jescar nickel-silver 2,5x1,3mm",10]
["Neck Specifications","Neck pieces","Select Option"]
["Neck Specifications","Neck pieces",1,0]
["Neck Specifications","Neck pieces",3,{"$f":"F28*'Exchange Rate Calculation'!$Q$7","v":24.9999},null,1500]
["Neck Specifications","Neck pieces",5,{"$f":"F29*'Exchange Rate Calculation'!$Q$7","v":33.333199999999998},null,2000]
["Neck Specifications","Neck pieces",7,{"$f":"F30*'Exchange Rate Calculation'!$Q$7","v":49.9998},null,3000]
["Neck Specifications","Neck pieces",9,{"$f":"F31*'Exchange Rate Calculation'!$Q$7","v":66.666399999999996},null,4000]
["Neck Specifications","Neck pieces",11,{"$f":"F32*'Exchange Rate Calculation'!$Q$7","v":83.332999999999998},null,5000]
["Neck Specifications","Neck wood ","Select Option"]
["Neck Specifications","Neck wood ","1 Piece Neck Wood","none",0]
["Neck Specifications","Neck wood ","1 Piece Neck Wood","Hard maple",{"$f":"F35*'Exchange Rate Calculation'!$Q$7","v":49.9998},3000]
["Neck Specifications","Neck wood ","1 Piece Neck Wood","Curly maple",120]
["Neck Specifications","Neck wood ","1 Piece Neck Wood","African mahogany",50]
["Neck Specifications","Neck wood ","1 Piece Neck Wood","Bird`s eye maple",140]
["Neck Specifications","Neck wood ","1 Piece Neck Wood","Rosewood",150]
["Neck Specifications","Neck wood ","1 Piece Neck Wood","Padouk ",50]
["Neck Specifications","Neck wood ","1 Piece Neck Wood","Other ( contact for price )",0]
["Neck Specifications","Neck wood ","Select Option"]
["Neck Specifications","Neck wood ","Multi-piece Neck Base Wood ","none",0]
["Neck Specifications","Neck wood ","Multi-piece Neck Base Wood ","Hard maple",40]
["Neck Specifications","Neck wood ","Multi-piece Neck Base Wood ","Curly maple",100]
["Neck Specifications","Neck wood ","Multi-piece Neck Base Wood ","African mahogany",50]
["Neck Specifications","Neck wood ","Multi-piece Neck Base Wood ","Rosewood",150]
["Neck Specifications","Neck wood ","Multi-piece Neck Base Wood ","Padouk",50]
["Neck Specifications","Neck wood ","Multi-piece Neck Base Wood ","Sapele",50]
["Neck Specifications","Neck wood ","Multi-piece Neck Base Wood ","Limba",50]
["Neck Specifications","Neck wood ","Multi-piece Neck Base Wood ","Walnut",70]
["Neck Specifications","Neck wood ","Multi-piece Neck Base Wood ","Wenge",70]
["Neck Specifications","Neck wood ","Multi-piece Neck Base Wood ","Purpleheart",70]
["Neck Specifications","Neck wood ","Multi-piece Neck Base Wood ","Other ( contact for price )",0]
["Neck Specifications","Neck wood ","Select Option"]
["Neck Specifications","Neck wood ","Multi-piece Neck Thins Wood ","none",0]
["Neck Specifications","Neck wood ","Multi-piece Neck Thins Wood ","Hard maple",20]
["Neck Specifications","Neck wood ","Multi-piece Neck Thins Wood ","Padouk",25]
["Neck Specifications","Neck wood ","Multi-piece Neck Thins Wood ","African mahogany",25]
["Neck Specifications","Neck wood ","Multi-piece Neck Thins Wood ","Bubinga",25]
["Neck Specifications","Neck wood ","Multi-piece Neck Thins Wood ","Sapele",25]
["Neck Specifications","Neck wood ","Multi-piece Neck Thins Wood ","Limba",35]
["Neck Specifications","Neck wood ","Multi-piece Neck Thins Wood ","Walnut",35]
["Neck Specifications","Neck wood ","Multi-piece Neck Thins Wood ","Wenge",35]
["Neck Specifications","Neck wood ","Multi-piece Neck Thins Wood ","Purpleheart",35]
["Neck Specifications","Neck wood ","Multi-piece Neck Thins Wood ","Other ( contact for price )",0]
["Neck Specifications","Fretboard wood","Select Option"]
["Neck Specifications","Fretboard wood","Rosewood",40]
["Neck Specifications","Fretboard wood","Cocobolo",80]
["Neck Specifications","Fretboard wood","Ebony",65]
["Neck Specifications","Fretboard wood","Macassar",65]
["Neck Specifications","Fretboard wood","Hard maple",10]
["Neck Specifications","Fretboard wood","Bird`s eye maple",100]
["Neck Specifications","Fretboard wood","Curly maple",80]
["Neck Specifications","Fretboard wood","Purpleheart",40]
["Neck Specifications","Fretboard wood","Other exotic wood (contact for the price)",0]
["Neck Specifications","Fretboard radius","Select Option"]
["Neck Specifications","Fretboard radius","10\"",0]
["Neck Specifications","Fretboard radius","12\"",0]
["Neck Specifications","Fretboard radius","16\"",0]
["Neck Specifications","Fretboard radius","20\"",0]
["Neck Specifications","Fretboard radius","Compound radius",{"$f":"F82*'Exchange Rate Calculation'!$Q$7","v":116.6662},null,7000]
["Neck Specifications","Headstock shape","Select Option"]
["Neck Specifications","Headstock shape","ML",0]
["Neck Specifications","Headstock finish ","Select Option"]
["Neck Specifications","Headstock finish ","Matching top with veneer",{"$f":"F86*'Exchange Rate Calculation'!$Q$7","v":8.3332999999999995},null,500]
["Neck Specifications","Headstock finish ","Clear",0]
["Neck Specifications","Headstock binding ","Select Option"]
["Neck Specifications","Headstock binding ","None",0]
["Neck Specifications","Headstock binding ","Scraped binding",0]
["Neck Specifications","Headstock binding ","Binding 1 ply",{"$f":"F91*'Exchange Rate Calculation'!$Q$7","v":38.333179999999999},null,2300]
["Neck Specifications","Headstock binding ","Binding 3 ply",{"$f":"F92*'Exchange Rate Calculation'!$Q$7","v":63.333080000000002},null,3800]
["Neck Specifications","Fretboard binding ","Select Option"]
["Neck Specifications","Fretboard binding ","None",0]
["Neck Specifications","Fretboard binding ","Binding 1 ply",{"$f":"F95*'Exchange Rate Calculation'!$Q$7","v":46.66648},null,2800]
["Neck Specifications","Fretboard binding ","Binding 3 ply",{"$f":"F96*'Exchange Rate Calculation'!$Q$7","v":78.333020000000005},null,4700]
["Neck Specifications","Fretboard inlays","Select Option"]
["Neck Specifications","Fretboard inlays","None",0]
["Neck Specifications","Fretboard inlays","MOP dots 4mm",13]
["Neck Specifications","Fretboard inlays","MOP dots 6mm",18]
["Neck Specifications","Fretboard inlays","MOP triangles 5mm",{"$f":"F101*'Exchange Rate Calculation'!$Q$7","v":38.333179999999999},null,2300]
["Neck Specifications","Fretboard inlays","Aluminium rings ",{"$f":"F102*'Exchange Rate Calculation'!$Q$7","v":41.666499999999999},null,2500]
["Neck Specifications","Fretboard inlays","Custom design \"simple\"",{"$f":"F103*'Exchange Rate Calculation'!$Q$7","v":58.333100000000002},null,3500]
["Neck Specifications","Fretboard inlays","Custom design \"medium\"",{"$f":"F104*'Exchange Rate Calculation'!$Q$7","v":108.3329},null,6500]
["Neck Specifications","Fretboard inlays","Custom design \"complicated\"",{"$f":"F105*'Exchange Rate Calculation'!$Q$7","v":153.33271999999999},null,9200]
["Neck Specifications","Side markers","Select Option"]
["Neck Specifications","Side markers","None",0]
["Neck Specifications","Side markers","Plastic dots 2mm",0]
["Neck Specifications","Side markers","MOP dots 2mm",5]
["Neck Specifications","Side markers","Luminlay 3mm",25]
["Neck Specifications","Side markers","Plastic blocks",{"$f":"F111*'Exchange Rate Calculation'!$Q$7","v":49.9998},null,3000]
["Neck Specifications","Side markers","MOP blocks",{"$f":"F112*'Exchange Rate Calculation'!$Q$7","v":54.999780000000001},null,3300]
["Body Specifications","Body wood","Select Option"]
["Body Specifications","Body wood","Alder",{"$f":"F114*'Exchange Rate Calculation'!$Q$7","v":49.9998},null,3000]
["Body Specifications","Body wood","White ash",{"$f":"F115*'Exchange Rate Calculation'!$Q$7","v":49.9998},null,3000]
["Body Specifications","Body wood","Swamp ash",260]
["Body Specifications","Body wood","African mahogany",100]
["Body Specifications","Body wood","Basswood",45]
["Body Specifications","Body wood","Limba",250]
["Body Specifications","Body wood","Sapele",100]
["Body Specifications","Front body carvings","Select Option"]
["Body Specifications","Front body carvings","Carved top",0]
["Body Specifications","Body chambers","Select Option"]
["Body Specifications","Body chambers","None",0]
["Body Specifications","Body chambers","Weight reducing chambers (only with top)",60]
["Body Specifications","Top wood","Select Option"]
["Body Specifications","Top wood","None",0]
["Body Specifications","Top wood","White ash 16mm",{"$f":"F128*'Exchange Rate Calculation'!$Q$7","v":83.332999999999998},null,5000]
["Body Specifications","Top wood","Hard maple 16mm",{"$f":"F129*'Exchange Rate Calculation'!$Q$7","v":83.332999999999998},null,5000]
["Body Specifications","Top wood","Flame maple 16mm",310]
["Body Specifications","Top wood","Quilted maple 16mm",340]
["Body Specifications","Top wood","Walnut",160]
["Body Specifications","Top wood","Purpleheart",200]
["Body Specifications","Top wood","Other exotic wood (contact for the price)",0]
["Body Specifications","Body binding","Select Option"]
["Body Specifications","Body binding","None",0]
["Body Specifications","Body binding","Scraped binding",{"$f":"F137*'Exchange Rate Calculation'!$Q$7","v":8.3332999999999995},null,500]
["Body Specifications","Body binding","Binding 1 ply",{"$f":"F138*'Exchange Rate Calculation'!$Q$7","v":49.9998},null,3000]
["Body Specifications","Body binding","Binding 3 ply",{"$f":"F139*'Exchange Rate Calculation'!$Q$7","v":91.666300000000007},null,5500]
["Body Specifications","Finish","Select Option"]
["Body Specifications","Finish","Satin open pores",{"$f":"F141*'Exchange Rate Calculation'!$Q$7","v":8.3332999999999995},null,500]
["Body Specifications","Finish","Oil",{"$f":"F142*'Exchange Rate Calculation'!$Q$7","v":83.332999999999998},null,5000]
["Body Specifications","Finish","Gloss (bolt-on)",{"$f":"F143*'Exchange Rate Calculation'!$Q$7","v":158.33269999999999},null,9500]
["Body Specifications","Finish","Gloss (set neck)",{"$f":"F144*'Exchange Rate Calculation'!$Q$7","v":208.33250000000001},null,12500]
["Body Specifications","Finish","Gloss top (bolt-on)",{"$f":"F145*'Exchange Rate Calculation'!$Q$7","v":66.666399999999996},null,4000]
["Body Specifications","Finish","Gloss top (set neck)",{"$f":"F146*'Exchange Rate Calculation'!$Q$7","v":83.332999999999998},null,5000]
["Body Specifications","Colour","Select Option"]
["Body Specifications","Colour","Clear",0]
["Body Specifications","Colour","Uniform colour",{"$f":"F149*'Exchange Rate Calculation'!$Q$7","v":16.666599999999999},null,1000]
["Body Specifications","Colour","Burst",{"$f":"F150*'Exchange Rate Calculation'!$Q$7","v":33.333199999999998},null,2000]
["Body Specifications","Colour","Painted pores (top and headstock)",{"$f":"F151*'Exchange Rate Calculation'!$Q$7","v":33.333199999999998},null,2000]
["Body Specifications","Colour","Painted pores (body and headstock)",{"$f":"F152*'Exchange Rate Calculation'!$Q$7","v":66.666399999999996},null,4000]
["Hardware","Bridge","Select Option"]
["Hardware","Bridge","6str. Hipshot hardtail Black ",85]
["Hardware","Bridge","6str.Hipshot hardtail Chrome",85]
["Hardware","Bridge","6str.Hipshot hardtail Gold",110.5]
["Hardware","Bridge","6str.T-O-M Tonepros Black",75]
["Hardware","Bridge","6str.T-O-M Tonepros Chrome",75]
["Hardware","Bridge","6str.T-O-M Tonepros Gold",97.5]
["Hardware","Bridge","6str.T-O-M & Stopbar Tonepros Black",135]
["Hardware","Bridge","6str.T-O-M & Stopbar Tonepros Chrome",135]
["Hardware","Bridge","6str.T-O-M & Stopbar Tonepros Gold",175.5]
["Hardware","Bridge","6str.Floyd Rose Chrome",165]
["Hardware","Bridge","6str.Floyd Rose Black",180]
["Hardware","Bridge","6str.Floyd Rose Gold",195]
["Hardware","Bridge","7str.Hipshot hardtail Black",95]
["Hardware","Bridge","7str.Hipshot hardtail Chrome",95]
["Hardware","Bridge","7str.Hipshot hardtail Gold",123.5]
["Hardware","Bridge","7str.T-O-M Tonepros Black",85]
["Hardware","Bridge","7str.T-O-M Tonepros Chrome",85]
["Hardware","Bridge","7str.T-O-M Tonepros Gold",110.5]
["Hardware","Bridge","7str.T-O-M & Stopbar Tonepros Black",155]
["Hardware","Bridge","7str.T-O-M & Stopbar Tonepros Chrome",155]
["Hardware","Bridge","7str.T-O-M & Stopbar Tonepros Gold",201.5]
["Hardware","Bridge","7str.Floyd Rose Chrome",220]
["Hardware","Bridge","7str.Floyd Rose Black",230]
["Hardware","Bridge","7str.Floyd Rose Gold",250]
["Hardware","Bridge","Other ( contact for price )",0]
["Hardware","Tuning machines","Select Option"]
["Hardware","Tuning machines","None",0]
["Hardware","Tuning machines","Hipshot Griplock chrome ",11]
["Hardware","Tuning machines","Hipshot Griplock black ",12]
["Hardware","Tuning machines","Hipshot Griplock gold ",13]
["Hardware","Tuning machines","Gotoh SG381 non-locking Black",9]
["Hardware","Tuning machines","Gotoh SG381 non-locking Chrome",9]
["Hardware","Tuning machines","Gotoh SG381 non-locking Gold",11.699999999999998]
["Electronics","Neck Pickup","Select Option"]
["Electronics","Neck Pickup","None",0]
["Electronics","Neck Pickup","ARB 6st Humb",70]
["Electronics","Neck Pickup","ARB 7st Humb",80]
["Electronics","Neck Pickup","Fokin pickups 6st Humb",65]
["Electronics","Neck Pickup","Fokin pickups 7st Humb",70]
["Electronics","Neck Pickup","Dimarzio 6st Humb",110]
["Electronics","Neck Pickup","Dimarzio 7st Humb",110]
["Electronics","Neck Pickup","Seymour duncan 6st Humb",90]
["Electronics","Neck Pickup","Seymour duncan 7st Humb",115]
["Electronics","Neck Pickup","BKP 6st Humb",125]
["Electronics","Neck Pickup","BKP 7st Humb",130]
["Electronics","Neck Pickup","Fishman Fluence Modern",175]
["Electronics","Neck Pickup","ARB Singlecoil",60]
["Electronics","Neck Pickup","Fokin pickups 6 str Singlecoil",50]
["Electronics","Neck Pickup","Fokin pickups 7 str Singlecoil",55]
["Electronics","Neck Pickup","Dimarzio Singlecoil",100]
["Electronics","Neck Pickup","Seymour duncan Singlecoil",85]
["Electronics","Neck Pickup","BKP 6st Singlecoil",95]
["Electronics","Neck Pickup","BKP 7st Singlecoil",105]
["Electronics","Neck Pickup","Other ( contact for price )",0]
["Electronics","Middle Pickup","Select Option"]
["Electronics","Middle Pickup","None",0]
["Electronics","Middle Pickup","ARB Singlecoil",60]
["Electronics","Middle Pickup","Fokin pickups 6 str Singlecoil",50]
["Electronics","Middle Pickup","Fokin pickups 7 str Singlecoil",55]
["Electronics","Middle Pickup","Dimarzio Singlecoil",100]
["Electronics","Middle Pickup","Seymour duncan Singlecoil",85]
["Electronics","Middle Pickup","BKP 6st Singlecoil",95]
["Electronics","Middle Pickup","BKP 7st Singlecoil",105]
["Electronics","Middle Pickup","Other ( contact for price )",0]
["Electronics","Bridge Pickup","Select Option"]
["Electronics","Bridge Pickup","None",0]
["Electronics","Bridge Pickup","ARB 6st Humb",70]
["Electronics","Bridge Pickup","ARB 7st Humb",80]
["Electronics","Bridge Pickup","Fokin pickups 6st Humb",65]
["Electronics","Bridge Pickup","Fokin pickups 7st Humb",70]
["Electronics","Bridge Pickup","Dimarzio 6st Humb",110]
["Electronics","Bridge Pickup","Dimarzio 7st Humb",110]
["Electronics","Bridge Pickup","Seymour duncan 6st Humb",90]
["Electronics","Bridge Pickup","Seymour duncan 7st Humb",115]
["Electronics","Bridge Pickup","BKP 6st Humb",125]
["Electronics","Bridge Pickup","BKP 7st Humb",130]
["Electronics","Bridge Pickup","Fishman Fluence Modern",175]
["Electronics","Bridge Pickup","ARB Singlecoil",60]
["Electronics","Bridge Pickup","Fokin pickups 6 str Singlecoil",50]
["Electronics","Bridge Pickup","Fokin pickups 7 str Singlecoil",55]
["Electronics","Bridge Pickup","Dimarzio Singlecoil",100]
["Electronics","Bridge Pickup","Seymour duncan Singlecoil",85]
["Electronics","Bridge Pickup","BKP 6st Singlecoil",95]
["Electronics","Bridge Pickup","BKP 7st Singlecoil",105]
["Electronics","Bridge Pickup","Other ( contact for price )",0]
["Electronics","Pickup Switch","Select Option"]
["Electronics","Pickup Switch","3-way Toggle Switch",0]
["Electronics","Pickup Switch","3-way Blade Switch",0]
["Electronics","Pickup Switch","5-way Blade Switch",0]
["Electronics","Pickup Switch","5-way Mega Switch",30]
["Electronics","Piezo pickups","Select Option"]
["Electronics","Piezo pickups","None",0]
["Electronics","Piezo pickups","Ghost piezo saddles 6st",95]
["Electronics","Piezo pickups","Ghost piezo saddles 7st",120]
["Electronics","Pre-amp","Select Option"]
["Electronics","Pre-amp","none",0]
["Electronics","Pre-amp","Ghost  Acousti-phonic",75]
["Electronics","Pre-amp","Other ( contact for price )",0]

{"sheet":"Mercury Padalka Calculation","index":10,"n_rows":77,"n_cols":7,"rows_kept":77,"cut":false,"hidden":true,"merged":[[76,3,76,4],[26,2,26,4],[27,1,27,4],[16,1,16,4],[12,1,12,4],[70,2,70,4],[71,2,71,4],[72,2,72,4],[67,1,67,2],[67,3,67,4],[68,2,68,4],[69,2,69,4],[75,2,75,4],[19,1,19,4],[17,1,17,4],[66,2,66,4],[55,1,55,4],[57,2,57,4],[59,2,59,4],[61,2,61,4],[65,2,65,4],[4,1,4,4],[5,3,5,4],[6,1,6,4],[73,1,73,4],[74,2,74,4],[30,2,30,4],[49,1,49,2],[54,2,54,4],[39,2,39,4],[40,1,40,4],[48,2,48,4],[34,2,34,4],[35,1,35,4],[50,2,50,4],[51,1,51,4],[11,2,11,4]]}
[]
[]
[]
[]
[null,"Specifications"]
["Part","Description","Choosen option","Cost"]
["General Specifications","General Specifications"]
["General Specifications","Model",{"$f":"IFERROR(INDEX('Superstrat Option List'!C2:C278,MATCH(#REF!&A8&B8,'Superstrat Option List'!#REF!&'Superstrat Option List'!A2:A278&'Superstrat Option List'!B2:B278,0)),\"Select Option\")","v":"Select Option"},{"$f":"INDEX('Les Paulthing Option list'!D2:D251,MATCH('Mercury Padalka Calculation'!A8&'Mercury Padalka Calculation'!B8&'Mercury Padalka Calculation'!C8,'Les Paulthing Option list'!A2:A251&'Les Paulthing Option list'!B2:B251&'Les Paulthing Option list'!C2:C251,0))","v":0}]
["General Specifications","Number of Strings",{"$f":"IFERROR(INDEX('Superstrat Option List'!C3:C278,MATCH(#REF!&A9&B9,'Superstrat Option List'!#REF!&'Superstrat Option List'!A3:A278&'Superstrat Option List'!B3:B278,0)),\"Select Option\")","v":"Select Option"},{"$f":"IFERROR(INDEX('Superstrat Option List'!D3:D1929,MATCH(A9&B9&C9,'Superstrat Option List'!A3:A1929&'Superstrat Option List'!B3:B1929&'Superstrat Option List'!C3:C1929,0)),\"Please choose option\")","v":0}]
["General Specifications","Scale Length",{"$f":"IFERROR(INDEX('Superstrat Option List'!C4:C278,MATCH(#REF!&A10&B10,'Superstrat Option List'!#REF!&'Superstrat Option List'!A4:A278&'Superstrat Option List'!B4:B278,0)),\"Select Option\")","v":"Select Option"},{"$f":"IFERROR(INDEX('Superstrat Option List'!D4:D1930,MATCH(A10&B10&C10,'Superstrat Option List'!A4:A1930&'Superstrat Option List'!B4:B1930&'Superstrat Option List'!C4:C1930,0)),\"Please choose option\")","v":0}]
["General Specifications","Neck Joint Construction",{"$f":"IFERROR(INDEX('Superstrat Option List'!C6:C278,MATCH(#REF!&A11&B11,'Superstrat Option List'!#REF!&'Superstrat Option List'!A6:A278&'Superstrat Option List'!B6:B278,0)),\"Select Option\")","v":"Select Option"},{"$f":"IFERROR(INDEX('Superstrat Option List'!D6:D1932,MATCH(A11&B11&C11,'Superstrat Option List'!A6:A1932&'Superstrat Option List'!B6:B1932&'Superstrat Option List'!C6:C1932,0)),\"Please choose option\")","v":0}]
[]
[null,"Neck Specifications"]
["Neck Specifications","Number of frets",{"$f":"IFERROR(INDEX('Superstrat Option List'!C7:C278,MATCH(#REF!&A14&B14,'Superstrat Option List'!#REF!&'Superstrat Option List'!A7:A278&'Superstrat Option List'!B7:B278,0)),\"Select Option\")","v":"Select Option"},{"$f":"IFERROR(INDEX('Superstrat Option List'!D10:D1936,MATCH(A14&B14&C14,'Superstrat Option List'!A10:A1936&'Superstrat Option List'!B10:B1936&'Superstrat Option List'!C10:C1936,0)),\"Please choose option\")","v":0}]
["Neck Specifications","Fretwire",{"$f":"IFERROR(INDEX('Superstrat Option List'!C7:C278,MATCH(#REF!&A15&B15,'Superstrat Option List'!#REF!&'Superstrat Option List'!A7:A278&'Superstrat Option List'!B7:B278,0)),\"Select Option\")","v":"Select Option"},{"$f":"IFERROR(INDEX('Superstrat Option List'!D11:D1937,MATCH(A15&B15&C15,'Superstrat Option List'!A11:A1937&'Superstrat Option List'!B11:B1937&'Superstrat Option List'!C11:C1937,0)),\"Please choose option\")","v":0}]
["Neck Specifications","Neck pieces",{"$f":"IFERROR(INDEX('Superstrat Option List'!C7:C278,MATCH(#REF!&A16&B16,'Superstrat Option List'!#REF!&'Superstrat Option List'!A7:A278&'Superstrat Option List'!B7:B278,0)),\"Select Option\")","v":"Select Option"},{"$f":"IFERROR(INDEX('Superstrat Option List'!D12:D1938,MATCH(A16&B16&C16,'Superstrat Option List'!A12:A1938&'Superstrat Option List'!B12:B1938&'Superstrat Option List'!C12:C1938,0)),\"Please choose option\")","v":0}]
[null,"Neck wood "]
[null,"Select option below for 1 piece neck"]
["Neck Specifications","1 Piece Neck Wood",{"$f":"INDEX('Superstrat Option List'!D2:D278,MATCH(A19&$B$17&B19,'Superstrat Option List'!A2:A278&'Superstrat Option List'!B2:B278&'Superstrat Option List'!C2:C278,0))","v":"Select Option"},{"$f":"IFERROR(INDEX('Superstrat Option List'!E14:E1941,MATCH(A19&$B$17&B19&C19,'Superstrat Option List'!A14:A1941&'Superstrat Option List'!B14:B1941&'Superstrat Option List'!C14:C1941&'Superstrat Option List'!D14:D1941,0)),\"Please choose option\")","v":0}]
[null,"Select options below for Multi-piece neck"]
["Neck Specifications","Multi-piece Neck Base Wood ",{"$f":"INDEX('Superstrat Option List'!D4:D280,MATCH(A21&$B$17&B21,'Superstrat Option List'!A4:A280&'Superstrat Option List'!B4:B280&'Superstrat Option List'!C4:C280,0))","v":"Select Option"},{"$f":"IFERROR(INDEX('Superstrat Option List'!E16:E1943,MATCH(A21&$B$17&B21&C21,'Superstrat Option List'!A16:A1943&'Superstrat Option List'!B16:B1943&'Superstrat Option List'!C16:C1943&'Superstrat Option List'!D16:D1943,0)),\"Please choose option\")","v":0}]
["Neck Specifications","Multi-piece Neck Thins Wood ",{"$f":"INDEX('Superstrat Option List'!D5:D281,MATCH(A22&$B$17&B22,'Superstrat Option List'!A5:A281&'Superstrat Option List'!B5:B281&'Superstrat Option List'!C5:C281,0))","v":"Select Option"},{"$f":"IFERROR(INDEX('Superstrat Option List'!E17:E1944,MATCH(A22&$B$17&B22&C22,'Superstrat Option List'!A17:A1944&'Superstrat Option List'!B17:B1944&'Superstrat Option List'!C17:C1944&'Superstrat Option List'!D17:D1944,0)),\"Please choose option\")","v":0}]
["Neck Specifications","Multi-piece Neck Thins Wood ",{"$f":"INDEX('Superstrat Option List'!D6:D282,MATCH(A23&$B$17&B23,'Superstrat Option List'!A6:A282&'Superstrat Option List'!B6:B282&'Superstrat Option List'!C6:C282,0))","v":"Select Option"},{"$f":"IFERROR(INDEX('Superstrat Option List'!E18:E1945,MATCH(A23&$B$17&B23&C23,'Superstrat Option List'!A18:A1945&'Superstrat Option List'!B18:B1945&'Superstrat Option List'!C18:C1945&'Superstrat Option List'!D18:D1945,0)),\"Please choose option\")","v":0}]
["Neck Specifications","Multi-piece Neck Thins Wood ",{"$f":"INDEX('Superstrat Option List'!D7:D283,MATCH(A24&$B$17&B24,'Superstrat Option List'!A7:A283&'Superstrat Option List'!B7:B283&'Superstrat Option List'!C7:C283,0))","v":"Select Option"},{"$f":"IFERROR(INDEX('Superstrat Option List'!E19:E1946,MATCH(A24&$B$17&B24&C24,'Superstrat Option List'!A19:A1946&'Superstrat Option List'!B19:B1946&'Superstrat Option List'!C19:C1946&'Superstrat Option List'!D19:D1946,0)),\"Please choose option\")","v":0}]
["Neck Specifications","Multi-piece Neck Thins Wood ",{"$f":"INDEX('Superstrat Option List'!D8:D284,MATCH(A25&$B$17&B25,'Superstrat Option List'!A8:A284&'Superstrat Option List'!B8:B284&'Superstrat Option List'!C8:C284,0))","v":"Select Option"},{"$f":"IFERROR(INDEX('Superstrat Option List'!E21:E1947,MATCH(A25&$B$17&B25&C25,'Superstrat Option List'!A21:A1947&'Superstrat Option List'!B21:B1947&'Superstrat Option List'!C21:C1947&'Superstrat Option List'!D21:D1947,0)),\"Please choose option\")","v":0}]
["Neck Specifications","Multi-piece Neck Thins Wood ",{"$f":"INDEX('Superstrat Option List'!D9:D285,MATCH(A26&$B$17&B26,'Superstrat Option List'!A9:A285&'Superstrat Option List'!B9:B285&'Superstrat Option List'!C9:C285,0))","v":"Select Option"},{"$f":"IFERROR(INDEX('Superstrat Option List'!E22:E1948,MATCH(A26&$B$17&B26&C26,'Superstrat Option List'!A22:A1948&'Superstrat Option List'!B22:B1948&'Superstrat Option List'!C22:C1948&'Superstrat Option List'!D22:D1948,0)),\"Please choose option\")","v":0}]
[]
[null,"Fretboard Specifications"]
["Neck Specifications","Fretboard wood",{"$f":"IFERROR(INDEX('Superstrat Option List'!C29:C278,MATCH(#REF!&A29&B29,'Superstrat Option List'!#REF!&'Superstrat Option List'!A29:A278&'Superstrat Option List'!B29:B278,0)),\"Select Option\")","v":"Select Option"},{"$f":"IFERROR(INDEX('Superstrat Option List'!D28:D1952,MATCH(A29&B29&C29,'Superstrat Option List'!A28:A1952&'Superstrat Option List'!B28:B1952&'Superstrat Option List'!C28:C1952,0)),\"Please choose option\")","v":0}]
["Neck Specifications","Fretboard radius",{"$f":"IFERROR(INDEX('Superstrat Option List'!C29:C278,MATCH(#REF!&A30&B30,'Superstrat Option List'!#REF!&'Superstrat Option List'!A29:A278&'Superstrat Option List'!B29:B278,0)),\"Select Option\")","v":"Select Option"},{"$f":"IFERROR(INDEX('Superstrat Option List'!D29:D1953,MATCH(A30&B30&C30,'Superstrat Option List'!A29:A1953&'Superstrat Option List'!B29:B1953&'Superstrat Option List'!C29:C1953,0)),\"Please choose option\")","v":0}]
["Neck Specifications"]
["Neck Specifications","Fretboard binding ",{"$f":"IFERROR(INDEX('Superstrat Option List'!C30:C278,MATCH(#REF!&A32&B32,'Superstrat Option List'!#REF!&'Superstrat Option List'!A30:A278&'Superstrat Option List'!B30:B278,0)),\"Select Option\")","v":"Select Option"},{"$f":"IFERROR(INDEX('Superstrat Option List'!D29:D1955,MATCH(A32&B32&C32,'Superstrat Option List'!A29:A1955&'Superstrat Option List'!B29:B1955&'Superstrat Option List'!C29:C1955,0)),\"Please choose option\")","v":0}]
["Neck Specifications","Fretboard inlays",{"$f":"IFERROR(INDEX('Superstrat Option List'!C30:C278,MATCH(#REF!&A33&B33,'Superstrat Option List'!#REF!&'Superstrat Option List'!A30:A278&'Superstrat Option List'!B30:B278,0)),\"Select Option\")","v":"Select Option"},{"$f":"IFERROR(INDEX('Superstrat Option List'!D30:D1956,MATCH(A33&B33&C33,'Superstrat Option List'!A30:A1956&'Superstrat Option List'!B30:B1956&'Superstrat Option List'!C30:C1956,0)),\"Please choose option\")","v":0}]
["Neck Specifications","Side markers",{"$f":"IFERROR(INDEX('Superstrat Option List'!C31:C278,MATCH(#REF!&A34&B34,'Superstrat Option List'!#REF!&'Superstrat Option List'!A31:A278&'Superstrat Option List'!B31:B278,0)),\"Select Option\")","v":"Select Option"},{"$f":"IFERROR(INDEX('Superstrat Option List'!D30:D1957,MATCH(A34&B34&C34,'Superstrat Option List'!A30:A1957&'Superstrat Option List'!B30:B1957&'Superstrat Option List'!C30:C1957,0)),\"Please choose option\")","v":0}]
[]
[null,"Headstock Specifications"]
["Neck Specifications","Headstock shape",{"$f":"IFERROR(INDEX('Superstrat Option List'!C34:C278,MATCH(#REF!&A37&B37,'Superstrat Option List'!#REF!&'Superstrat Option List'!A34:A278&'Superstrat Option List'!B34:B278,0)),\"Select Option\")","v":"Select Option"},{"$f":"INDEX('Les Paulthing Option list'!D2:D251,MATCH('Mercury Padalka Calculation'!A37&'Mercury Padalka Calculation'!B37&'Mercury Padalka Calculation'!C37,'Les Paulthing Option list'!A2:A251&'Les Paulthing Option list'!B2:B251&'Les Paulthing Option list'!C2:C251,0))","v":0}]
["Neck Specifications","Headstock finish ",{"$f":"IFERROR(INDEX('Superstrat Option List'!C38:C278,MATCH(#REF!&A38&B38,'Superstrat Option List'!#REF!&'Superstrat Option List'!A38:A278&'Superstrat Option List'!B38:B278,0)),\"Select Option\")","v":"Select Option"},{"$f":"INDEX('Les Paulthing Option list'!D3:D252,MATCH('Mercury Padalka Calculation'!A38&'Mercury Padalka Calculation'!B38&'Mercury Padalka Calculation'!C38,'Les Paulthing Option list'!A3:A252&'Les Paulthing Option list'!B3:B252&'Les Paulthing Option list'!C3:C252,0))","v":0}]
["Neck Specifications","Headstock binding ",{"$f":"IFERROR(INDEX('Superstrat Option List'!C38:C278,MATCH(#REF!&A39&B39,'Superstrat Option List'!#REF!&'Superstrat Option List'!A38:A278&'Superstrat Option List'!B38:B278,0)),\"Select Option\")","v":"Select Option"},{"$f":"INDEX('Les Paulthing Option list'!D4:D253,MATCH('Mercury Padalka Calculation'!A39&'Mercury Padalka Calculation'!B39&'Mercury Padalka Calculation'!C39,'Les Paulthing Option list'!A4:A253&'Les Paulthing Option list'!B4:B253&'Les Paulthing Option list'!C4:C253,0))","v":0}]
[]
[null,"Body Specifications"]
["Body Specifications","Body wood",{"$f":"IFERROR(INDEX('Superstrat Option List'!C39:C278,MATCH(#REF!&A42&B42,'Superstrat Option List'!#REF!&'Superstrat Option List'!A39:A278&'Superstrat Option List'!B39:B278,0)),\"Select Option\")","v":"Select Option"},{"$f":"INDEX('Les Paulthing Option list'!D7:D256,MATCH('Mercury Padalka Calculation'!A42&'Mercury Padalka Calculation'!B42&'Mercury Padalka Calculation'!C42,'Les Paulthing Option list'!A7:A256&'Les Paulthing Option list'!B7:B256&'Les Paulthing Option list'!C7:C256,0))","v":0}]
["Body Specifications","Front body carvings",{"$f":"IFERROR(INDEX('Superstrat Option List'!C41:C278,MATCH(#REF!&A43&B43,'Superstrat Option List'!#REF!&'Superstrat Option List'!A41:A278&'Superstrat Option List'!B41:B278,0)),\"Select Option\")","v":"Select Option"},{"$f":"INDEX('Les Paulthing Option list'!D8:D257,MATCH('Mercury Padalka Calculation'!A43&'Mercury Padalka Calculation'!B43&'Mercury Padalka Calculation'!C43,'Les Paulthing Option list'!A8:A257&'Les Paulthing Option list'!B8:B257&'Les Paulthing Option list'!C8:C257,0))","v":0}]
["Body Specifications","Body chambers",{"$f":"IFERROR(INDEX('Superstrat Option List'!C43:C278,MATCH(#REF!&A44&B44,'Superstrat Option List'!#REF!&'Superstrat Option List'!A43:A278&'Superstrat Option List'!B43:B278,0)),\"Select Option\")","v":"Select Option"},{"$f":"INDEX('Les Paulthing Option list'!D10:D259,MATCH('Mercury Padalka Calculation'!A44&'Mercury Padalka Calculation'!B44&'Mercury Padalka Calculation'!C44,'Les Paulthing Option list'!A10:A259&'Les Paulthing Option list'!B10:B259&'Les Paulthing Option list'!C10:C259,0))","v":0}]
["Body Specifications","Top wood","Select Option",{"$f":"INDEX('Les Paulthing Option list'!D11:D260,MATCH('Mercury Padalka Calculation'!A45&'Mercury Padalka Calculation'!B45&'Mercury Padalka Calculation'!C45,'Les Paulthing Option list'!A11:A260&'Les Paulthing Option list'!B11:B260&'Les Paulthing Option list'!C11:C260,0))","v":0}]
["Body Specifications","Body binding",{"$f":"IFERROR(INDEX('Superstrat Option List'!C45:C278,MATCH(#REF!&A46&B46,'Superstrat Option List'!#REF!&'Superstrat Option List'!A45:A278&'Superstrat Option List'!B45:B278,0)),\"Select Option\")","v":"Select Option"},{"$f":"IFERROR(INDEX('Superstrat Option List'!D44:D1970,MATCH(A46&B46&C46,'Superstrat Option List'!A44:A1970&'Superstrat Option List'!B44:B1970&'Superstrat Option List'!C44:C1970,0)),\"Please choose option\")","v":0}]
["Body Specifications","Finish",{"$f":"IFERROR(INDEX('Superstrat Option List'!C46:C278,MATCH(#REF!&A47&B47,'Superstrat Option List'!#REF!&'Superstrat Option List'!A46:A278&'Superstrat Option List'!B46:B278,0)),\"Select Option\")","v":"Select Option"},{"$f":"IFERROR(INDEX('Superstrat Option List'!D45:D1971,MATCH(A47&B47&C47,'Superstrat Option List'!A45:A1971&'Superstrat Option List'!B45:B1971&'Superstrat Option List'!C45:C1971,0)),\"Please choose option\")","v":0}]
["Body Specifications","Colour",{"$f":"IFERROR(INDEX('Superstrat Option List'!C48:C278,MATCH(#REF!&A48&B48,'Superstrat Option List'!#REF!&'Superstrat Option List'!A48:A278&'Superstrat Option List'!B48:B278,0)),\"Select Option\")","v":"Select Option"},{"$f":"IFERROR(INDEX('Superstrat Option List'!D47:D1973,MATCH(A48&B48&C48,'Superstrat Option List'!A47:A1973&'Superstrat Option List'!B47:B1973&'Superstrat Option List'!C47:C1973,0)),\"Please choose option\")","v":0}]
["Body Specifications"]
[null,"Special upcharge",null,{"$f":"IF(C49>=F50,G50,0)","v":0},null,"White",50]
[]
[null,"Hardware"]
["Hardware","Bridge",{"$f":"IFERROR(INDEX('Superstrat Option List'!C53:C278,MATCH(#REF!&A53&B53,'Superstrat Option List'!#REF!&'Superstrat Option List'!A53:A278&'Superstrat Option List'!B53:B278,0)),\"Select Option\")","v":"Select Option"},{"$f":"INDEX('Les Paulthing Option list'!D2:D251,MATCH('Mercury Padalka Calculation'!A53&'Mercury Padalka Calculation'!B53&'Mercury Padalka Calculation'!C53,'Les Paulthing Option list'!A2:A251&'Les Paulthing Option list'!B2:B251&'Les Paulthing Option list'!C2:C251,0))","v":0}]
["Hardware","Tuning machines",{"$f":"IFERROR(INDEX('Superstrat Option List'!C57:C278,MATCH(#REF!&A54&B54,'Superstrat Option List'!#REF!&'Superstrat Option List'!A57:A278&'Superstrat Option List'!B57:B278,0)),\"Select Option\")","v":"Select Option"},{"$f":"IFERROR(F54*C9,\"$0,00\")","v":"$0,00"},null,{"$f":"IFERROR(INDEX('Superstrat Option List'!D57:D2360,MATCH(A54&B54&C54,'Superstrat Option List'!A57:A2360&'Superstrat Option List'!B57:B2360&'Superstrat Option List'!C57:C2360,0)),\"Please chose option\")","v":0}]
[]
[null,"Electronics"]
["Electronics","Neck Pickup",{"$f":"IFERROR(INDEX('Superstrat Option List'!C61:C278,MATCH(#REF!&A57&B57,'Superstrat Option List'!#REF!&'Superstrat Option List'!A61:A278&'Superstrat Option List'!B61:B278,0)),\"Select Option\")","v":"Select Option"},{"$f":"IFERROR(INDEX('Superstrat Option List'!D61:D1984,MATCH(A57&B57&C57,'Superstrat Option List'!A61:A1984&'Superstrat Option List'!B61:B1984&'Superstrat Option List'!C61:C1984,0)),\"Please choose option\")","v":0}]
["Electronics","Describe Pickup Model"]
["Electronics","Middle Pickup",{"$f":"IFERROR(INDEX('Superstrat Option List'!C63:C278,MATCH(#REF!&A59&B59,'Superstrat Option List'!#REF!&'Superstrat Option List'!A63:A278&'Superstrat Option List'!B63:B278,0)),\"Select Option\")","v":"Select Option"},{"$f":"IFERROR(INDEX('Superstrat Option List'!D63:D1986,MATCH(A59&B59&C59,'Superstrat Option List'!A63:A1986&'Superstrat Option List'!B63:B1986&'Superstrat Option List'!C63:C1986,0)),\"Please choose option\")","v":0}]
["Electronics","Describe Pickup Model"]
["Electronics","Bridge Pickup",{"$f":"IFERROR(INDEX('Superstrat Option List'!C67:C278,MATCH(#REF!&A61&B61,'Superstrat Option List'!#REF!&'Superstrat Option List'!A67:A278&'Superstrat Option List'!B67:B278,0)),\"Select Option\")","v":"Select Option"},{"$f":"IFERROR(INDEX('Superstrat Option List'!D67:D1988,MATCH(A61&B61&C61,'Superstrat Option List'!A67:A1988&'Superstrat Option List'!B67:B1988&'Superstrat Option List'!C67:C1988,0)),\"Please choose option\")","v":0}]
["Electronics","Describe Pickup Model"]
["Electronics","Pickup Switch",{"$f":"IFERROR(INDEX('Superstrat Option List'!C75:C278,MATCH(#REF!&A63&B63,'Superstrat Option List'!#REF!&'Superstrat Option List'!A75:A278&'Superstrat Option List'!B75:B278,0)),\"Select Option\")","v":"Select Option"},{"$f":"IFERROR(INDEX('Superstrat Option List'!D74:D1990,MATCH(A63&B63&C63,'Superstrat Option List'!A74:A1990&'Superstrat Option List'!B74:B1990&'Superstrat Option List'!C74:C1990,0)),\"Please choose option\")","v":0}]
["Electronics","Piezo Pickups",{"$f":"IFERROR(INDEX('Superstrat Option List'!C78:C278,MATCH(#REF!&A64&B64,'Superstrat Option List'!#REF!&'Superstrat Option List'!A78:A278&'Superstrat Option List'!B78:B278,0)),\"Select Option\")","v":"Select Option"},{"$f":"IFERROR(INDEX('Superstrat Option List'!D75:D1991,MATCH(A64&B64&C64,'Superstrat Option List'!A75:A1991&'Superstrat Option List'!B75:B1991&'Superstrat Option List'!C75:C1991,0)),\"Please choose option\")","v":0}]
["Electronics","Pre-amp",{"$f":"IFERROR(INDEX('Superstrat Option List'!C78:C278,MATCH(#REF!&A65&B65,'Superstrat Option List'!#REF!&'Superstrat Option List'!A78:A278&'Superstrat Option List'!B78:B278,0)),\"Select Option\")","v":"Select Option"},{"$f":"IFERROR(INDEX('Superstrat Option List'!D78:D1993,MATCH(A65&B65&C65,'Superstrat Option List'!A78:A1993&'Superstrat Option List'!B78:B1993&'Superstrat Option List'!C78:C1993,0)),\"Please choose option\")","v":0}]
["Electronics","Describe Other Pre-amp"]
[]
[null,"Total  ",null,{"$f":"IFERROR(SUM(D8:D67),\"Please select missing option\")","v":0}]
[null,"Name:"]
[null,"Country :"]
[null,"Adress :"]
[null,"E-mail :"]
[null,"Phone Number:"]
[null,"Body & Headstock Shapes available in this models"]
[null,"Mercury-1 Body Model"]
[null,"Mercury-2 Body Model"]
[null,"ML Headstock Model"]

{"sheet":"Ennea Guitar Option list","index":11,"n_rows":216,"n_cols":7,"rows_kept":216,"cut":false,"hidden":true,"merged":[]}
["Group","Description","Options","Rate $","2nd Rate","Russian Rate"]
["General Specifications","Model","Select Option",null,null,null,"Rate with formula, only change Russian rate"]
["General Specifications","Model","Ennea Guitar",{"$f":"F3*'Exchange Rate Calculation'!$Q$7","v":999.99599999999998},null,60000]
["General Specifications","Number of strings","Select Option"]
["General Specifications","Number of strings",6,0]
["General Specifications","Number of strings",7,50]
["General Specifications","Scale length","Select Option"]
["General Specifications","Scale length","25,5\"",0]
["General Specifications","Scale length","26\"",0]
["General Specifications","Scale length","26,5\"",0]
["General Specifications","Scale length","27\"",0]
["General Specifications","Scale length","28\"",0]
["General Specifications","Neck joint construction","Select Option"]
["General Specifications","Neck joint construction","Set neck",60]
["Neck Specifications","Number of frets","Select Option"]
["Neck Specifications","Number of frets",24,0]
["Neck Specifications","Fretwire","Select Option"]
["Neck Specifications","Fretwire","Jescar stainless steel 2,3x1,4mm",25]
["Neck Specifications","Fretwire","Jescar stainless steel 2,5x1,3mm",25]
["Neck Specifications","Fretwire","Evo Gold 2,3x1,4mm",30]
["Neck Specifications","Fretwire","Jescar nickel-silver 2,3x1,4mm",10]
["Neck Specifications","Fretwire","Jescar nickel-silver 2,5x1,3mm",10]
["Neck Specifications","Neck pieces","Select Option"]
["Neck Specifications","Neck pieces",1,0]
["Neck Specifications","Neck pieces",3,{"$f":"F25*'Exchange Rate Calculation'!$Q$7","v":24.9999},null,1500]
["Neck Specifications","Neck pieces",5,{"$f":"F26*'Exchange Rate Calculation'!$Q$7","v":33.333199999999998},null,2000]
["Neck Specifications","Neck pieces",7,{"$f":"F27*'Exchange Rate Calculation'!$Q$7","v":49.9998},null,3000]
["Neck Specifications","Neck pieces",9,{"$f":"F28*'Exchange Rate Calculation'!$Q$7","v":66.666399999999996},null,4000]
["Neck Specifications","Neck pieces",11,{"$f":"F29*'Exchange Rate Calculation'!$Q$7","v":83.332999999999998},null,5000]
["Neck Specifications","Neck wood ","Select Option"]
["Neck Specifications","Neck wood ","1 Piece Neck Wood","none",0]
["Neck Specifications","Neck wood ","1 Piece Neck Wood","Hard maple",{"$f":"F32*'Exchange Rate Calculation'!$Q$7","v":49.9998},3000]
["Neck Specifications","Neck wood ","1 Piece Neck Wood","Curly maple",120]
["Neck Specifications","Neck wood ","1 Piece Neck Wood","African mahogany",50]
["Neck Specifications","Neck wood ","1 Piece Neck Wood","Bird`s eye maple",140]
["Neck Specifications","Neck wood ","1 Piece Neck Wood","Rosewood",150]
["Neck Specifications","Neck wood ","1 Piece Neck Wood","Padouk ",50]
["Neck Specifications","Neck wood ","1 Piece Neck Wood","Other ( contact for price )",0]
["Neck Specifications","Neck wood ","Select Option"]
["Neck Specifications","Neck wood ","Multi-piece Neck Base Wood ","none",0]
["Neck Specifications","Neck wood ","Multi-piece Neck Base Wood ","Hard maple",40]
["Neck Specifications","Neck wood ","Multi-piece Neck Base Wood ","Curly maple",100]
["Neck Specifications","Neck wood ","Multi-piece Neck Base Wood ","African mahogany",50]
["Neck Specifications","Neck wood ","Multi-piece Neck Base Wood ","Rosewood",150]
["Neck Specifications","Neck wood ","Multi-piece Neck Base Wood ","Padouk",50]
["Neck Specifications","Neck wood ","Multi-piece Neck Base Wood ","Sapele",50]
["Neck Specifications","Neck wood ","Multi-piece Neck Base Wood ","Limba",50]
["Neck Specifications","Neck wood ","Multi-piece Neck Base Wood ","Walnut",70]
["Neck Specifications","Neck wood ","Multi-piece Neck Base Wood ","Wenge",70]
["Neck Specifications","Neck wood ","Multi-piece Neck Base Wood ","Purpleheart",70]
["Neck Specifications","Neck wood ","Multi-piece Neck Base Wood ","Other ( contact for price )",0]
["Neck Specifications","Neck wood ","Select Option"]
["Neck Specifications","Neck wood ","Multi-piece Neck Thins Wood ","none",0]
["Neck Specifications","Neck wood ","Multi-piece Neck Thins Wood ","Hard maple",20]
["Neck Specifications","Neck wood ","Multi-piece Neck Thins Wood ","Padouk",25]
["Neck Specifications","Neck wood ","Multi-piece Neck Thins Wood ","African mahogany",25]
["Neck Specifications","Neck wood ","Multi-piece Neck Thins Wood ","Bubinga",25]
["Neck Specifications","Neck wood ","Multi-piece Neck Thins Wood ","Sapele",25]
["Neck Specifications","Neck wood ","Multi-piece Neck Thins Wood ","Limba",35]
["Neck Specifications","Neck wood ","Multi-piece Neck Thins Wood ","Walnut",35]
["Neck Specifications","Neck wood ","Multi-piece Neck Thins Wood ","Wenge",35]
["Neck Specifications","Neck wood ","Multi-piece Neck Thins Wood ","Purpleheart",35]
["Neck Specifications","Neck wood ","Multi-piece Neck Thins Wood ","Other ( contact for price )",0]
["Neck Specifications","Fretboard wood","Select Option"]
["Neck Specifications","Fretboard wood","Rosewood",40]
["Neck Specifications","Fretboard wood","Cocobolo",80]
["Neck Specifications","Fretboard wood","Ebony",65]
["Neck Specifications","Fretboard wood","Macassar",65]
["Neck Specifications","Fretboard wood","Hard maple",10]
["Neck Specifications","Fretboard wood","Bird`s eye maple",100]
["Neck Specifications","Fretboard wood","Curly maple",80]
["Neck Specifications","Fretboard wood","Purpleheart",40]
["Neck Specifications","Fretboard wood","Other exotic wood (contact for the price)",0]
["Neck Specifications","Fretboard radius","Select Option"]
["Neck Specifications","Fretboard radius","10\"",0]
["Neck Specifications","Fretboard radius","12\"",0]
["Neck Specifications","Fretboard radius","16\"",0]
["Neck Specifications","Fretboard radius","20\"",0]
["Neck Specifications","Fretboard radius","Compound radius",{"$f":"F79*'Exchange Rate Calculation'!$Q$7","v":116.6662},null,7000]
["Neck Specifications","Headstock shape","Select Option"]
["Neck Specifications","Headstock shape","Ennea",0]
["Neck Specifications","Headstock finish ","Select Option"]
["Neck Specifications","Headstock finish ","Matching top with veneer",{"$f":"F83*'Exchange Rate Calculation'!$Q$7","v":8.3332999999999995},null,500]
["Neck Specifications","Headstock finish ","Clear",0]
["Neck Specifications","Fretboard binding ","Select Option"]
["Neck Specifications","Fretboard binding ","None",0]
["Neck Specifications","Fretboard binding ","Binding 1 ply",{"$f":"F87*'Exchange Rate Calculation'!$Q$7","v":46.66648},null,2800]
["Neck Specifications","Fretboard binding ","Binding 3 ply",{"$f":"F88*'Exchange Rate Calculation'!$Q$7","v":78.333020000000005},null,4700]
["Neck Specifications","Fretboard inlays","Select Option"]
["Neck Specifications","Fretboard inlays","None",0]
["Neck Specifications","Fretboard inlays","MOP dots 4mm",13]
["Neck Specifications","Fretboard inlays","MOP dots 6mm",18]
["Neck Specifications","Fretboard inlays","MOP triangles 5mm",{"$f":"F93*'Exchange Rate Calculation'!$Q$7","v":38.333179999999999},null,2300]
["Neck Specifications","Fretboard inlays","Aluminium rings ",{"$f":"F94*'Exchange Rate Calculation'!$Q$7","v":41.666499999999999},null,2500]
["Neck Specifications","Fretboard inlays","Custom design \"simple\"",{"$f":"F95*'Exchange Rate Calculation'!$Q$7","v":58.333100000000002},null,3500]
["Neck Specifications","Fretboard inlays","Custom design \"medium\"",{"$f":"F96*'Exchange Rate Calculation'!$Q$7","v":108.3329},null,6500]
["Neck Specifications","Fretboard inlays","Custom design \"complicated\"",{"$f":"F97*'Exchange Rate Calculation'!$Q$7","v":153.33271999999999},null,9200]
["Neck Specifications","Side markers","Select Option"]
["Neck Specifications","Side markers","None",0]
["Neck Specifications","Side markers","Plastic dots 2mm",0]
["Neck Specifications","Side markers","MOP dots 2mm",5]
["Neck Specifications","Side markers","Luminlay 3mm",25]
["Neck Specifications","Side markers","Plastic blocks",{"$f":"F103*'Exchange Rate Calculation'!$Q$7","v":49.9998},null,3000]
["Neck Specifications","Side markers","MOP blocks",{"$f":"F104*'Exchange Rate Calculation'!$Q$7","v":54.999780000000001},null,3300]
["Body Specifications","Body wood","Select Option"]
["Body Specifications","Body wood","Alder",{"$f":"F106*'Exchange Rate Calculation'!$Q$7","v":49.9998},null,3000]
["Body Specifications","Body wood","White ash",{"$f":"F107*'Exchange Rate Calculation'!$Q$7","v":49.9998},null,3000]
["Body Specifications","Body wood","Swamp ash",260]
["Body Specifications","Body wood","African mahogany",100]
["Body Specifications","Body wood","Basswood",45]
["Body Specifications","Body wood","Limba",250]
["Body Specifications","Body wood","Sapele",100]
["Body Specifications","Finish","Select Option"]
["Body Specifications","Finish","Satin open pores",{"$f":"F114*'Exchange Rate Calculation'!$Q$7","v":8.3332999999999995},null,500]
["Body Specifications","Finish","Oil",{"$f":"F115*'Exchange Rate Calculation'!$Q$7","v":83.332999999999998},null,5000]
["Body Specifications","Finish","Gloss (bolt-on)",{"$f":"F116*'Exchange Rate Calculation'!$Q$7","v":158.33269999999999},null,9500]
["Body Specifications","Finish","Gloss (set neck)",{"$f":"F117*'Exchange Rate Calculation'!$Q$7","v":208.33250000000001},null,12500]
["Body Specifications","Finish","Gloss top (bolt-on)",{"$f":"F118*'Exchange Rate Calculation'!$Q$7","v":66.666399999999996},null,4000]
["Body Specifications","Finish","Gloss top (set neck)",{"$f":"F119*'Exchange Rate Calculation'!$Q$7","v":83.332999999999998},null,5000]
["Body Specifications","Colour","Select Option"]
["Body Specifications","Colour","Clear",0]
["Body Specifications","Colour","Uniform colour",{"$f":"F122*'Exchange Rate Calculation'!$Q$7","v":16.666599999999999},null,1000]
["Body Specifications","Colour","Burst",{"$f":"F123*'Exchange Rate Calculation'!$Q$7","v":33.333199999999998},null,2000]
["Body Specifications","Colour","Painted pores (top and headstock)",{"$f":"F124*'Exchange Rate Calculation'!$Q$7","v":33.333199999999998},null,2000]
["Body Specifications","Colour","Painted pores (body and headstock)",{"$f":"F125*'Exchange Rate Calculation'!$Q$7","v":66.666399999999996},null,4000]
["Hardware","Bridge","Select Option"]
["Hardware","Bridge","None",0]
["Hardware","Bridge","6str. Hipshot hardtail Black ",85]
["Hardware","Bridge","6str.Hipshot hardtail Chrome",85]
["Hardware","Bridge","6str.Hipshot hardtail Gold",110.5]
["Hardware","Bridge","7str.Hipshot hardtail Black",95]
["Hardware","Bridge","7str.Hipshot hardtail Chrome",95]
["Hardware","Bridge","7str.Hipshot hardtail Gold",123.5]
["Hardware","Bridge","8str.Hipshot hardtail Black",100]
["Hardware","Bridge","8str.Hipshot hardtail Chrome",100]
["Hardware","Bridge","8str.Hipshot hardtail Gold",130]
["Hardware","Bridge","Other ( contact for price )",0]
["Hardware","Tuning machines","Select Option"]
["Hardware","Tuning machines","None",0]
["Hardware","Tuning machines","Hipshot Griplock chrome ",11]
["Hardware","Tuning machines","Hipshot Griplock black ",12]
["Hardware","Tuning machines","Hipshot Griplock gold ",13]
["Hardware","Tuning machines","Gotoh SG381 non-locking Black",9]
["Hardware","Tuning machines","Gotoh SG381 non-locking Chrome",9]
["Hardware","Tuning machines","Gotoh SG381 non-locking Gold",11.699999999999998]
["Electronics","Neck Pickup","Select Option"]
["Electronics","Neck Pickup","None",0]
["Electronics","Neck Pickup","ARB 6st Humb",70]
["Electronics","Neck Pickup","ARB 7st Humb",80]
["Electronics","Neck Pickup","ARB 8st Humb",85]
["Electronics","Neck Pickup","Fokin pickups 6st Humb",65]
["Electronics","Neck Pickup","Fokin pickups 7st Humb",70]
["Electronics","Neck Pickup","Fokin pickups 8st Humb",80]
["Electronics","Neck Pickup","Dimarzio 6st Humb",110]
["Electronics","Neck Pickup","Dimarzio 7st Humb",110]
["Electronics","Neck Pickup","Seymour duncan 6st Humb",90]
["Electronics","Neck Pickup","Seymour duncan 7st Humb",115]
["Electronics","Neck Pickup","BKP 6st Humb",125]
["Electronics","Neck Pickup","BKP 7st Humb",130]
["Electronics","Neck Pickup","BKP 8st Humb",145]
["Electronics","Neck Pickup","Fishman Fluence Modern",175]
["Electronics","Neck Pickup","ARB Singlecoil",60]
["Electronics","Neck Pickup","Fokin pickups 6 str Singlecoil",50]
["Electronics","Neck Pickup","Fokin pickups 7 str Singlecoil",55]
["Electronics","Neck Pickup","Dimarzio Singlecoil",100]
["Electronics","Neck Pickup","Seymour duncan Singlecoil",85]
["Electronics","Neck Pickup","BKP 6st Singlecoil",95]
["Electronics","Neck Pickup","BKP 7st Singlecoil",105]
["Electronics","Neck Pickup","Other ( contact for price )",0]
["Electronics","Middle Pickup","Select Option"]
["Electronics","Middle Pickup","None",0]
["Electronics","Middle Pickup","ARB Singlecoil",60]
["Electronics","Middle Pickup","Fokin pickups 6 str Singlecoil",50]
["Electronics","Middle Pickup","Fokin pickups 7 str Singlecoil",55]
["Electronics","Middle Pickup","Dimarzio Singlecoil",100]
["Electronics","Middle Pickup","Seymour duncan Singlecoil",85]
["Electronics","Middle Pickup","BKP 6st Singlecoil",95]
["Electronics","Middle Pickup","BKP 7st Singlecoil",105]
["Electronics","Middle Pickup","Other ( contact for price )",0]
["Electronics","Bridge Pickup","Select Option"]
["Electronics","Bridge Pickup","None",0]
["Electronics","Bridge Pickup","ARB 6st Humb",70]
["Electronics","Bridge Pickup","ARB 7st Humb",80]
["Electronics","Bridge Pickup","ARB 8st Humb",85]
["Electronics","Bridge Pickup","Fokin pickups 6st Humb",65]
["Electronics","Bridge Pickup","Fokin pickups 7st Humb",70]
["Electronics","Bridge Pickup","Fokin pickups 8st Humb",80]
["Electronics","Bridge Pickup","Dimarzio 6st Humb",110]
["Electronics","Bridge Pickup","Dimarzio 7st Humb",110]
["Electronics","Bridge Pickup","Seymour duncan 6st Humb",90]
["Electronics","Bridge Pickup","Seymour duncan 7st Humb",115]
["Electronics","Bridge Pickup","BKP 6st Humb",125]
["Electronics","Bridge Pickup","BKP 7st Humb",130]
["Electronics","Bridge Pickup","BKP 8st Humb",145]
["Electronics","Bridge Pickup","Fishman Fluence Modern",175]
["Electronics","Bridge Pickup","ARB Singlecoil",60]
["Electronics","Bridge Pickup","Fokin pickups 6 str Singlecoil",50]
["Electronics","Bridge Pickup","Fokin pickups 7 str Singlecoil",55]
["Electronics","Bridge Pickup","Dimarzio Singlecoil",100]
["Electronics","Bridge Pickup","Seymour duncan Singlecoil",85]
["Electronics","Bridge Pickup","BKP 6st Singlecoil",95]
["Electronics","Bridge Pickup","BKP 7st Singlecoil",105]
["Electronics","Bridge Pickup","Other ( contact for price )",0]
["Electronics","Pickup Switch","Select Option"]
["Electronics","Pickup Switch","3-way Toggle Switch",0]
["Electronics","Pickup Switch","3-way Blade Switch",0]
["Electronics","Pickup Switch","5-way Blade Switch",0]
["Electronics","Pickup Switch","5-way Mega Switch",30]
["Electronics","Piezo pickups","Select Option"]
["Electronics","Piezo pickups","None",0]
["Electronics","Piezo pickups","Ghost piezo saddles 6st",95]
["Electronics","Piezo pickups","Ghost piezo saddles 7st",120]
["Electronics","Pre-amp","Select Option"]
["Electronics","Pre-amp","none",0]
["Electronics","Pre-amp","Ghost  Acousti-phonic",75]
["Electronics","Pre-amp","Other ( contact for price )",0]

{"sheet":"Ennea Guitar Padalka Calculatio","index":12,"n_rows":70,"n_cols":7,"rows_kept":70,"cut":false,"hidden":true,"merged":[[55,2,55,4],[48,2,48,4],[49,1,49,4],[69,3,69,4],[64,2,64,4],[65,2,65,4],[66,2,66,4],[61,1,61,2],[61,3,61,4],[62,2,62,4],[63,2,63,4],[67,1,67,4],[68,2,68,4],[60,2,60,4],[59,2,59,4],[51,2,51,4],[4,1,4,4],[5,3,5,4],[6,1,6,4],[37,2,37,4],[38,1,38,4],[11,1,11,4],[15,1,15,4],[16,1,16,4],[26,1,26,4],[29,2,29,4],[33,2,33,4],[34,1,34,4],[53,2,53,4],[42,2,42,4],[44,2,44,4],[45,1,45,4],[18,1,18,4],[25,2,25,4],[43,1,43,2]]}
[]
[]
[]
[]
[null,"Specifications"]
["Part","Description","Choosen option","Cost"]
["General Specifications","General Specifications"]
["General Specifications","Model",{"$f":"IFERROR(INDEX('Superstrat Option List'!C2:C278,MATCH(#REF!&A8&B8,'Superstrat Option List'!#REF!&'Superstrat Option List'!A2:A278&'Superstrat Option List'!B2:B278,0)),\"Select Option\")","v":"Select Option"},{"$f":"INDEX('Ennea Guitar Option list'!D2:D216,MATCH('Ennea Guitar Padalka Calculatio'!A8&'Ennea Guitar Padalka Calculatio'!B8&'Ennea Guitar Padalka Calculatio'!C8,'Ennea Guitar Option list'!A2:A216&'Ennea Guitar Option list'!B2:B216&'Ennea Guitar Option list'!C2:C216,0))","v":0}]
["General Specifications","Number of Strings",{"$f":"IFERROR(INDEX('Superstrat Option List'!C3:C278,MATCH(#REF!&A9&B9,'Superstrat Option List'!#REF!&'Superstrat Option List'!A3:A278&'Superstrat Option List'!B3:B278,0)),\"Select Option\")","v":"Select Option"},{"$f":"IFERROR(INDEX('Superstrat Option List'!D3:D1929,MATCH(A9&B9&C9,'Superstrat Option List'!A3:A1929&'Superstrat Option List'!B3:B1929&'Superstrat Option List'!C3:C1929,0)),\"Please choose option\")","v":0}]
["General Specifications","Scale Length",{"$f":"IFERROR(INDEX('Superstrat Option List'!C4:C278,MATCH(#REF!&A10&B10,'Superstrat Option List'!#REF!&'Superstrat Option List'!A4:A278&'Superstrat Option List'!B4:B278,0)),\"Select Option\")","v":"Select Option"},{"$f":"IFERROR(INDEX('Superstrat Option List'!D4:D1930,MATCH(A10&B10&C10,'Superstrat Option List'!A4:A1930&'Superstrat Option List'!B4:B1930&'Superstrat Option List'!C4:C1930,0)),\"Please choose option\")","v":0}]
["General Specifications","Neck Joint Construction",{"$f":"IFERROR(INDEX('Superstrat Option List'!C6:C278,MATCH(#REF!&A11&B11,'Superstrat Option List'!#REF!&'Superstrat Option List'!A6:A278&'Superstrat Option List'!B6:B278,0)),\"Select Option\")","v":"Select Option"},{"$f":"IFERROR(INDEX('Superstrat Option List'!D6:D1932,MATCH(A11&B11&C11,'Superstrat Option List'!A6:A1932&'Superstrat Option List'!B6:B1932&'Superstrat Option List'!C6:C1932,0)),\"Please choose option\")","v":0}]
[null,"Neck Specifications"]
["Neck Specifications","Number of frets",{"$f":"IFERROR(INDEX('Superstrat Option List'!C7:C278,MATCH(#REF!&A13&B13,'Superstrat Option List'!#REF!&'Superstrat Option List'!A7:A278&'Superstrat Option List'!B7:B278,0)),\"Select Option\")","v":"Select Option"},{"$f":"IFERROR(INDEX('Superstrat Option List'!D10:D1936,MATCH(A13&B13&C13,'Superstrat Option List'!A10:A1936&'Superstrat Option List'!B10:B1936&'Superstrat Option List'!C10:C1936,0)),\"Please choose option\")","v":0}]
["Neck Specifications","Fretwire",{"$f":"IFERROR(INDEX('Superstrat Option List'!C7:C278,MATCH(#REF!&A14&B14,'Superstrat Option List'!#REF!&'Superstrat Option List'!A7:A278&'Superstrat Option List'!B7:B278,0)),\"Select Option\")","v":"Select Option"},{"$f":"IFERROR(INDEX('Superstrat Option List'!D11:D1937,MATCH(A14&B14&C14,'Superstrat Option List'!A11:A1937&'Superstrat Option List'!B11:B1937&'Superstrat Option List'!C11:C1937,0)),\"Please choose option\")","v":0}]
["Neck Specifications","Neck pieces",{"$f":"IFERROR(INDEX('Superstrat Option List'!C7:C278,MATCH(#REF!&A15&B15,'Superstrat Option List'!#REF!&'Superstrat Option List'!A7:A278&'Superstrat Option List'!B7:B278,0)),\"Select Option\")","v":"Select Option"},{"$f":"IFERROR(INDEX('Superstrat Option List'!D12:D1938,MATCH(A15&B15&C15,'Superstrat Option List'!A12:A1938&'Superstrat Option List'!B12:B1938&'Superstrat Option List'!C12:C1938,0)),\"Please choose option\")","v":0}]
[null,"Neck wood "]
[null,"Select option below for 1 piece neck"]
["Neck Specifications","1 Piece Neck Wood",{"$f":"INDEX('Superstrat Option List'!D2:D278,MATCH(A18&$B$16&B18,'Superstrat Option List'!A2:A278&'Superstrat Option List'!B2:B278&'Superstrat Option List'!C2:C278,0))","v":"Select Option"},{"$f":"IFERROR(INDEX('Superstrat Option List'!E14:E1941,MATCH(A18&$B$16&B18&C18,'Superstrat Option List'!A14:A1941&'Superstrat Option List'!B14:B1941&'Superstrat Option List'!C14:C1941&'Superstrat Option List'!D14:D1941,0)),\"Please choose option\")","v":0}]
[null,"Select options below for Multi-piece neck"]
["Neck Specifications","Multi-piece Neck Base Wood ",{"$f":"INDEX('Superstrat Option List'!D4:D280,MATCH(A20&$B$16&B20,'Superstrat Option List'!A4:A280&'Superstrat Option List'!B4:B280&'Superstrat Option List'!C4:C280,0))","v":"Select Option"},{"$f":"IFERROR(INDEX('Superstrat Option List'!E16:E1943,MATCH(A20&$B$16&B20&C20,'Superstrat Option List'!A16:A1943&'Superstrat Option List'!B16:B1943&'Superstrat Option List'!C16:C1943&'Superstrat Option List'!D16:D1943,0)),\"Please choose option\")","v":0}]
["Neck Specifications","Multi-piece Neck Thins Wood ",{"$f":"INDEX('Superstrat Option List'!D5:D281,MATCH(A21&$B$16&B21,'Superstrat Option List'!A5:A281&'Superstrat Option List'!B5:B281&'Superstrat Option List'!C5:C281,0))","v":"Select Option"},{"$f":"IFERROR(INDEX('Superstrat Option List'!E17:E1944,MATCH(A21&$B$16&B21&C21,'Superstrat Option List'!A17:A1944&'Superstrat Option List'!B17:B1944&'Superstrat Option List'!C17:C1944&'Superstrat Option List'!D17:D1944,0)),\"Please choose option\")","v":0}]
["Neck Specifications","Multi-piece Neck Thins Wood ",{"$f":"INDEX('Superstrat Option List'!D6:D282,MATCH(A22&$B$16&B22,'Superstrat Option List'!A6:A282&'Superstrat Option List'!B6:B282&'Superstrat Option List'!C6:C282,0))","v":"Select Option"},{"$f":"IFERROR(INDEX('Superstrat Option List'!E18:E1945,MATCH(A22&$B$16&B22&C22,'Superstrat Option List'!A18:A1945&'Superstrat Option List'!B18:B1945&'Superstrat Option List'!C18:C1945&'Superstrat Option List'!D18:D1945,0)),\"Please choose option\")","v":0}]
["Neck Specifications","Multi-piece Neck Thins Wood ",{"$f":"INDEX('Superstrat Option List'!D7:D283,MATCH(A23&$B$16&B23,'Superstrat Option List'!A7:A283&'Superstrat Option List'!B7:B283&'Superstrat Option List'!C7:C283,0))","v":"Select Option"},{"$f":"IFERROR(INDEX('Superstrat Option List'!E19:E1946,MATCH(A23&$B$16&B23&C23,'Superstrat Option List'!A19:A1946&'Superstrat Option List'!B19:B1946&'Superstrat Option List'!C19:C1946&'Superstrat Option List'!D19:D1946,0)),\"Please choose option\")","v":0}]
["Neck Specifications","Multi-piece Neck Thins Wood ",{"$f":"INDEX('Superstrat Option List'!D8:D284,MATCH(A24&$B$16&B24,'Superstrat Option List'!A8:A284&'Superstrat Option List'!B8:B284&'Superstrat Option List'!C8:C284,0))","v":"Select Option"},{"$f":"IFERROR(INDEX('Superstrat Option List'!E21:E1947,MATCH(A24&$B$16&B24&C24,'Superstrat Option List'!A21:A1947&'Superstrat Option List'!B21:B1947&'Superstrat Option List'!C21:C1947&'Superstrat Option List'!D21:D1947,0)),\"Please choose option\")","v":0}]
["Neck Specifications","Multi-piece Neck Thins Wood ",{"$f":"INDEX('Superstrat Option List'!D9:D285,MATCH(A25&$B$16&B25,'Superstrat Option List'!A9:A285&'Superstrat Option List'!B9:B285&'Superstrat Option List'!C9:C285,0))","v":"Select Option"},{"$f":"IFERROR(INDEX('Superstrat Option List'!E22:E1948,MATCH(A25&$B$16&B25&C25,'Superstrat Option List'!A22:A1948&'Superstrat Option List'!B22:B1948&'Superstrat Option List'!C22:C1948&'Superstrat Option List'!D22:D1948,0)),\"Please choose option\")","v":0}]
[]
[null,"Fretboard Specifications"]
["Neck Specifications","Fretboard wood",{"$f":"IFERROR(INDEX('Superstrat Option List'!C29:C278,MATCH(#REF!&A28&B28,'Superstrat Option List'!#REF!&'Superstrat Option List'!A29:A278&'Superstrat Option List'!B29:B278,0)),\"Select Option\")","v":"Select Option"},{"$f":"IFERROR(INDEX('Superstrat Option List'!D28:D1952,MATCH(A28&B28&C28,'Superstrat Option List'!A28:A1952&'Superstrat Option List'!B28:B1952&'Superstrat Option List'!C28:C1952,0)),\"Please choose option\")","v":0}]
["Neck Specifications","Fretboard radius",{"$f":"IFERROR(INDEX('Superstrat Option List'!C29:C278,MATCH(#REF!&A29&B29,'Superstrat Option List'!#REF!&'Superstrat Option List'!A29:A278&'Superstrat Option List'!B29:B278,0)),\"Select Option\")","v":"Select Option"},{"$f":"IFERROR(INDEX('Superstrat Option List'!D29:D1953,MATCH(A29&B29&C29,'Superstrat Option List'!A29:A1953&'Superstrat Option List'!B29:B1953&'Superstrat Option List'!C29:C1953,0)),\"Please choose option\")","v":0}]
["Neck Specifications"]
["Neck Specifications","Fretboard binding ",{"$f":"IFERROR(INDEX('Superstrat Option List'!C30:C278,MATCH(#REF!&A31&B31,'Superstrat Option List'!#REF!&'Superstrat Option List'!A30:A278&'Superstrat Option List'!B30:B278,0)),\"Select Option\")","v":"Select Option"},{"$f":"IFERROR(INDEX('Superstrat Option List'!D29:D1955,MATCH(A31&B31&C31,'Superstrat Option List'!A29:A1955&'Superstrat Option List'!B29:B1955&'Superstrat Option List'!C29:C1955,0)),\"Please choose option\")","v":0}]
["Neck Specifications","Fretboard inlays",{"$f":"IFERROR(INDEX('Superstrat Option List'!C30:C278,MATCH(#REF!&A32&B32,'Superstrat Option List'!#REF!&'Superstrat Option List'!A30:A278&'Superstrat Option List'!B30:B278,0)),\"Select Option\")","v":"Select Option"},{"$f":"IFERROR(INDEX('Superstrat Option List'!D30:D1956,MATCH(A32&B32&C32,'Superstrat Option List'!A30:A1956&'Superstrat Option List'!B30:B1956&'Superstrat Option List'!C30:C1956,0)),\"Please choose option\")","v":0}]
["Neck Specifications","Side markers",{"$f":"IFERROR(INDEX('Superstrat Option List'!C31:C278,MATCH(#REF!&A33&B33,'Superstrat Option List'!#REF!&'Superstrat Option List'!A31:A278&'Superstrat Option List'!B31:B278,0)),\"Select Option\")","v":"Select Option"},{"$f":"IFERROR(INDEX('Superstrat Option List'!D30:D1957,MATCH(A33&B33&C33,'Superstrat Option List'!A30:A1957&'Superstrat Option List'!B30:B1957&'Superstrat Option List'!C30:C1957,0)),\"Please choose option\")","v":0}]
[]
[null,"Headstock Specifications"]
["Neck Specifications","Headstock shape",{"$f":"IFERROR(INDEX('Superstrat Option List'!C34:C278,MATCH(#REF!&A36&B36,'Superstrat Option List'!#REF!&'Superstrat Option List'!A34:A278&'Superstrat Option List'!B34:B278,0)),\"Select Option\")","v":"Select Option"},{"$f":"IFERROR(INDEX('Ennea Guitar Option list'!D2:D216,MATCH('Ennea Guitar Padalka Calculatio'!A36&'Ennea Guitar Padalka Calculatio'!B36&'Ennea Guitar Padalka Calculatio'!C36,'Ennea Guitar Option list'!A2:A216&'Ennea Guitar Option list'!B2:B216&'Ennea Guitar Option list'!C2:C216,0)),\"$0,00\")","v":0}]
["Neck Specifications","Headstock finish ",{"$f":"IFERROR(INDEX('Superstrat Option List'!C38:C279,MATCH(#REF!&A37&B37,'Superstrat Option List'!#REF!&'Superstrat Option List'!A38:A279&'Superstrat Option List'!B38:B279,0)),\"Select Option\")","v":"Select Option"},{"$f":"IFERROR(INDEX('Ennea Guitar Option list'!D3:D217,MATCH('Ennea Guitar Padalka Calculatio'!A37&'Ennea Guitar Padalka Calculatio'!B37&'Ennea Guitar Padalka Calculatio'!C37,'Ennea Guitar Option list'!A3:A217&'Ennea Guitar Option list'!B3:B217&'Ennea Guitar Option list'!C3:C217,0)),\"$0,00\")","v":0}]
[]
[null,"Body Specifications"]
["Body Specifications","Body wood",{"$f":"IFERROR(INDEX('Superstrat Option List'!C39:C278,MATCH(#REF!&A40&B40,'Superstrat Option List'!#REF!&'Superstrat Option List'!A39:A278&'Superstrat Option List'!B39:B278,0)),\"Select Option\")","v":"Select Option"},{"$f":"IFERROR(INDEX('Ennea Guitar Option list'!D6:D220,MATCH('Ennea Guitar Padalka Calculatio'!A40&'Ennea Guitar Padalka Calculatio'!B40&'Ennea Guitar Padalka Calculatio'!C40,'Ennea Guitar Option list'!A6:A220&'Ennea Guitar Option list'!B6:B220&'Ennea Guitar Option list'!C6:C220,0)),\"$0,00\")","v":0}]
["Body Specifications","Finish",{"$f":"IFERROR(INDEX('Superstrat Option List'!C46:C278,MATCH(#REF!&A41&B41,'Superstrat Option List'!#REF!&'Superstrat Option List'!A46:A278&'Superstrat Option List'!B46:B278,0)),\"Select Option\")","v":"Select Option"},{"$f":"IFERROR(INDEX('Superstrat Option List'!D45:D1971,MATCH(A41&B41&C41,'Superstrat Option List'!A45:A1971&'Superstrat Option List'!B45:B1971&'Superstrat Option List'!C45:C1971,0)),\"Please choose option\")","v":0}]
["Body Specifications","Colour",{"$f":"IFERROR(INDEX('Superstrat Option List'!C48:C278,MATCH(#REF!&A42&B42,'Superstrat Option List'!#REF!&'Superstrat Option List'!A48:A278&'Superstrat Option List'!B48:B278,0)),\"Select Option\")","v":"Select Option"},{"$f":"IFERROR(INDEX('Superstrat Option List'!D47:D1973,MATCH(A42&B42&C42,'Superstrat Option List'!A47:A1973&'Superstrat Option List'!B47:B1973&'Superstrat Option List'!C47:C1973,0)),\"Please choose option\")","v":0}]
["Body Specifications"]
[null,"Special upcharge",null,{"$f":"IF(C43>=F44,G44,0)","v":0},null,"White",50]
[]
[null,"Hardware"]
["Hardware","Bridge",{"$f":"IFERROR(INDEX('Superstrat Option List'!C50:C278,MATCH(#REF!&A47&B47,'Superstrat Option List'!#REF!&'Superstrat Option List'!A50:A278&'Superstrat Option List'!B50:B278,0)),\"Select Option\")","v":"Select Option"},{"$f":"IFERROR(INDEX('Superstrat Option List'!D52:D1977,MATCH(A47&B47&C47,'Superstrat Option List'!A52:A1977&'Superstrat Option List'!B52:B1977&'Superstrat Option List'!C52:C1977,0)),\"Please choose option\")","v":0}]
["Hardware","Tuning machines",{"$f":"IFERROR(INDEX('Superstrat Option List'!C57:C278,MATCH(#REF!&A48&B48,'Superstrat Option List'!#REF!&'Superstrat Option List'!A57:A278&'Superstrat Option List'!B57:B278,0)),\"Select Option\")","v":"Select Option"},{"$f":"IFERROR(F48*C9,\"$0,00\")","v":"$0,00"},null,{"$f":"IFERROR(INDEX('Superstrat Option List'!D57:D2360,MATCH(A48&B48&C48,'Superstrat Option List'!A57:A2360&'Superstrat Option List'!B57:B2360&'Superstrat Option List'!C57:C2360,0)),\"Please chose option\")","v":0}]
[]
[null,"Electronics"]
["Electronics","Neck Pickup",{"$f":"IFERROR(INDEX('Superstrat Option List'!C61:C278,MATCH(#REF!&A51&B51,'Superstrat Option List'!#REF!&'Superstrat Option List'!A61:A278&'Superstrat Option List'!B61:B278,0)),\"Select Option\")","v":"Select Option"},{"$f":"INDEX('Ennea Guitar Option list'!D5:D219,MATCH('Ennea Guitar Padalka Calculatio'!A51&'Ennea Guitar Padalka Calculatio'!B51&'Ennea Guitar Padalka Calculatio'!C51,'Ennea Guitar Option list'!A5:A219&'Ennea Guitar Option list'!B5:B219&'Ennea Guitar Option list'!C5:C219,0))","v":0}]
["Electronics","Describe Pickup Model"]
["Electronics","Middle Pickup",{"$f":"IFERROR(INDEX('Superstrat Option List'!C63:C278,MATCH(#REF!&A53&B53,'Superstrat Option List'!#REF!&'Superstrat Option List'!A63:A278&'Superstrat Option List'!B63:B278,0)),\"Select Option\")","v":"Select Option"},{"$f":"INDEX('Ennea Guitar Option list'!D7:D221,MATCH('Ennea Guitar Padalka Calculatio'!A53&'Ennea Guitar Padalka Calculatio'!B53&'Ennea Guitar Padalka Calculatio'!C53,'Ennea Guitar Option list'!A7:A221&'Ennea Guitar Option list'!B7:B221&'Ennea Guitar Option list'!C7:C221,0))","v":0}]
["Electronics","Describe Pickup Model"]
["Electronics","Bridge Pickup",{"$f":"IFERROR(INDEX('Superstrat Option List'!C67:C278,MATCH(#REF!&A55&B55,'Superstrat Option List'!#REF!&'Superstrat Option List'!A67:A278&'Superstrat Option List'!B67:B278,0)),\"Select Option\")","v":"Select Option"},{"$f":"INDEX('Ennea Guitar Option list'!D8:D223,MATCH('Ennea Guitar Padalka Calculatio'!A55&'Ennea Guitar Padalka Calculatio'!B55&'Ennea Guitar Padalka Calculatio'!C55,'Ennea Guitar Option list'!A8:A223&'Ennea Guitar Option list'!B8:B223&'Ennea Guitar Option list'!C8:C223,0))","v":0}]
["Electronics","Describe Pickup Model"]
["Electronics","Pickup Switch",{"$f":"IFERROR(INDEX('Superstrat Option List'!C75:C278,MATCH(#REF!&A57&B57,'Superstrat Option List'!#REF!&'Superstrat Option List'!A75:A278&'Superstrat Option List'!B75:B278,0)),\"Select Option\")","v":"Select Option"},{"$f":"INDEX('Ennea Guitar Option list'!D9:D225,MATCH('Ennea Guitar Padalka Calculatio'!A57&'Ennea Guitar Padalka Calculatio'!B57&'Ennea Guitar Padalka Calculatio'!C57,'Ennea Guitar Option list'!A9:A225&'Ennea Guitar Option list'!B9:B225&'Ennea Guitar Option list'!C9:C225,0))","v":0}]
["Electronics","Piezo Pickups",{"$f":"IFERROR(INDEX('Superstrat Option List'!C78:C278,MATCH(#REF!&A58&B58,'Superstrat Option List'!#REF!&'Superstrat Option List'!A78:A278&'Superstrat Option List'!B78:B278,0)),\"Select Option\")","v":"Select Option"},{"$f":"INDEX('Ennea Guitar Option list'!D10:D226,MATCH('Ennea Guitar Padalka Calculatio'!A58&'Ennea Guitar Padalka Calculatio'!B58&'Ennea Guitar Padalka Calculatio'!C58,'Ennea Guitar Option list'!A10:A226&'Ennea Guitar Option list'!B10:B226&'Ennea Guitar Option list'!C10:C226,0))","v":0}]
["Electronics","Pre-amp",{"$f":"IFERROR(INDEX('Superstrat Option List'!C78:C278,MATCH(#REF!&A59&B59,'Superstrat Option List'!#REF!&'Superstrat Option List'!A78:A278&'Superstrat Option List'!B78:B278,0)),\"Select Option\")","v":"Select Option"},{"$f":"INDEX('Ennea Guitar Option list'!D12:D228,MATCH('Ennea Guitar Padalka Calculatio'!A59&'Ennea Guitar Padalka Calculatio'!B59&'Ennea Guitar Padalka Calculatio'!C59,'Ennea Guitar Option list'!A12:A228&'Ennea Guitar Option list'!B12:B228&'Ennea Guitar Option list'!C12:C228,0))","v":0}]
["Electronics","Describe Other Pre-amp"]
[]
[null,"Total  ",null,{"$f":"IFERROR(SUM(D8:D61),\"Please select missing option\")","v":0}]
[null,"Name:"]
[null,"Country :"]
[null,"Adress :"]
[null,"E-mail :"]
[null,"Phone Number:"]
[null,"Body & Headstock Shapes available in this models"]
[null,"Ennea Body Model"]
[null,"Ennea Headstock Model"]

{"sheet":"Ennea Bass Option list","index":13,"n_rows":141,"n_cols":7,"rows_kept":141,"cut":false,"hidden":true,"merged":[]}
["Group","Description","Options","Rate $","2nd Rate $","Russian Rate"]
["General Specifications","Model","Select Option",null,null,null,"Rate with formula, only change Russian rate"]
["General Specifications","Model","Ennea Bass Doublecut",2500]
["General Specifications","Model","Ennea Bass Singlecut",2500]
["General Specifications","Number of strings","Select Option"]
["General Specifications","Number of strings",4,0]
["General Specifications","Number of strings",5,85]
["General Specifications","Number of strings",6,165]
["General Specifications","Scale length","Select Option"]
["General Specifications","Scale length","34\"",0]
["General Specifications","Scale length","35\" ",0]
["General Specifications","Scale length","Multiscale",200]
["General Specifications","Neck joint construction","Select Option"]
["General Specifications","Neck joint construction","Set neck",0]
["Neck Specifications","Number of frets","Select Option"]
["Neck Specifications","Number of frets",24,0]
["Neck Specifications","Number of frets",26,0]
["Neck Specifications","Number of frets","Fretless",0]
["Neck Specifications","Fretwire","Select Option"]
["Neck Specifications","Fretwire","None ( Fretless)",0]
["Neck Specifications","Fretwire","Jescar stainless steel 2,3x1,4mm",0]
["Neck Specifications","Fretwire","Jescar stainless steel 2,5x1,3mm",0]
["Neck Specifications","Fretwire","Evo Gold 2,3x1,4mm",25]
["Neck Specifications","Fretwire","Jescar nickel-silver 2,3x1,4mm",0]
["Neck Specifications","Fretwire","Jescar nickel-silver 2,5x1,3mm",0]
["Neck Specifications","Neck pieces","Select Option"]
["Neck Specifications","Neck pieces",1,0]
["Neck Specifications","Neck pieces",3,{"$f":"F28*'Exchange Rate Calculation'!$Q$7","v":0}]
["Neck Specifications","Neck pieces",5,{"$f":"F29*'Exchange Rate Calculation'!$Q$7","v":0}]
["Neck Specifications","Neck pieces",7,50]
["Neck Specifications","Neck pieces","7 + 2 veneer",60]
["Neck Specifications","Neck wood ","Select Option"]
["Neck Specifications","Neck wood ","1 Piece Neck Wood","none",0]
["Neck Specifications","Neck wood ","1 Piece Neck Wood","Hard maple",{"$f":"F34*'Exchange Rate Calculation'!$Q$7","v":0}]
["Neck Specifications","Neck wood ","1 Piece Neck Wood","Flame maple",220]
["Neck Specifications","Neck wood ","1 Piece Neck Wood","African mahogany",85]
["Neck Specifications","Neck wood ","1 Piece Neck Wood","Bird`s eye maple",220]
["Neck Specifications","Neck wood ","1 Piece Neck Wood","Pau Ferro",210]
["Neck Specifications","Neck wood ","1 Piece Neck Wood","Padouk ",100]
["Neck Specifications","Neck wood ","1 Piece Neck Wood","Other ( contact for price )",0]
["Neck Specifications","Neck wood ","Select Option"]
["Neck Specifications","Neck wood ","Multi-piece Neck Base Wood ","none",0]
["Neck Specifications","Neck wood ","Multi-piece Neck Base Wood ","Hard maple",0]
["Neck Specifications","Neck wood ","Multi-piece Neck Base Wood ","Flame maple",220]
["Neck Specifications","Neck wood ","Multi-piece Neck Base Wood ","African mahogany",85]
["Neck Specifications","Neck wood ","Multi-piece Neck Base Wood ","Pau Ferro",210]
["Neck Specifications","Neck wood ","Multi-piece Neck Base Wood ","Padouk",100]
["Neck Specifications","Neck wood ","Multi-piece Neck Base Wood ","Sapele",100]
["Neck Specifications","Neck wood ","Multi-piece Neck Base Wood ","Limba",100]
["Neck Specifications","Neck wood ","Multi-piece Neck Base Wood ","Walnut",100]
["Neck Specifications","Neck wood ","Multi-piece Neck Base Wood ","Wenge",210]
["Neck Specifications","Neck wood ","Multi-piece Neck Base Wood ","Purpleheart",165]
["Neck Specifications","Neck wood ","Multi-piece Neck Base Wood ","Other ( contact for price )",0]
["Neck Specifications","Neck wood ","Select Option"]
["Neck Specifications","Neck wood ","Multi-piece Neck Thins Wood ","none",0]
["Neck Specifications","Neck wood ","Multi-piece Neck Thins Wood ","Hard maple",0]
["Neck Specifications","Neck wood ","Multi-piece Neck Thins Wood ","Wenge",63]
["Neck Specifications","Neck wood ","Multi-piece Neck Thins Wood ","Padouk",30]
["Neck Specifications","Neck wood ","Multi-piece Neck Thins Wood ","African mahogany",25]
["Neck Specifications","Neck wood ","Multi-piece Neck Thins Wood ","Bubinga",50]
["Neck Specifications","Neck wood ","Multi-piece Neck Thins Wood ","Sapele",30]
["Neck Specifications","Neck wood ","Multi-piece Neck Thins Wood ","Limba",30]
["Neck Specifications","Neck wood ","Multi-piece Neck Thins Wood ","Walnut",30]
["Neck Specifications","Neck wood ","Multi-piece Neck Thins Wood ","Purpleheart",50]
["Neck Specifications","Neck wood ","Multi-piece Neck Thins Wood ","Other ( contact for price )",0]
["Neck Specifications","Fretboard wood","Select Option"]
["Neck Specifications","Fretboard wood","Pau Ferro ",0]
["Neck Specifications","Fretboard wood","Pale moon ebony",165]
["Neck Specifications","Fretboard wood","Ebony",110]
["Neck Specifications","Fretboard wood","Macassar",110]
["Neck Specifications","Fretboard wood","Hard maple",0]
["Neck Specifications","Fretboard wood","Bird`s eye maple",90]
["Neck Specifications","Fretboard wood","Zebrano",50]
["Neck Specifications","Fretboard wood","Ziricote",110]
["Neck Specifications","Fretboard wood","other exotic wood (contact for the price)",0]
["Neck Specifications","Fretboard radius","Select Option"]
["Neck Specifications","Fretboard radius","10\"",0]
["Neck Specifications","Fretboard radius","12\"",0]
["Neck Specifications","Fretboard radius","16\"",0]
["Neck Specifications","Fretboard radius","20\"",0]
["Neck Specifications","Fretboard radius","37\"",{"$f":"F81*'Exchange Rate Calculation'!$Q$7","v":0}]
["Neck Specifications","Headstock shape","Select Option"]
["Neck Specifications","Headstock shape","Ennea",0]
["Neck Specifications","Headstock finish ","Select Option"]
["Neck Specifications","Headstock finish ","Matching body with veneer",{"$f":"F85*'Exchange Rate Calculation'!$Q$7","v":0}]
["Neck Specifications","Headstock finish ","Clear",0]
["Neck Specifications","Fretboard binding ","Select Option"]
["Neck Specifications","Fretboard binding ","None",0]
["Neck Specifications","Fretboard binding ","Binding 1 ply",50]
["Neck Specifications","Fretboard binding ","Binding 2 ply",100]
["Neck Specifications","Fretboard inlays","Select Option"]
["Neck Specifications","Fretboard inlays","None",0]
["Neck Specifications","Fretboard inlays","MOP dots 4mm",0]
["Neck Specifications","Fretboard inlays","MOP dots 6mm",0]
["Neck Specifications","Fretboard inlays","Plastic dots 2mm",{"$f":"F95*'Exchange Rate Calculation'!$Q$7","v":0}]
["Neck Specifications","Fretboard inlays","Custom design \"simple\"",50]
["Neck Specifications","Fretboard inlays","Custom design \"medium\"",115]
["Neck Specifications","Fretboard inlays","Custom design \"complicated\"",165]
["Neck Specifications","Side markers","Select Option"]
["Neck Specifications","Side markers","None",0]
["Neck Specifications","Side markers","Plastic dots 2mm",0]
["Neck Specifications","Side markers","MOP dots 2mm",0]
["Neck Specifications","Side markers","Luminlay 3mm",0]
["Neck Specifications","Side markers","Plastic blocks",50]
["Neck Specifications","Side markers","MOP blocks",60]
["Neck Specifications","Neck Finish","Select Option"]
["Neck Specifications","Neck Finish","Clear matt",0]
["Neck Specifications","Neck Finish","Clear gloss",0]
["Neck Specifications","Neck Finish","Matching Body",0]
["Body Specifications","Body wood","Select Option"]
["Body Specifications","Body wood","Alder",50]
["Body Specifications","Body wood","White ash",50]
["Body Specifications","Body wood","Swamp ash",300]
["Body Specifications","Body wood","African mahogany",100]
["Body Specifications","Body wood","Limba",200]
["Body Specifications","Body wood","Hard maple",50]
["Body Specifications","Body wood","Sapele",85]
["Body Specifications","Finish","Select Option"]
["Body Specifications","Finish","Satin open pores",{"$f":"F119*'Exchange Rate Calculation'!$Q$7","v":0}]
["Body Specifications","Finish","Oil",75]
["Body Specifications","Finish","Gloss ",200]
["Body Specifications","Finish","Gloss top ",85]
["Body Specifications","Colour","Select Option"]
["Body Specifications","Colour","Clear",0]
["Body Specifications","Colour","Uniform colour",{"$f":"F125*'Exchange Rate Calculation'!$Q$7","v":0}]
["Body Specifications","Colour","Burst",30]
["Body Specifications","Colour","Painted pores (one colour)",35]
["Body Specifications","Colour","Painted pores (two colours)",70]
["Hardware","Bridge","Select Option"]
["Hardware","Bridge","Hipshot Triple Lock Down ",0]
["Hardware","Bridge","Other (contact for the price)",0]
["Hardware","Tuning machines","Select Option"]
["Hardware","Tuning machines","Hipshot Ultralite ",0]
["Electronics","Neck Pickup","Select Option"]
["Electronics","Neck Pickup","Bartolini",0]
["Electronics","Neck Pickup","Other (contact for the price)",0]
["Electronics","Bridge Pickup","Select Option"]
["Electronics","Bridge Pickup","Bartolini",0]
["Electronics","Pre-amp","Select Option"]
["Electronics","Pre-amp","Bartolini  5.2AP",192]
["Electronics","Pre-amp","None",0]

{"sheet":"Exchange Rate Calculation","index":14,"n_rows":57,"n_cols":18,"rows_kept":57,"cut":false,"hidden":true,"merged":[]}
["US Dollar","1.00 USD","inv. 1.00 USD",null,null," *Select*",null,null,null,null,null," *Select*"]
["Argentine Peso",13889853,"0.071995",null,null,{"$f":"A1","v":"US Dollar"},1,1,null,null,null,"US Dollar","USD"]
["Australian Dollar",1422464,"0.703005",null,null,{"$f":"A2","v":"Argentine Peso"},{"$f":"B2","v":13889853},{"$f":"C2","v":"0.071995"},null,null,null,"Argentine Peso","ARS"]
["Bahraini Dinar","0.377339",2650134,null,null,"Australian Dollar",1422464,"0.703005",null,null,null,"Australian Dollar","AUD",null,null,"Base Currency","Russian Ruble",{"$f":"VLOOKUP(Q4,'[1]Pivot Table'!$G$2:$H$57,2,0)","v":"RUB"}]
["Botswana Pula",11386563,"0.087823",null,null,"Bahraini Dinar","0.377339",2650134,null,null,null,"Bahraini Dinar","BHD",null,null,"Target Currency","US Dollar",{"$f":"VLOOKUP(Q5,'[1]Pivot Table'!$G$2:$H$57,2,0)","v":"USD"}]
["Brazilian Real",4044582,"0.247244",null,null,"Botswana Pula",11386563,"0.087823",null,null,null,"Botswana Pula","BWP",null,null,{"$f":"CONCATENATE(\" Exchange Rate \",VLOOKUP(Q4,L2:M57,2,0),\"/\",VLOOKUP(Q5,L2:M57,2,0))","v":" Exchange Rate RUB/USD"},{"$f":"VLOOKUP(Q4,$F$2:$H$57,3,0)","v":"0.013461"},{"$f":"R5","v":"USD"}]
["Bruneian Dollar",1436996,"0.695896",null,null,"Brazilian Real",4044582,"0.247244",null,null,null,"Brazilian Real","BRL",null,null,"1 RUB =",1.66666E-2,{"$f":"R6","v":"USD"}]
["Bulgarian Lev",1800060,"0.555537",null,null,"Bruneian Dollar",1436996,"0.695896",null,null,null,"Bruneian Dollar","BND"]
["Canadian Dollar",1410953,"0.708741",null,null,"Bulgarian Lev",1800060,"0.555537",null,null,null,"Bulgarian Lev","BGN"]
["Chilean Peso",721896567,"0.001385",null,null,"Canadian Dollar",1410953,"0.708741",null,null,null,"Canadian Dollar","CAD"]
["Chinese Yuan Renminbi",6591655,"0.151707",null,null,"Chilean Peso",721896567,"0.001385",null,null,null,"Chilean Peso","CLP"]
["Colombian Peso",3251186683,"0.000308",null,null,"Chinese Yuan Renminbi",6591655,"0.151707",null,null,null,"Chinese Yuan Renminbi","CNY"]
["Croatian Kuna",7024769,"0.142353",null,null,"Colombian Peso",3251186683,"0.000308",null,null,null,"Colombian Peso","COP"]
["Czech Koruna",24849903,"0.040242",null,null,"Croatian Kuna",7024769,"0.142353",null,null,null,"Croatian Kuna","HRK"]
["Danish Krone",6855678,"0.145864",null,null,"Czech Koruna",24849903,"0.040242",null,null,null,"Czech Koruna","CZK"]
["Euro","0.919144",1087969,null,null,"Danish Krone",6855678,"0.145864",null,null,null,"Danish Krone","DKK",null,"1-  click in refresh rates"]
["Hong Kong Dollar",7758285,"0.128894",null,null,"Euro","0.919144",1087969,null,null,null,"Euro","EUR",null,"2- write in the yellow cell the same value as the cell above ( updated currency exchange)"]
["Hungarian Forint",289342530,"0.003456",null,null,"Hong Kong Dollar",7758285,"0.128894",null,null,null,"Hong Kong Dollar","HKD"]
["Icelandic Krona",130154780,"0.007683",null,null,"Hungarian Forint",289342530,"0.003456",null,null,null,"Hungarian Forint","HUF"]
["Indian Rupee",66761883,"0.014979",null,null,"Icelandic Krona",130154780,"0.007683",null,null,null,"Icelandic Krona","ISK"]
["Indonesian Rupiah",13911603103,"0.000072",null,null,"Indian Rupee",66761883,"0.014979",null,null,null,"Indian Rupee","INR"]
["Iranian Rial",30156815440,"0.000033",null,null,"Indonesian Rupiah",13911603103,"0.000072",null,null,null,"Indonesian Rupiah","IDR"]
["Israeli Shekel",3922684,"0.254927",null,null,"Iranian Rial",30156815440,"0.000033",null,null,null,"Iranian Rial","IRR"]
["Japanese Yen",118322263,"0.008451",null,null,"Israeli Shekel",3922684,"0.254927",null,null,null,"Israeli Shekel","ILS"]
["Kazakhstani Tenge",343572953,"0.002911",null,null,"Japanese Yen",118322263,"0.008451",null,null,null,"Japanese Yen","JPY"]
["South Korean Won",1201811287,"0.000832",null,null,"Kazakhstani Tenge",343572953,"0.002911",null,null,null,"Kazakhstani Tenge","KZT"]
["Kuwaiti Dinar","0.304059",3288835,null,null,"South Korean Won",1201811287,"0.000832",null,null,null,"South Korean Won","KRW"]
["Libyan Dinar",1384000,"0.722543",null,null,"Kuwaiti Dinar","0.304059",3288835,null,null,null,"Kuwaiti Dinar","KWD"]
["Malaysian Ringgit",4386589,"0.227968",null,null,"Libyan Dinar",1384000,"0.722543",null,null,null,"Libyan Dinar","LYD"]
["Mauritian Rupee",36159722,"0.027655",null,null,"Malaysian Ringgit",4386589,"0.227968",null,null,null,"Malaysian Ringgit","MYR"]
["Mexican Peso",17791584,"0.056206",null,null,"Mauritian Rupee",36159722,"0.027655",null,null,null,"Mauritian Rupee","MUR"]
["Nepalese Rupee",103395004,"0.009672",null,null,"Mexican Peso",17791584,"0.056206",null,null,null,"Mexican Peso","MXN"]
["New Zealand Dollar",1506295,"0.663880",null,null,"Nepalese Rupee",103395004,"0.009672",null,null,null,"Nepalese Rupee","NPR"]
["Norwegian Krone",8890266,"0.112483",null,null,"New Zealand Dollar",1506295,"0.663880",null,null,null,"New Zealand Dollar","NZD"]
["Omani Rial","0.385100",2596728,null,null,"Norwegian Krone",8890266,"0.112483",null,null,null,"Norwegian Krone","NOK"]
["Pakistani Rupee",104909998,"0.009532",null,null,"Omani Rial","0.385100",2596728,null,null,null,"Omani Rial","OMR"]
["Philippine Peso",47194802,"0.021189",null,null,"Pakistani Rupee",104909998,"0.009532",null,null,null,"Pakistani Rupee","PKR"]
["Polish Zloty",3985796,"0.250891",null,null,"Philippine Peso",47194802,"0.021189",null,null,null,"Philippine Peso","PHP"]
["Qatari Riyal",3641899,"0.274582",null,null,"Polish Zloty",3985796,"0.250891",null,null,null,"Polish Zloty","PLN"]
["Romanian New Leu",4160592,"0.240350",null,null,"Qatari Riyal",3641899,"0.274582",null,null,null,"Qatari Riyal","QAR"]
["Russian Ruble",74290853,"0.013461",null,null,"Romanian New Leu",4160592,"0.240350",null,null,null,"Romanian New Leu","RON"]
["Saudi Arabian Riyal",3755550,"0.266273",null,null,"Russian Ruble",74290853,"0.013461",null,null,null,"Russian Ruble","RUB"]
["Singapore Dollar",1436996,"0.695896",null,null,"Saudi Arabian Riyal",3755550,"0.266273",null,null,null,"Saudi Arabian Riyal","SAR"]
["South African Rand",16029792,"0.062384",null,null,"Singapore Dollar",1436996,"0.695896",null,null,null,"Singapore Dollar","SGD"]
["Sri Lankan Rupee",143197954,"0.006983",null,null,"South African Rand",16029792,"0.062384",null,null,null,"South African Rand","ZAR"]
["Swedish Krona",8502472,"0.117613",null,null,"Sri Lankan Rupee",143197954,"0.006983",null,null,null,"Sri Lankan Rupee","LKR"]
["Swiss Franc","0.999844",1000156,null,null,"Swedish Krona",8502472,"0.117613",null,null,null,"Swedish Krona","SEK"]
["Taiwan New Dollar",33325961,"0.030007",null,null,"Swiss Franc","0.999844",1000156,null,null,null,"Swiss Franc","CHF"]
["Thai Baht",36291374,"0.027555",null,null,"Taiwan New Dollar",33325961,"0.030007",null,null,null,"Taiwan New Dollar","TWD"]
["Trinidadian Dollar",6427816,"0.155574",null,null,"Thai Baht",36291374,"0.027555",null,null,null,"Thai Baht","THB"]
["Turkish Lira",2995095,"0.333879",null,null,"Trinidadian Dollar",6427816,"0.155574",null,null,null,"Trinidadian Dollar","TTD"]
["Emirati Dirham",3673150,"0.272246",null,null,"Turkish Lira",2995095,"0.333879",null,null,null,"Turkish Lira","TRY"]
["British Pound","0.683965",1462062,null,null,"Emirati Dirham",3673150,"0.272246",null,null,null,"Emirati Dirham","AED"]
["Venezuelan Bolivar",6349606,"0.157490",null,null,"British Pound","0.683965",1462062,null,null,null,"British Pound","GBP"]
["Latvian Lat","0.645974",1548050,null,null,"Venezuelan Bolivar",6349606,"0.157490",null,null,null,"Venezuelan Bolivar","VEF"]
["Lithuanian Litas",3173619,"0.315098",null,null,"Latvian Lat","0.645974",1548050,null,null,null,"Latvian Lat","LVL"]
[null,null,null,null,null,{"$f":"A56","v":"Lithuanian Litas"},3173619,"0.315098",null,null,null,"Lithuanian Litas","LTL"]

{"sheet":"Ennea Bass Padalka Calculation","index":15,"n_rows":69,"n_cols":7,"rows_kept":69,"cut":false,"hidden":false,"merged":[[68,3,68,4],[35,2,35,4],[62,2,62,4],[63,2,63,4],[64,2,64,4],[58,2,58,4],[59,1,59,2],[59,3,59,4],[60,2,60,4],[61,2,61,4],[47,1,47,4],[50,2,50,4],[51,1,51,4],[53,2,53,4],[55,2,55,4],[67,2,67,4],[13,1,13,4],[4,1,4,4],[5,3,5,4],[6,1,6,4],[10,2,10,4],[12,2,12,4],[18,1,18,4],[17,1,17,4],[44,2,44,4],[65,1,65,4],[66,2,66,4],[20,1,20,4],[27,2,27,4],[28,1,28,4],[31,2,31,4],[36,1,36,4],[39,2,39,4],[40,1,40,4],[57,2,57,4],[45,1,45,2],[46,2,46,4]]}
[]
[]
[]
[]
[null,"Specifications"]
["Part","Description","Choosen option","Cost"]
["General Specifications","General Specifications"]
["General Specifications","Model",{"$f":"IFERROR(INDEX('Superstrat Option List'!C2:C278,MATCH(#REF!&A8&B8,'Superstrat Option List'!#REF!&'Superstrat Option List'!A2:A278&'Superstrat Option List'!B2:B278,0)),\"Select Option\")","v":"Select Option"},{"$f":"INDEX('Ennea Bass Option list'!D2:D141,MATCH('Ennea Bass Padalka Calculation'!A8&'Ennea Bass Padalka Calculation'!B8&'Ennea Bass Padalka Calculation'!C8,'Ennea Bass Option list'!A2:A141&'Ennea Bass Option list'!B2:B141&'Ennea Bass Option list'!C2:C141,0))","v":0}]
["General Specifications","Number of Strings",{"$f":"IFERROR(INDEX('Superstrat Option List'!C3:C278,MATCH(#REF!&A9&B9,'Superstrat Option List'!#REF!&'Superstrat Option List'!A3:A278&'Superstrat Option List'!B3:B278,0)),\"Select Option\")","v":"Select Option"},{"$f":"INDEX('Ennea Bass Option list'!D3:D142,MATCH('Ennea Bass Padalka Calculation'!A9&'Ennea Bass Padalka Calculation'!B9&'Ennea Bass Padalka Calculation'!C9,'Ennea Bass Option list'!A3:A142&'Ennea Bass Option list'!B3:B142&'Ennea Bass Option list'!C3:C142,0))","v":0}]
["General Specifications","Scale Length",{"$f":"IFERROR(INDEX('Superstrat Option List'!C4:C278,MATCH(#REF!&A10&B10,'Superstrat Option List'!#REF!&'Superstrat Option List'!A4:A278&'Superstrat Option List'!B4:B278,0)),\"Select Option\")","v":"Select Option"},{"$f":"INDEX('Ennea Bass Option list'!D4:D143,MATCH('Ennea Bass Padalka Calculation'!A10&'Ennea Bass Padalka Calculation'!B10&'Ennea Bass Padalka Calculation'!C10,'Ennea Bass Option list'!A4:A143&'Ennea Bass Option list'!B4:B143&'Ennea Bass Option list'!C4:C143,0))","v":0}]
["General Specifications"]
["General Specifications","Neck Joint Construction",{"$f":"IFERROR(INDEX('Superstrat Option List'!C6:C278,MATCH(#REF!&A12&B12,'Superstrat Option List'!#REF!&'Superstrat Option List'!A6:A278&'Superstrat Option List'!B6:B278,0)),\"Select Option\")","v":"Select Option"},{"$f":"INDEX('Ennea Bass Option list'!D6:D145,MATCH('Ennea Bass Padalka Calculation'!A12&'Ennea Bass Padalka Calculation'!B12&'Ennea Bass Padalka Calculation'!C12,'Ennea Bass Option list'!A6:A145&'Ennea Bass Option list'!B6:B145&'Ennea Bass Option list'!C6:C145,0))","v":0}]
[]
[null,"Neck Specifications"]
["Neck Specifications","Number of frets",{"$f":"IFERROR(INDEX('Superstrat Option List'!C6:C277,MATCH(#REF!&A15&B15,'Superstrat Option List'!#REF!&'Superstrat Option List'!A6:A277&'Superstrat Option List'!B6:B277,0)),\"Select Option\")","v":"Select Option"},{"$f":"INDEX('Ennea Bass Option list'!D9:D148,MATCH('Ennea Bass Padalka Calculation'!A15&'Ennea Bass Padalka Calculation'!B15&'Ennea Bass Padalka Calculation'!C15,'Ennea Bass Option list'!A9:A148&'Ennea Bass Option list'!B9:B148&'Ennea Bass Option list'!C9:C148,0))","v":0}]
["Neck Specifications","Fretwire",{"$f":"IFERROR(INDEX('Superstrat Option List'!C7:C278,MATCH(#REF!&A16&B16,'Superstrat Option List'!#REF!&'Superstrat Option List'!A7:A278&'Superstrat Option List'!B7:B278,0)),\"Select Option\")","v":"Select Option"},{"$f":"IFERROR(INDEX('Ennea Bass Option list'!D19:D25,MATCH(A16&B16&C16,'Ennea Bass Option list'!A19:A25&'Ennea Bass Option list'!B19:B25&'Ennea Bass Option list'!C19:C25,0)),\"$0,00\")","v":0}]
["Neck Specifications","Neck pieces",{"$f":"IFERROR(INDEX('Superstrat Option List'!C7:C278,MATCH(#REF!&A17&B17,'Superstrat Option List'!#REF!&'Superstrat Option List'!A7:A278&'Superstrat Option List'!B7:B278,0)),\"Select Option\")","v":"Select Option"},{"$f":"IFERROR(INDEX('Superstrat Option List'!D12:D1938,MATCH(A17&B17&C17,'Superstrat Option List'!A12:A1938&'Superstrat Option List'!B12:B1938&'Superstrat Option List'!C12:C1938,0)),\"Please choose option\")","v":0}]
[null,"Neck wood "]
[null,"Select option below for 1 piece neck "]
["Neck Specifications","1 Piece Neck Wood",{"$f":"INDEX('Superstrat Option List'!D2:D278,MATCH(A20&$B$18&B20,'Superstrat Option List'!A2:A278&'Superstrat Option List'!B2:B278&'Superstrat Option List'!C2:C278,0))","v":"Select Option"},{"$f":"IFERROR(INDEX('Ennea Bass Option list'!E2:E141,MATCH('Ennea Bass Padalka Calculation'!A20&'Ennea Bass Padalka Calculation'!$B$18&'Ennea Bass Padalka Calculation'!B20&'Ennea Bass Padalka Calculation'!C20,'Ennea Bass Option list'!A2:A141&'Ennea Bass Option list'!B2:B141&'Ennea Bass Option list'!C2:C141&'Ennea Bass Option list'!D2:D141,0)),\"$0,00\")","v":"$0,00"}]
[null,"Select options below for Multi-piece neck"]
["Neck Specifications","Multi-piece Neck Base Wood ",{"$f":"INDEX('Superstrat Option List'!D4:D280,MATCH(A22&$B$18&B22,'Superstrat Option List'!A4:A280&'Superstrat Option List'!B4:B280&'Superstrat Option List'!C4:C280,0))","v":"Select Option"},{"$f":"IFERROR(INDEX('Ennea Bass Option list'!E4:E143,MATCH('Ennea Bass Padalka Calculation'!A22&'Ennea Bass Padalka Calculation'!$B$18&'Ennea Bass Padalka Calculation'!B22&'Ennea Bass Padalka Calculation'!C22,'Ennea Bass Option list'!A4:A143&'Ennea Bass Option list'!B4:B143&'Ennea Bass Option list'!C4:C143&'Ennea Bass Option list'!D4:D143,0)),\"$0,00\")","v":"$0,00"}]
["Neck Specifications","Multi-piece Neck Thins Wood ",{"$f":"INDEX('Superstrat Option List'!D5:D281,MATCH(A23&$B$18&B23,'Superstrat Option List'!A5:A281&'Superstrat Option List'!B5:B281&'Superstrat Option List'!C5:C281,0))","v":"Select Option"},{"$f":"IFERROR(INDEX('Ennea Bass Option list'!E5:E144,MATCH('Ennea Bass Padalka Calculation'!A23&'Ennea Bass Padalka Calculation'!$B$18&'Ennea Bass Padalka Calculation'!B23&'Ennea Bass Padalka Calculation'!C23,'Ennea Bass Option list'!A5:A144&'Ennea Bass Option list'!B5:B144&'Ennea Bass Option list'!C5:C144&'Ennea Bass Option list'!D5:D144,0)),\"$0,00\")","v":"$0,00"}]
["Neck Specifications","Multi-piece Neck Thins Wood ",{"$f":"INDEX('Superstrat Option List'!D6:D282,MATCH(A24&$B$18&B24,'Superstrat Option List'!A6:A282&'Superstrat Option List'!B6:B282&'Superstrat Option List'!C6:C282,0))","v":"Select Option"},{"$f":"IFERROR(INDEX('Ennea Bass Option list'!E6:E145,MATCH('Ennea Bass Padalka Calculation'!A24&'Ennea Bass Padalka Calculation'!$B$18&'Ennea Bass Padalka Calculation'!B24&'Ennea Bass Padalka Calculation'!C24,'Ennea Bass Option list'!A6:A145&'Ennea Bass Option list'!B6:B145&'Ennea Bass Option list'!C6:C145&'Ennea Bass Option list'!D6:D145,0)),\"$0,00\")","v":"$0,00"}]
["Neck Specifications","Multi-piece Neck Thins Wood ",{"$f":"INDEX('Superstrat Option List'!D7:D283,MATCH(A25&$B$18&B25,'Superstrat Option List'!A7:A283&'Superstrat Option List'!B7:B283&'Superstrat Option List'!C7:C283,0))","v":"Select Option"},{"$f":"IFERROR(INDEX('Ennea Bass Option list'!E7:E146,MATCH('Ennea Bass Padalka Calculation'!A25&'Ennea Bass Padalka Calculation'!$B$18&'Ennea Bass Padalka Calculation'!B25&'Ennea Bass Padalka Calculation'!C25,'Ennea Bass Option list'!A7:A146&'Ennea Bass Option list'!B7:B146&'Ennea Bass Option list'!C7:C146&'Ennea Bass Option list'!D7:D146,0)),\"$0,00\")","v":"$0,00"}]
["Neck Specifications","Multi-piece Neck Thins Wood ",{"$f":"INDEX('Superstrat Option List'!D8:D284,MATCH(A26&$B$18&B26,'Superstrat Option List'!A8:A284&'Superstrat Option List'!B8:B284&'Superstrat Option List'!C8:C284,0))","v":"Select Option"},{"$f":"IFERROR(INDEX('Ennea Bass Option list'!E8:E147,MATCH('Ennea Bass Padalka Calculation'!A26&'Ennea Bass Padalka Calculation'!$B$18&'Ennea Bass Padalka Calculation'!B26&'Ennea Bass Padalka Calculation'!C26,'Ennea Bass Option list'!A8:A147&'Ennea Bass Option list'!B8:B147&'Ennea Bass Option list'!C8:C147&'Ennea Bass Option list'!D8:D147,0)),\"$0,00\")","v":"$0,00"}]
["Neck Specifications","Multi-piece Neck Thins Wood ",{"$f":"INDEX('Superstrat Option List'!D9:D285,MATCH(A27&$B$18&B27,'Superstrat Option List'!A9:A285&'Superstrat Option List'!B9:B285&'Superstrat Option List'!C9:C285,0))","v":"Select Option"},{"$f":"IFERROR(INDEX('Ennea Bass Option list'!E9:E148,MATCH('Ennea Bass Padalka Calculation'!A27&'Ennea Bass Padalka Calculation'!$B$18&'Ennea Bass Padalka Calculation'!B27&'Ennea Bass Padalka Calculation'!C27,'Ennea Bass Option list'!A9:A148&'Ennea Bass Option list'!B9:B148&'Ennea Bass Option list'!C9:C148&'Ennea Bass Option list'!D9:D148,0)),\"$0,00\")","v":"$0,00"}]
[]
[null,"Fretboard Specifications"]
["Neck Specifications","Fretboard wood",{"$f":"IFERROR(INDEX('Superstrat Option List'!C29:C278,MATCH(#REF!&A30&B30,'Superstrat Option List'!#REF!&'Superstrat Option List'!A29:A278&'Superstrat Option List'!B29:B278,0)),\"Select Option\")","v":"Select Option"},{"$f":"INDEX('Ennea Bass Option list'!D2:D141,MATCH('Ennea Bass Padalka Calculation'!A30&'Ennea Bass Padalka Calculation'!B30&'Ennea Bass Padalka Calculation'!C30,'Ennea Bass Option list'!A2:A141&'Ennea Bass Option list'!B2:B141&'Ennea Bass Option list'!C2:C141,0))","v":0}]
["Neck Specifications","Fretboard radius",{"$f":"IFERROR(INDEX('Superstrat Option List'!C29:C278,MATCH(#REF!&A31&B31,'Superstrat Option List'!#REF!&'Superstrat Option List'!A29:A278&'Superstrat Option List'!B29:B278,0)),\"Select Option\")","v":"Select Option"},{"$f":"INDEX('Ennea Bass Option list'!D3:D142,MATCH('Ennea Bass Padalka Calculation'!A31&'Ennea Bass Padalka Calculation'!B31&'Ennea Bass Padalka Calculation'!C31,'Ennea Bass Option list'!A3:A142&'Ennea Bass Option list'!B3:B142&'Ennea Bass Option list'!C3:C142,0))","v":0}]
["Neck Specifications"]
["Neck Specifications","Fretboard binding ",{"$f":"IFERROR(INDEX('Superstrat Option List'!C30:C278,MATCH(#REF!&A33&B33,'Superstrat Option List'!#REF!&'Superstrat Option List'!A30:A278&'Superstrat Option List'!B30:B278,0)),\"Select Option\")","v":"Select Option"},{"$f":"INDEX('Ennea Bass Option list'!D5:D144,MATCH('Ennea Bass Padalka Calculation'!A33&'Ennea Bass Padalka Calculation'!B33&'Ennea Bass Padalka Calculation'!C33,'Ennea Bass Option list'!A5:A144&'Ennea Bass Option list'!B5:B144&'Ennea Bass Option list'!C5:C144,0))","v":0}]
["Neck Specifications","Fretboard inlays",{"$f":"IFERROR(INDEX('Superstrat Option List'!C30:C278,MATCH(#REF!&A34&B34,'Superstrat Option List'!#REF!&'Superstrat Option List'!A30:A278&'Superstrat Option List'!B30:B278,0)),\"Select Option\")","v":"Select Option"},{"$f":"INDEX('Ennea Bass Option list'!D6:D145,MATCH('Ennea Bass Padalka Calculation'!A34&'Ennea Bass Padalka Calculation'!B34&'Ennea Bass Padalka Calculation'!C34,'Ennea Bass Option list'!A6:A145&'Ennea Bass Option list'!B6:B145&'Ennea Bass Option list'!C6:C145,0))","v":0}]
["Neck Specifications","Side markers",{"$f":"IFERROR(INDEX('Superstrat Option List'!C31:C278,MATCH(#REF!&A35&B35,'Superstrat Option List'!#REF!&'Superstrat Option List'!A31:A278&'Superstrat Option List'!B31:B278,0)),\"Select Option\")","v":"Select Option"},{"$f":"INDEX('Ennea Bass Option list'!D7:D146,MATCH('Ennea Bass Padalka Calculation'!A35&'Ennea Bass Padalka Calculation'!B35&'Ennea Bass Padalka Calculation'!C35,'Ennea Bass Option list'!A7:A146&'Ennea Bass Option list'!B7:B146&'Ennea Bass Option list'!C7:C146,0))","v":0}]
[]
[null,"Headstock Specifications"]
["Neck Specifications","Headstock shape",{"$f":"IFERROR(INDEX('Superstrat Option List'!C34:C278,MATCH(#REF!&A38&B38,'Superstrat Option List'!#REF!&'Superstrat Option List'!A34:A278&'Superstrat Option List'!B34:B278,0)),\"Select Option\")","v":"Select Option"},{"$f":"INDEX('Ennea Bass Option list'!D2:D141,MATCH('Ennea Bass Padalka Calculation'!A38&'Ennea Bass Padalka Calculation'!B38&'Ennea Bass Padalka Calculation'!C38,'Ennea Bass Option list'!A2:A141&'Ennea Bass Option list'!B2:B141&'Ennea Bass Option list'!C2:C141,0))","v":0}]
["Neck Specifications","Headstock finish ",{"$f":"IFERROR(INDEX('Superstrat Option List'!C38:C278,MATCH(#REF!&A39&B39,'Superstrat Option List'!#REF!&'Superstrat Option List'!A38:A278&'Superstrat Option List'!B38:B278,0)),\"Select Option\")","v":"Select Option"},{"$f":"INDEX('Ennea Bass Option list'!D3:D142,MATCH('Ennea Bass Padalka Calculation'!A39&'Ennea Bass Padalka Calculation'!B39&'Ennea Bass Padalka Calculation'!C39,'Ennea Bass Option list'!A3:A142&'Ennea Bass Option list'!B3:B142&'Ennea Bass Option list'!C3:C142,0))","v":0}]
[]
[null,"Body Specifications"]
["Body Specifications","Body wood",{"$f":"IFERROR(INDEX('Superstrat Option List'!C39:C278,MATCH(#REF!&A42&B42,'Superstrat Option List'!#REF!&'Superstrat Option List'!A39:A278&'Superstrat Option List'!B39:B278,0)),\"Select Option\")","v":"Select Option"},{"$f":"INDEX('Ennea Bass Option list'!D6:D145,MATCH('Ennea Bass Padalka Calculation'!A42&'Ennea Bass Padalka Calculation'!B42&'Ennea Bass Padalka Calculation'!C42,'Ennea Bass Option list'!A6:A145&'Ennea Bass Option list'!B6:B145&'Ennea Bass Option list'!C6:C145,0))","v":0}]
["Body Specifications","Finish",{"$f":"IFERROR(INDEX('Superstrat Option List'!C46:C278,MATCH(#REF!&A43&B43,'Superstrat Option List'!#REF!&'Superstrat Option List'!A46:A278&'Superstrat Option List'!B46:B278,0)),\"Select Option\")","v":"Select Option"},{"$f":"INDEX('Ennea Bass Option list'!D7:D146,MATCH('Ennea Bass Padalka Calculation'!A43&'Ennea Bass Padalka Calculation'!B43&'Ennea Bass Padalka Calculation'!C43,'Ennea Bass Option list'!A7:A146&'Ennea Bass Option list'!B7:B146&'Ennea Bass Option list'!C7:C146,0))","v":0}]
["Body Specifications","Colour",{"$f":"IFERROR(INDEX('Superstrat Option List'!C48:C278,MATCH(#REF!&A44&B44,'Superstrat Option List'!#REF!&'Superstrat Option List'!A48:A278&'Superstrat Option List'!B48:B278,0)),\"Select Option\")","v":"Select Option"},{"$f":"INDEX('Ennea Bass Option list'!D8:D147,MATCH('Ennea Bass Padalka Calculation'!A44&'Ennea Bass Padalka Calculation'!B44&'Ennea Bass Padalka Calculation'!C44,'Ennea Bass Option list'!A8:A147&'Ennea Bass Option list'!B8:B147&'Ennea Bass Option list'!C8:C147,0))","v":0}]
["Body Specifications"]
[null,"Special upcharge",null,{"$f":"IF(C45>=F46,G46,0)","v":0},null,"White",50]
[]
[null,"Hardware"]
["Hardware","Bridge",{"$f":"IFERROR(INDEX('Superstrat Option List'!C50:C278,MATCH(#REF!&A49&B49,'Superstrat Option List'!#REF!&'Superstrat Option List'!A50:A278&'Superstrat Option List'!B50:B278,0)),\"Select Option\")","v":"Select Option"},{"$f":"INDEX('Ennea Bass Option list'!D9:D152,MATCH('Ennea Bass Padalka Calculation'!A49&'Ennea Bass Padalka Calculation'!B49&'Ennea Bass Padalka Calculation'!C49,'Ennea Bass Option list'!A9:A152&'Ennea Bass Option list'!B9:B152&'Ennea Bass Option list'!C9:C152,0))","v":0}]
["Hardware","Tuning machines",{"$f":"IFERROR(INDEX('Superstrat Option List'!C57:C278,MATCH(#REF!&A50&B50,'Superstrat Option List'!#REF!&'Superstrat Option List'!A57:A278&'Superstrat Option List'!B57:B278,0)),\"Select Option\")","v":"Select Option"},{"$f":"IFERROR(F50*C9,\"$0,00\")","v":"$0,00"},null,{"$f":"INDEX('Ennea Bass Option list'!D11:D155,MATCH('Ennea Bass Padalka Calculation'!A50&'Ennea Bass Padalka Calculation'!B50&'Ennea Bass Padalka Calculation'!C50,'Ennea Bass Option list'!A11:A155&'Ennea Bass Option list'!B11:B155&'Ennea Bass Option list'!C11:C155,0))","v":0}]
[]
[null,"Electronics"]
["Electronics","Neck Pickup",{"$f":"IFERROR(INDEX('Superstrat Option List'!C61:C278,MATCH(#REF!&A53&B53,'Superstrat Option List'!#REF!&'Superstrat Option List'!A61:A278&'Superstrat Option List'!B61:B278,0)),\"Select Option\")","v":"Select Option"},{"$f":"INDEX('Ennea Bass Option list'!D134:$D$141,MATCH(A53&B53&C53,'Ennea Bass Option list'!A134:A141&'Ennea Bass Option list'!B134:B141&'Ennea Bass Option list'!C134:C141,0))","v":0}]
["Electronics","Describe Pickup Model"]
["Electronics","Bridge Pickup",{"$f":"IFERROR(INDEX('Superstrat Option List'!C67:C278,MATCH(#REF!&A55&B55,'Superstrat Option List'!#REF!&'Superstrat Option List'!A67:A278&'Superstrat Option List'!B67:B278,0)),\"Select Option\")","v":"Select Option"},{"$f":"INDEX('Ennea Bass Option list'!D136:$D$141,MATCH(A55&B55&C55,'Ennea Bass Option list'!A136:A143&'Ennea Bass Option list'!B136:B143&'Ennea Bass Option list'!C136:C143,0))","v":0}]
["Electronics","Describe Pickup Model"]
["Electronics","Pre-amp",{"$f":"IFERROR(INDEX('Superstrat Option List'!C78:C278,MATCH(#REF!&A57&B57,'Superstrat Option List'!#REF!&'Superstrat Option List'!A78:A278&'Superstrat Option List'!B78:B278,0)),\"Select Option\")","v":"Select Option"},{"$f":"IFERROR(INDEX('Ennea Bass Option list'!D139:D141,MATCH('Ennea Bass Padalka Calculation'!A57&'Ennea Bass Padalka Calculation'!B57&'Ennea Bass Padalka Calculation'!C57,'Ennea Bass Option list'!A139:A141&'Ennea Bass Option list'!B139:B141&'Ennea Bass Option list'!C139:C141,0)),\"$0,00\")","v":0}]
["Electronics","Describe Other Pre-amp"]
[]
[null,"Total  ",null,{"$f":"IFERROR(SUM(D8:D59),\"Please select missing option\")","v":0}]
[null,"Name:"]
[null,"Country :"]
[null,"Adress :"]
[null,"E-mail :"]
[null,"Phone Number:"]
[null,"Body & Headstock Shapes available in this models"]
[null,"Ennea Singlecut Body Model"]
[null,"Ennea Doublecut Body Model"]
[null,"Ennea Headstock Model"]